{"text_format":"1","workbook":"xlsx","n_sheets":7,"sheets":["Instructions","Previous Count","Product info","Count","Deliveries and sales","Liquor Cost","Liquor cost trend"],"not_rendered":{"charts":5,"images":6,"macros":1,"external_links":0,"defined_names":0,"comments":0,"pivot_tables":0},"unopened":[],"bounds":{"document_bytes":16777216,"sheet_cells":100000,"rows_first":2000,"rows_last":500,"rows_between":2000,"halvings":0,"cell_chars":16384,"cell_head_chars":4096},"cells_cut":0,"cells_raw":0,"read":"whole","date_system":"1900"}

{"sheet":"Instructions","index":0,"n_rows":10,"n_cols":2,"rows_kept":10,"cut":false,"hidden":false,"merged":[[9,1,9,7]]}
[]
[]
[]
[]
[]
[]
[]
[]
[null,"To watch a detailed instructional video which shows you how to use this free liquor inventory spreadsheet, click the link below: "]
[null,"http://bar-i.com/bar-i-free-liquor-inventory-spreadsheet-instructions"]

{"sheet":"Previous Count","index":1,"n_rows":502,"n_cols":16,"rows_kept":502,"cut":false,"hidden":false,"merged":[]}
[null,null,null,null,"Zone 1","Zone 2","Zone 3","Zone 4","Zone 5","Zone 6","Zone 7","Zone 8","Zone 9","Zone 10","Total","Value"]
[null,null,null,null,"e.g. Well 1","e.g. Well 2","e.g. Bar cooler","e.g. Bar liquor pyramid","e.g. Bar Liquor","e.g.Liquor backups","e.g. Dry storage","e.g. Liquor store","e.g. Walk in cooler","e.g. Wine room",0,0]
[null,1,null,null,null,null,null,null,null,null,null,null,null,null,0,0]
[null,2,null,null,null,null,null,null,null,null,null,null,null,null,0,0]
[null,3,null,null,null,null,null,null,null,null,null,null,null,null,0,0]
[null,4,null,null,null,null,null,null,null,null,null,null,null,null,0,0]
[null,5,null,null,null,null,null,null,null,null,null,null,null,null,0,0]
[null,6,null,null,null,null,null,null,null,null,null,null,null,null,0,0]
[null,7,null,null,null,null,null,null,null,null,null,null,null,null,0,0]
[null,8,null,null,null,null,null,null,null,null,null,null,null,null,0,0]
[null,9,null,null,null,null,null,null,null,null,null,null,null,null,0,0]
[null,10,null,null,null,null,null,null,null,null,null,null,null,null,0,0]
[null,11,null,null,null,null,null,null,null,null,null,null,null,null,0,0]
[null,12,null,null,null,null,null,null,null,null,null,null,null,null,0,0]
[null,13,null,null,null,null,null,null,null,null,null,null,null,null,0,0]
[null,14,null,null,null,null,null,null,null,null,null,null,null,null,0,0]
[null,15,null,null,null,null,null,null,null,null,null,null,null,null,0,0]
[null,16,null,null,null,null,null,null,null,null,null,null,null,null,0,0]
[null,17,null,null,null,null,null,null,null,null,null,null,null,null,0,0]
[null,18,null,null,null,null,null,null,null,null,null,null,null,null,0,0]
[null,19,null,null,null,null,null,null,null,null,null,null,null,null,0,0]
[null,20,null,null,null,null,null,null,null,null,null,null,null,null,0,0]
[null,21,null,null,null,null,null,null,null,null,null,null,null,null,0,0]
[null,22,null,null,null,null,null,null,null,null,null,null,null,null,0,0]
[null,23,null,null,null,null,null,null,null,null,null,null,null,null,0,0]
[null,24,null,null,null,null,null,null,null,null,null,null,null,null,0,0]
[null,25,null,null,null,null,null,null,null,null,null,null,null,null,0,0]
[null,26,null,null,null,null,null,null,null,null,null,null,null,null,0,0]
[null,27,null,null,null,null,null,null,null,null,null,null,null,null,0,0]
[null,28,null,null,null,null,null,null,null,null,null,null,null,null,0,0]
[null,29,null,null,null,null,null,null,null,null,null,null,null,null,0,0]
[null,30,null,null,null,null,null,null,null,null,null,null,null,null,0,0]
[null,31,null,null,null,null,null,null,null,null,null,null,null,null,0,0]
[null,32,null,null,null,null,null,null,null,null,null,null,null,null,0,0]
[null,33,null,null,null,null,null,null,null,null,null,null,null,null,0,0]
[null,34,null,null,null,null,null,null,null,null,null,null,null,null,0,0]
[null,35,null,null,null,null,null,null,null,null,null,null,null,null,0,0]
[null,36,null,null,null,null,null,null,null,null,null,null,null,null,0,0]
[null,37,null,null,null,null,null,null,null,null,null,null,null,null,0,0]
[null,38,null,null,null,null,null,null,null,null,null,null,null,null,0,0]
[null,39,null,null,null,null,null,null,null,null,null,null,null,null,0,0]
[null,40,null,null,null,null,null,null,null,null,null,null,null,null,0,0]
[null,41,null,null,null,null,null,null,null,null,null,null,null,null,0,0]
[null,42,null,null,null,null,null,null,null,null,null,null,null,null,0,0]
[null,43,null,null,null,null,null,null,null,null,null,null,null,null,0,0]
[null,44,null,null,null,null,null,null,null,null,null,null,null,null,0,0]
[null,45,null,null,null,null,null,null,null,null,null,null,null,null,0,0]
[null,46,null,null,null,null,null,null,null,null,null,null,null,null,0,0]
[null,47,null,null,null,null,null,null,null,null,null,null,null,null,0,0]
[null,48,null,null,null,null,null,null,null,null,null,null,null,null,0,0]
[null,49,null,null,null,null,null,null,null,null,null,null,null,null,0,0]
[null,50,null,null,null,null,null,null,null,null,null,null,null,null,0,0]
[null,51,null,null,null,null,null,null,null,null,null,null,null,null,0,0]
[null,52,null,null,null,null,null,null,null,null,null,null,null,null,0,0]
[null,53,null,null,null,null,null,null,null,null,null,null,null,null,0,0]
[null,54,null,null,null,null,null,null,null,null,null,null,null,null,0,0]
[null,55,null,null,null,null,null,null,null,null,null,null,null,null,0,0]
[null,56,null,null,null,null,null,null,null,null,null,null,null,null,0,0]
[null,57,null,null,null,null,null,null,null,null,null,null,null,null,0,0]
[null,58,null,null,null,null,null,null,null,null,null,null,null,null,0,0]
[null,59,null,null,null,null,null,null,null,null,null,null,null,null,0,0]
[null,60,null,null,null,null,null,null,null,null,null,null,null,null,0,0]
[null,61,null,null,null,null,null,null,null,null,null,null,null,null,0,0]
[null,62,null,null,null,null,null,null,null,null,null,null,null,null,0,0]
[null,63,null,null,null,null,null,null,null,null,null,null,null,null,0,0]
[null,64,null,null,null,null,null,null,null,null,null,null,null,null,0,0]
[null,65,null,null,null,null,null,null,null,null,null,null,null,null,0,0]
[null,66,null,null,null,null,null,null,null,null,null,null,null,null,0,0]
[null,67,null,null,null,null,null,null,null,null,null,null,null,null,0,0]
[null,68,null,null,null,null,null,null,null,null,null,null,null,null,0,0]
[null,69,null,null,null,null,null,null,null,null,null,null,null,null,0,0]
[null,70,null,null,null,null,null,null,null,null,null,null,null,null,0,0]
[null,71,null,null,null,null,null,null,null,null,null,null,null,null,0,0]
[null,72,null,null,null,null,null,null,null,null,null,null,null,null,0,0]
[null,73,null,null,null,null,null,null,null,null,null,null,null,null,0,0]
[null,74,null,null,null,null,null,null,null,null,null,null,null,null,0,0]
[null,75,null,null,null,null,null,null,null,null,null,null,null,null,0,0]
[null,76,null,null,null,null,null,null,null,null,null,null,null,null,0,0]
[null,77,null,null,null,null,null,null,null,null,null,null,null,null,0,0]
[null,78,null,null,null,null,null,null,null,null,null,null,null,null,0,0]
[null,79,null,null,null,null,null,null,null,null,null,null,null,null,0,0]
[null,80,null,null,null,null,null,null,null,null,null,null,null,null,0,0]
[null,81,null,null,null,null,null,null,null,null,null,null,null,null,0,0]
[null,82,null,null,null,null,null,null,null,null,null,null,null,null,0,0]
[null,83,null,null,null,null,null,null,null,null,null,null,null,null,0,0]
[null,84,null,null,null,null,null,null,null,null,null,null,null,null,0,0]
[null,85,null,null,null,null,null,null,null,null,null,null,null,null,0,0]
[null,86,null,null,null,null,null,null,null,null,null,null,null,null,0,0]
[null,87,null,null,null,null,null,null,null,null,null,null,null,null,0,0]
[null,88,null,null,null,null,null,null,null,null,null,null,null,null,0,0]
[null,89,null,null,null,null,null,null,null,null,null,null,null,null,0,0]
[null,90,null,null,null,null,null,null,null,null,null,null,null,null,0,0]
[null,91,null,null,null,null,null,null,null,null,null,null,null,null,0,0]
[null,92,null,null,null,null,null,null,null,null,null,null,null,null,0,0]
[null,93,null,null,null,null,null,null,null,null,null,null,null,null,0,0]
[null,94,null,null,null,null,null,null,null,null,null,null,null,null,0,0]
[null,95,null,null,null,null,null,null,null,null,null,null,null,null,0,0]
[null,96,null,null,null,null,null,null,null,null,null,null,null,null,0,0]
[null,97,null,null,null,null,null,null,null,null,null,null,null,null,0,0]
[null,98,null,null,null,null,null,null,null,null,null,null,null,null,0,0]
[null,99,null,null,null,null,null,null,null,null,null,null,null,null,0,0]
[null,100,null,null,null,null,null,null,null,null,null,null,null,null,0,0]
[null,101,null,null,null,null,null,null,null,null,null,null,null,null,0,0]
[null,102,null,null,null,null,null,null,null,null,null,null,null,null,0,0]
[null,103,null,null,null,null,null,null,null,null,null,null,null,null,0,0]
[null,104,null,null,null,null,null,null,null,null,null,null,null,null,0,0]
[null,105,null,null,null,null,null,null,null,null,null,null,null,null,0,0]
[null,106,null,null,null,null,null,null,null,null,null,null,null,null,0,0]
[null,107,null,null,null,null,null,null,null,null,null,null,null,null,0,0]
[null,108,null,null,null,null,null,null,null,null,null,null,null,null,0,0]
[null,109,null,null,null,null,null,null,null,null,null,null,null,null,0,0]
[null,110,null,null,null,null,null,null,null,null,null,null,null,null,0,0]
[null,111,null,null,null,null,null,null,null,null,null,null,null,null,0,0]
[null,112,null,null,null,null,null,null,null,null,null,null,null,null,0,0]
[null,113,null,null,null,null,null,null,null,null,null,null,null,null,0,0]
[null,114,null,null,null,null,null,null,null,null,null,null,null,null,0,0]
[null,115,null,null,null,null,null,null,null,null,null,null,null,null,0,0]
[null,116,null,null,null,null,null,null,null,null,null,null,null,null,0,0]
[null,117,null,null,null,null,null,null,null,null,null,null,null,null,0,0]
[null,118,null,null,null,null,null,null,null,null,null,null,null,null,0,0]
[null,119,null,null,null,null,null,null,null,null,null,null,null,null,0,0]
[null,120,null,null,null,null,null,null,null,null,null,null,null,null,0,0]
[null,121,null,null,null,null,null,null,null,null,null,null,null,null,0,0]
[null,122,null,null,null,null,null,null,null,null,null,null,null,null,0,0]
[null,123,null,null,null,null,null,null,null,null,null,null,null,null,0,0]
[null,124,null,null,null,null,null,null,null,null,null,null,null,null,0,0]
[null,125,null,null,null,null,null,null,null,null,null,null,null,null,0,0]
[null,126,null,null,null,null,null,null,null,null,null,null,null,null,0,0]
[null,127,null,null,null,null,null,null,null,null,null,null,null,null,0,0]
[null,128,null,null,null,null,null,null,null,null,null,null,null,null,0,0]
[null,129,null,null,null,null,null,null,null,null,null,null,null,null,0,0]
[null,130,null,null,null,null,null,null,null,null,null,null,null,null,0,0]
[null,131,null,null,null,null,null,null,null,null,null,null,null,null,0,0]
[null,132,null,null,null,null,null,null,null,null,null,null,null,null,0,0]
[null,133,null,null,null,null,null,null,null,null,null,null,null,null,0,0]
[null,134,null,null,null,null,null,null,null,null,null,null,null,null,0,0]
[null,135,null,null,null,null,null,null,null,null,null,null,null,null,0,0]
[null,136,null,null,null,null,null,null,null,null,null,null,null,null,0,0]
[null,137,null,null,null,null,null,null,null,null,null,null,null,null,0,0]
[null,138,null,null,null,null,null,null,null,null,null,null,null,null,0,0]
[null,139,null,null,null,null,null,null,null,null,null,null,null,null,0,0]
[null,140,null,null,null,null,null,null,null,null,null,null,null,null,0,0]
[null,141,null,null,null,null,null,null,null,null,null,null,null,null,0,0]
[null,142,null,null,null,null,null,null,null,null,null,null,null,null,0,0]
[null,143,null,null,null,null,null,null,null,null,null,null,null,null,0,0]
[null,144,null,null,null,null,null,null,null,null,null,null,null,null,0,0]
[null,145,null,null,null,null,null,null,null,null,null,null,null,null,0,0]
[null,146,null,null,null,null,null,null,null,null,null,null,null,null,0,0]
[null,147,null,null,null,null,null,null,null,null,null,null,null,null,0,0]
[null,148,null,null,null,null,null,null,null,null,null,null,null,null,0,0]
[null,149,null,null,null,null,null,null,null,null,null,null,null,null,0,0]
[null,150,null,null,null,null,null,null,null,null,null,null,null,null,0,0]
[null,151,null,null,null,null,null,null,null,null,null,null,null,null,0,0]
[null,152,null,null,null,null,null,null,null,null,null,null,null,null,0,0]
[null,153,null,null,null,null,null,null,null,null,null,null,null,null,0,0]
[null,154,null,null,null,null,null,null,null,null,null,null,null,null,0,0]
[null,155,null,null,null,null,null,null,null,null,null,null,null,null,0,0]
[null,156,null,null,null,null,null,null,null,null,null,null,null,null,0,0]
[null,157,null,null,null,null,null,null,null,null,null,null,null,null,0,0]
[null,158,null,null,null,null,null,null,null,null,null,null,null,null,0,0]
[null,159,null,null,null,null,null,null,null,null,null,null,null,null,0,0]
[null,160,null,null,null,null,null,null,null,null,null,null,null,null,0,0]
[null,161,null,null,null,null,null,null,null,null,null,null,null,null,0,0]
[null,162,null,null,null,null,null,null,null,null,null,null,null,null,0,0]
[null,163,null,null,null,null,null,null,null,null,null,null,null,null,0,0]
[null,164,null,null,null,null,null,null,null,null,null,null,null,null,0,0]
[null,165,null,null,null,null,null,null,null,null,null,null,null,null,0,0]
[null,166,null,null,null,null,null,null,null,null,null,null,null,null,0,0]
[null,167,null,null,null,null,null,null,null,null,null,null,null,null,0,0]
[null,168,null,null,null,null,null,null,null,null,null,null,null,null,0,0]
[null,169,null,null,null,null,null,null,null,null,null,null,null,null,0,0]
[null,170,null,null,null,null,null,null,null,null,null,null,null,null,0,0]
[null,171,null,null,null,null,null,null,null,null,null,null,null,null,0,0]
[null,172,null,null,null,null,null,null,null,null,null,null,null,null,0,0]
[null,173,null,null,null,null,null,null,null,null,null,null,null,null,0,0]
[null,174,null,null,null,null,null,null,null,null,null,null,null,null,0,0]
[null,175,null,null,null,null,null,null,null,null,null,null,null,null,0,0]
[null,176,null,null,null,null,null,null,null,null,null,null,null,null,0,0]
[null,177,null,null,null,null,null,null,null,null,null,null,null,null,0,0]
[null,178,null,null,null,null,null,null,null,null,null,null,null,null,0,0]
[null,179,null,null,null,null,null,null,null,null,null,null,null,null,0,0]
[null,180,null,null,null,null,null,null,null,null,null,null,null,null,0,0]
[null,181,null,null,null,null,null,null,null,null,null,null,null,null,0,0]
[null,182,null,null,null,null,null,null,null,null,null,null,null,null,0,0]
[null,183,null,null,null,null,null,null,null,null,null,null,null,null,0,0]
[null,184,null,null,null,null,null,null,null,null,null,null,null,null,0,0]
[null,185,null,null,null,null,null,null,null,null,null,null,null,null,0,0]
[null,186,null,null,null,null,null,null,null,null,null,null,null,null,0,0]
[null,187,null,null,null,null,null,null,null,null,null,null,null,null,0,0]
[null,188,null,null,null,null,null,null,null,null,null,null,null,null,0,0]
[null,189,null,null,null,null,null,null,null,null,null,null,null,null,0,0]
[null,190,null,null,null,null,null,null,null,null,null,null,null,null,0,0]
[null,191,null,null,null,null,null,null,null,null,null,null,null,null,0,0]
[null,192,null,null,null,null,null,null,null,null,null,null,null,null,0,0]
[null,193,null,null,null,null,null,null,null,null,null,null,null,null,0,0]
[null,194,null,null,null,null,null,null,null,null,null,null,null,null,0,0]
[null,195,null,null,null,null,null,null,null,null,null,null,null,null,0,0]
[null,196,null,null,null,null,null,null,null,null,null,null,null,null,0,0]
[null,197,null,null,null,null,null,null,null,null,null,null,null,null,0,0]
[null,198,null,null,null,null,null,null,null,null,null,null,null,null,0,0]
[null,199,null,null,null,null,null,null,null,null,null,null,null,null,0,0]
[null,200,null,null,null,null,null,null,null,null,null,null,null,null,0,0]
[null,201,null,null,null,null,null,null,null,null,null,null,null,null,0,0]
[null,202,null,null,null,null,null,null,null,null,null,null,null,null,0,0]
[null,203,null,null,null,null,null,null,null,null,null,null,null,null,0,0]
[null,204,null,null,null,null,null,null,null,null,null,null,null,null,0,0]
[null,205,null,null,null,null,null,null,null,null,null,null,null,null,0,0]
[null,206,null,null,null,null,null,null,null,null,null,null,null,null,0,0]
[null,207,null,null,null,null,null,null,null,null,null,null,null,null,0,0]
[null,208,null,null,null,null,null,null,null,null,null,null,null,null,0,0]
[null,209,null,null,null,null,null,null,null,null,null,null,null,null,0,0]
[null,210,null,null,null,null,null,null,null,null,null,null,null,null,0,0]
[null,211,null,null,null,null,null,null,null,null,null,null,null,null,0,0]
[null,212,null,null,null,null,null,null,null,null,null,null,null,null,0,0]
[null,213,null,null,null,null,null,null,null,null,null,null,null,null,0,0]
[null,214,null,null,null,null,null,null,null,null,null,null,null,null,0,0]
[null,215,null,null,null,null,null,null,null,null,null,null,null,null,0,0]
[null,216,null,null,null,null,null,null,null,null,null,null,null,null,0,0]
[null,217,null,null,null,null,null,null,null,null,null,null,null,null,0,0]
[null,218,null,null,null,null,null,null,null,null,null,null,null,null,0,0]
[null,219,null,null,null,null,null,null,null,null,null,null,null,null,0,0]
[null,220,null,null,null,null,null,null,null,null,null,null,null,null,0,0]
[null,221,null,null,null,null,null,null,null,null,null,null,null,null,0,0]
[null,222,null,null,null,null,null,null,null,null,null,null,null,null,0,0]
[null,223,null,null,null,null,null,null,null,null,null,null,null,null,0,0]
[null,224,null,null,null,null,null,null,null,null,null,null,null,null,0,0]
[null,225,null,null,null,null,null,null,null,null,null,null,null,null,0,0]
[null,226,null,null,null,null,null,null,null,null,null,null,null,null,0,0]
[null,227,null,null,null,null,null,null,null,null,null,null,null,null,0,0]
[null,228,null,null,null,null,null,null,null,null,null,null,null,null,0,0]
[null,229,null,null,null,null,null,null,null,null,null,null,null,null,0,0]
[null,230,null,null,null,null,null,null,null,null,null,null,null,null,0,0]
[null,231,null,null,null,null,null,null,null,null,null,null,null,null,0,0]
[null,232,null,null,null,null,null,null,null,null,null,null,null,null,0,0]
[null,233,null,null,null,null,null,null,null,null,null,null,null,null,0,0]
[null,234,null,null,null,null,null,null,null,null,null,null,null,null,0,0]
[null,235,null,null,null,null,null,null,null,null,null,null,null,null,0,0]
[null,236,null,null,null,null,null,null,null,null,null,null,null,null,0,0]
[null,237,null,null,null,null,null,null,null,null,null,null,null,null,0,0]
[null,238,null,null,null,null,null,null,null,null,null,null,null,null,0,0]
[null,239,null,null,null,null,null,null,null,null,null,null,null,null,0,0]
[null,240,null,null,null,null,null,null,null,null,null,null,null,null,0,0]
[null,241,null,null,null,null,null,null,null,null,null,null,null,null,0,0]
[null,242,null,null,null,null,null,null,null,null,null,null,null,null,0,0]
[null,243,null,null,null,null,null,null,null,null,null,null,null,null,0,0]
[null,244,null,null,null,null,null,null,null,null,null,null,null,null,0,0]
[null,245,null,null,null,null,null,null,null,null,null,null,null,null,0,0]
[null,246,null,null,null,null,null,null,null,null,null,null,null,null,0,0]
[null,247,null,null,null,null,null,null,null,null,null,null,null,null,0,0]
[null,248,null,null,null,null,null,null,null,null,null,null,null,null,0,0]
[null,249,null,null,null,null,null,null,null,null,null,null,null,null,0,0]
[null,250,null,null,null,null,null,null,null,null,null,null,null,null,0,0]
[null,251,null,null,null,null,null,null,null,null,null,null,null,null,0,0]
[null,252,null,null,null,null,null,null,null,null,null,null,null,null,0,0]
[null,253,null,null,null,null,null,null,null,null,null,null,null,null,0,0]
[null,254,null,null,null,null,null,null,null,null,null,null,null,null,0,0]
[null,255,null,null,null,null,null,null,null,null,null,null,null,null,0,0]
[null,256,null,null,null,null,null,null,null,null,null,null,null,null,0,0]
[null,257,null,null,null,null,null,null,null,null,null,null,null,null,0,0]
[null,258,null,null,null,null,null,null,null,null,null,null,null,null,0,0]
[null,259,null,null,null,null,null,null,null,null,null,null,null,null,0,0]
[null,260,null,null,null,null,null,null,null,null,null,null,null,null,0,0]
[null,261,null,null,null,null,null,null,null,null,null,null,null,null,0,0]
[null,262,null,null,null,null,null,null,null,null,null,null,null,null,0,0]
[null,263,null,null,null,null,null,null,null,null,null,null,null,null,0,0]
[null,264,null,null,null,null,null,null,null,null,null,null,null,null,0,0]
[null,265,null,null,null,null,null,null,null,null,null,null,null,null,0,0]
[null,266,null,null,null,null,null,null,null,null,null,null,null,null,0,0]
[null,267,null,null,null,null,null,null,null,null,null,null,null,null,0,0]
[null,268,null,null,null,null,null,null,null,null,null,null,null,null,0,0]
[null,269,null,null,null,null,null,null,null,null,null,null,null,null,0,0]
[null,270,null,null,null,null,null,null,null,null,null,null,null,null,0,0]
[null,271,null,null,null,null,null,null,null,null,null,null,null,null,0,0]
[null,272,null,null,null,null,null,null,null,null,null,null,null,null,0,0]
[null,273,null,null,null,null,null,null,null,null,null,null,null,null,0,0]
[null,274,null,null,null,null,null,null,null,null,null,null,null,null,0,0]
[null,275,null,null,null,null,null,null,null,null,null,null,null,null,0,0]
[null,276,null,null,null,null,null,null,null,null,null,null,null,null,0,0]
[null,277,null,null,null,null,null,null,null,null,null,null,null,null,0,0]
[null,278,null,null,null,null,null,null,null,null,null,null,null,null,0,0]
[null,279,null,null,null,null,null,null,null,null,null,null,null,null,0,0]
[null,280,null,null,null,null,null,null,null,null,null,null,null,null,0,0]
[null,281,null,null,null,null,null,null,null,null,null,null,null,null,0,0]
[null,282,null,null,null,null,null,null,null,null,null,null,null,null,0,0]
[null,283,null,null,null,null,null,null,null,null,null,null,null,null,0,0]
[null,284,null,null,null,null,null,null,null,null,null,null,null,null,0,0]
[null,285,null,null,null,null,null,null,null,null,null,null,null,null,0,0]
[null,286,null,null,null,null,null,null,null,null,null,null,null,null,0,0]
[null,287,null,null,null,null,null,null,null,null,null,null,null,null,0,0]
[null,288,null,null,null,null,null,null,null,null,null,null,null,null,0,0]
[null,289,null,null,null,null,null,null,null,null,null,null,null,null,0,0]
[null,290,null,null,null,null,null,null,null,null,null,null,null,null,0,0]
[null,291,null,null,null,null,null,null,null,null,null,null,null,null,0,0]
[null,292,null,null,null,null,null,null,null,null,null,null,null,null,0,0]
[null,293,null,null,null,null,null,null,null,null,null,null,null,null,0,0]
[null,294,null,null,null,null,null,null,null,null,null,null,null,null,0,0]
[null,295,null,null,null,null,null,null,null,null,null,null,null,null,0,0]
[null,296,null,null,null,null,null,null,null,null,null,null,null,null,0,0]
[null,297,null,null,null,null,null,null,null,null,null,null,null,null,0,0]
[null,298,null,null,null,null,null,null,null,null,null,null,null,null,0,0]
[null,299,null,null,null,null,null,null,null,null,null,null,null,null,0,0]
[null,300,null,null,null,null,null,null,null,null,null,null,null,null,0,0]
[null,301,null,null,null,null,null,null,null,null,null,null,null,null,0,0]
[null,302,null,null,null,null,null,null,null,null,null,null,null,null,0,0]
[null,303,null,null,null,null,null,null,null,null,null,null,null,null,0,0]
[null,304,null,null,null,null,null,null,null,null,null,null,null,null,0,0]
[null,305,null,null,null,null,null,null,null,null,null,null,null,null,0,0]
[null,306,null,null,null,null,null,null,null,null,null,null,null,null,0,0]
[null,307,null,null,null,null,null,null,null,null,null,null,null,null,0,0]
[null,308,null,null,null,null,null,null,null,null,null,null,null,null,0,0]
[null,309,null,null,null,null,null,null,null,null,null,null,null,null,0,0]
[null,310,null,null,null,null,null,null,null,null,null,null,null,null,0,0]
[null,311,null,null,null,null,null,null,null,null,null,null,null,null,0,0]
[null,312,null,null,null,null,null,null,null,null,null,null,null,null,0,0]
[null,313,null,null,null,null,null,null,null,null,null,null,null,null,0,0]
[null,314,null,null,null,null,null,null,null,null,null,null,null,null,0,0]
[null,315,null,null,null,null,null,null,null,null,null,null,null,null,0,0]
[null,316,null,null,null,null,null,null,null,null,null,null,null,null,0,0]
[null,317,null,null,null,null,null,null,null,null,null,null,null,null,0,0]
[null,318,null,null,null,null,null,null,null,null,null,null,null,null,0,0]
[null,319,null,null,null,null,null,null,null,null,null,null,null,null,0,0]
[null,320,null,null,null,null,null,null,null,null,null,null,null,null,0,0]
[null,321,null,null,null,null,null,null,null,null,null,null,null,null,0,0]
[null,322,null,null,null,null,null,null,null,null,null,null,null,null,0,0]
[null,323,null,null,null,null,null,null,null,null,null,null,null,null,0,0]
[null,324,null,null,null,null,null,null,null,null,null,null,null,null,0,0]
[null,325,null,null,null,null,null,null,null,null,null,null,null,null,0,0]
[null,326,null,null,null,null,null,null,null,null,null,null,null,null,0,0]
[null,327,null,null,null,null,null,null,null,null,null,null,null,null,0,0]
[null,328,null,null,null,null,null,null,null,null,null,null,null,null,0,0]
[null,329,null,null,null,null,null,null,null,null,null,null,null,null,0,0]
[null,330,null,null,null,null,null,null,null,null,null,null,null,null,0,0]
[null,331,null,null,null,null,null,null,null,null,null,null,null,null,0,0]
[null,332,null,null,null,null,null,null,null,null,null,null,null,null,0,0]
[null,333,null,null,null,null,null,null,null,null,null,null,null,null,0,0]
[null,334,null,null,null,null,null,null,null,null,null,null,null,null,0,0]
[null,335,null,null,null,null,null,null,null,null,null,null,null,null,0,0]
[null,336,null,null,null,null,null,null,null,null,null,null,null,null,0,0]
[null,337,null,null,null,null,null,null,null,null,null,null,null,null,0,0]
[null,338,null,null,null,null,null,null,null,null,null,null,null,null,0,0]
[null,339,null,null,null,null,null,null,null,null,null,null,null,null,0,0]
[null,340,null,null,null,null,null,null,null,null,null,null,null,null,0,0]
[null,341,null,null,null,null,null,null,null,null,null,null,null,null,0,0]
[null,342,null,null,null,null,null,null,null,null,null,null,null,null,0,0]
[null,343,null,null,null,null,null,null,null,null,null,null,null,null,0,0]
[null,344,null,null,null,null,null,null,null,null,null,null,null,null,0,0]
[null,345,null,null,null,null,null,null,null,null,null,null,null,null,0,0]
[null,346,null,null,null,null,null,null,null,null,null,null,null,null,0,0]
[null,347,null,null,null,null,null,null,null,null,null,null,null,null,0,0]
[null,348,null,null,null,null,null,null,null,null,null,null,null,null,0,0]
[null,349,null,null,null,null,null,null,null,null,null,null,null,null,0,0]
[null,350,null,null,null,null,null,null,null,null,null,null,null,null,0,0]
[null,351,null,null,null,null,null,null,null,null,null,null,null,null,0,0]
[null,352,null,null,null,null,null,null,null,null,null,null,null,null,0,0]
[null,353,null,null,null,null,null,null,null,null,null,null,null,null,0,0]
[null,354,null,null,null,null,null,null,null,null,null,null,null,null,0,0]
[null,355,null,null,null,null,null,null,null,null,null,null,null,null,0,0]
[null,356,null,null,null,null,null,null,null,null,null,null,null,null,0,0]
[null,357,null,null,null,null,null,null,null,null,null,null,null,null,0,0]
[null,358,null,null,null,null,null,null,null,null,null,null,null,null,0,0]
[null,359,null,null,null,null,null,null,null,null,null,null,null,null,0,0]
[null,360,null,null,null,null,null,null,null,null,null,null,null,null,0,0]
[null,361,null,null,null,null,null,null,null,null,null,null,null,null,0,0]
[null,362,null,null,null,null,null,null,null,null,null,null,null,null,0,0]
[null,363,null,null,null,null,null,null,null,null,null,null,null,null,0,0]
[null,364,null,null,null,null,null,null,null,null,null,null,null,null,0,0]
[null,365,null,null,null,null,null,null,null,null,null,null,null,null,0,0]
[null,366,null,null,null,null,null,null,null,null,null,null,null,null,0,0]
[null,367,null,null,null,null,null,null,null,null,null,null,null,null,0,0]
[null,368,null,null,null,null,null,null,null,null,null,null,null,null,0,0]
[null,369,null,null,null,null,null,null,null,null,null,null,null,null,0,0]
[null,370,null,null,null,null,null,null,null,null,null,null,null,null,0,0]
[null,371,null,null,null,null,null,null,null,null,null,null,null,null,0,0]
[null,372,null,null,null,null,null,null,null,null,null,null,null,null,0,0]
[null,373,null,null,null,null,null,null,null,null,null,null,null,null,0,0]
[null,374,null,null,null,null,null,null,null,null,null,null,null,null,0,0]
[null,375,null,null,null,null,null,null,null,null,null,null,null,null,0,0]
[null,376,null,null,null,null,null,null,null,null,null,null,null,null,0,0]
[null,377,null,null,null,null,null,null,null,null,null,null,null,null,0,0]
[null,378,null,null,null,null,null,null,null,null,null,null,null,null,0,0]
[null,379,null,null,null,null,null,null,null,null,null,null,null,null,0,0]
[null,380,null,null,null,null,null,null,null,null,null,null,null,null,0,0]
[null,381,null,null,null,null,null,null,null,null,null,null,null,null,0,0]
[null,382,null,null,null,null,null,null,null,null,null,null,null,null,0,0]
[null,383,null,null,null,null,null,null,null,null,null,null,null,null,0,0]
[null,384,null,null,null,null,null,null,null,null,null,null,null,null,0,0]
[null,385,null,null,null,null,null,null,null,null,null,null,null,null,0,0]
[null,386,null,null,null,null,null,null,null,null,null,null,null,null,0,0]
[null,387,null,null,null,null,null,null,null,null,null,null,null,null,0,0]
[null,388,null,null,null,null,null,null,null,null,null,null,null,null,0,0]
[null,389,null,null,null,null,null,null,null,null,null,null,null,null,0,0]
[null,390,null,null,null,null,null,null,null,null,null,null,null,null,0,0]
[null,391,null,null,null,null,null,null,null,null,null,null,null,null,0,0]
[null,392,null,null,null,null,null,null,null,null,null,null,null,null,0,0]
[null,393,null,null,null,null,null,null,null,null,null,null,null,null,0,0]
[null,394,null,null,null,null,null,null,null,null,null,null,null,null,0,0]
[null,395,null,null,null,null,null,null,null,null,null,null,null,null,0,0]
[null,396,null,null,null,null,null,null,null,null,null,null,null,null,0,0]
[null,397,null,null,null,null,null,null,null,null,null,null,null,null,0,0]
[null,398,null,null,null,null,null,null,null,null,null,null,null,null,0,0]
[null,399,null,null,null,null,null,null,null,null,null,null,null,null,0,0]
[null,400,null,null,null,null,null,null,null,null,null,null,null,null,0,0]
[null,401,null,null,null,null,null,null,null,null,null,null,null,null,0,0]
[null,402,null,null,null,null,null,null,null,null,null,null,null,null,0,0]
[null,403,null,null,null,null,null,null,null,null,null,null,null,null,0,0]
[null,404,null,null,null,null,null,null,null,null,null,null,null,null,0,0]
[null,405,null,null,null,null,null,null,null,null,null,null,null,null,0,0]
[null,406,null,null,null,null,null,null,null,null,null,null,null,null,0,0]
[null,407,null,null,null,null,null,null,null,null,null,null,null,null,0,0]
[null,408,null,null,null,null,null,null,null,null,null,null,null,null,0,0]
[null,409,null,null,null,null,null,null,null,null,null,null,null,null,0,0]
[null,410,null,null,null,null,null,null,null,null,null,null,null,null,0,0]
[null,411,null,null,null,null,null,null,null,null,null,null,null,null,0,0]
[null,412,null,null,null,null,null,null,null,null,null,null,null,null,0,0]
[null,413,null,null,null,null,null,null,null,null,null,null,null,null,0,0]
[null,414,null,null,null,null,null,null,null,null,null,null,null,null,0,0]
[null,415,null,null,null,null,null,null,null,null,null,null,null,null,0,0]
[null,416,null,null,null,null,null,null,null,null,null,null,null,null,0,0]
[null,417,null,null,null,null,null,null,null,null,null,null,null,null,0,0]
[null,418,null,null,null,null,null,null,null,null,null,null,null,null,0,0]
[null,419,null,null,null,null,null,null,null,null,null,null,null,null,0,0]
[null,420,null,null,null,null,null,null,null,null,null,null,null,null,0,0]
[null,421,null,null,null,null,null,null,null,null,null,null,null,null,0,0]
[null,422,null,null,null,null,null,null,null,null,null,null,null,null,0,0]
[null,423,null,null,null,null,null,null,null,null,null,null,null,null,0,0]
[null,424,null,null,null,null,null,null,null,null,null,null,null,null,0,0]
[null,425,null,null,null,null,null,null,null,null,null,null,null,null,0,0]
[null,426,null,null,null,null,null,null,null,null,null,null,null,null,0,0]
[null,427,null,null,null,null,null,null,null,null,null,null,null,null,0,0]
[null,428,null,null,null,null,null,null,null,null,null,null,null,null,0,0]
[null,429,null,null,null,null,null,null,null,null,null,null,null,null,0,0]
[null,430,null,null,null,null,null,null,null,null,null,null,null,null,0,0]
[null,431,null,null,null,null,null,null,null,null,null,null,null,null,0,0]
[null,432,null,null,null,null,null,null,null,null,null,null,null,null,0,0]
[null,433,null,null,null,null,null,null,null,null,null,null,null,null,0,0]
[null,434,null,null,null,null,null,null,null,null,null,null,null,null,0,0]
[null,435,null,null,null,null,null,null,null,null,null,null,null,null,0,0]
[null,436,null,null,null,null,null,null,null,null,null,null,null,null,0,0]
[null,437,null,null,null,null,null,null,null,null,null,null,null,null,0,0]
[null,438,null,null,null,null,null,null,null,null,null,null,null,null,0,0]
[null,439,null,null,null,null,null,null,null,null,null,null,null,null,0,0]
[null,440,null,null,null,null,null,null,null,null,null,null,null,null,0,0]
[null,441,null,null,null,null,null,null,null,null,null,null,null,null,0,0]
[null,442,null,null,null,null,null,null,null,null,null,null,null,null,0,0]
[null,443,null,null,null,null,null,null,null,null,null,null,null,null,0,0]
[null,444,null,null,null,null,null,null,null,null,null,null,null,null,0,0]
[null,445,null,null,null,null,null,null,null,null,null,null,null,null,0,0]
[null,446,null,null,null,null,null,null,null,null,null,null,null,null,0,0]
[null,447,null,null,null,null,null,null,null,null,null,null,null,null,0,0]
[null,448,null,null,null,null,null,null,null,null,null,null,null,null,0,0]
[null,449,null,null,null,null,null,null,null,null,null,null,null,null,0,0]
[null,450,null,null,null,null,null,null,null,null,null,null,null,null,0,0]
[null,451,null,null,null,null,null,null,null,null,null,null,null,null,0,0]
[null,452,null,null,null,null,null,null,null,null,null,null,null,null,0,0]
[null,453,null,null,null,null,null,null,null,null,null,null,null,null,0,0]
[null,454,null,null,null,null,null,null,null,null,null,null,null,null,0,0]
[null,455,null,null,null,null,null,null,null,null,null,null,null,null,0,0]
[null,456,null,null,null,null,null,null,null,null,null,null,null,null,0,0]
[null,457,null,null,null,null,null,null,null,null,null,null,null,null,0,0]
[null,458,null,null,null,null,null,null,null,null,null,null,null,null,0,0]
[null,459,null,null,null,null,null,null,null,null,null,null,null,null,0,0]
[null,460,null,null,null,null,null,null,null,null,null,null,null,null,0,0]
[null,461,null,null,null,null,null,null,null,null,null,null,null,null,0,0]
[null,462,null,null,null,null,null,null,null,null,null,null,null,null,0,0]
[null,463,null,null,null,null,null,null,null,null,null,null,null,null,0,0]
[null,464,null,null,null,null,null,null,null,null,null,null,null,null,0,0]
[null,465,null,null,null,null,null,null,null,null,null,null,null,null,0,0]
[null,466,null,null,null,null,null,null,null,null,null,null,null,null,0,0]
[null,467,null,null,null,null,null,null,null,null,null,null,null,null,0,0]
[null,468,null,null,null,null,null,null,null,null,null,null,null,null,0,0]
[null,469,null,null,null,null,null,null,null,null,null,null,null,null,0,0]
[null,470,null,null,null,null,null,null,null,null,null,null,null,null,0,0]
[null,471,null,null,null,null,null,null,null,null,null,null,null,null,0,0]
[null,472,null,null,null,null,null,null,null,null,null,null,null,null,0,0]
[null,473,null,null,null,null,null,null,null,null,null,null,null,null,0,0]
[null,474,null,null,null,null,null,null,null,null,null,null,null,null,0,0]
[null,475,null,null,null,null,null,null,null,null,null,null,null,null,0,0]
[null,476,null,null,null,null,null,null,null,null,null,null,null,null,0,0]
[null,477,null,null,null,null,null,null,null,null,null,null,null,null,0,0]
[null,478,null,null,null,null,null,null,null,null,null,null,null,null,0,0]
[null,479,null,null,null,null,null,null,null,null,null,null,null,null,0,0]
[null,480,null,null,null,null,null,null,null,null,null,null,null,null,0,0]
[null,481,null,null,null,null,null,null,null,null,null,null,null,null,0,0]
[null,482,null,null,null,null,null,null,null,null,null,null,null,null,0,0]
[null,483,null,null,null,null,null,null,null,null,null,null,null,null,0,0]
[null,484,null,null,null,null,null,null,null,null,null,null,null,null,0,0]
[null,485,null,null,null,null,null,null,null,null,null,null,null,null,0,0]
[null,486,null,null,null,null,null,null,null,null,null,null,null,null,0,0]
[null,487,null,null,null,null,null,null,null,null,null,null,null,null,0,0]
[null,488,null,null,null,null,null,null,null,null,null,null,null,null,0,0]
[null,489,null,null,null,null,null,null,null,null,null,null,null,null,0,0]
[null,490,null,null,null,null,null,null,null,null,null,null,null,null,0,0]
[null,491,null,null,null,null,null,null,null,null,null,null,null,null,0,0]
[null,492,null,null,null,null,null,null,null,null,null,null,null,null,0,0]
[null,493,null,null,null,null,null,null,null,null,null,null,null,null,0,0]
[null,494,null,null,null,null,null,null,null,null,null,null,null,null,0,0]
[null,495,null,null,null,null,null,null,null,null,null,null,null,null,0,0]
[null,496,null,null,null,null,null,null,null,null,null,null,null,null,0,0]
[null,497,null,null,null,null,null,null,null,null,null,null,null,null,0,0]
[null,498,null,null,null,null,null,null,null,null,null,null,null,null,0,0]
[null,499,null,null,null,null,null,null,null,null,null,null,null,null,0,0]
[null,500,null,null,null,null,null,null,null,null,null,null,null,null,0,0]

{"sheet":"Product info","index":2,"n_rows":502,"n_cols":32,"rows_kept":502,"cut":false,"hidden":false,"merged":[]}
[null,null,null,null,null,"www.bar-i.com"]
[null,"#","Enter product name","Category","Price ($)","Per how many? ",null,null,null,null,null,null,null,null,null,null,null,null,null,null,null,null,null,null,null,null,"Categories","Purchase unit","Purchase unit (long)",null,null,"Line item quantity"]
[null,1,"Bottle Bud","Bottle/ can beer",19,"24/ case of twenty four (e.g. 24 pack of cans)",null,null,null,null,null,null,null,null,null,null,null,null,null,null,null,null,null,null,null,null,"Draft beer",1,"1 / single item (e.g. single keg or bottle)",null,null,{"$f":"INDEX($AB$3:$AB$9,MATCH(F3,$AC$3:$AC$9,0),1)","v":24}]
[null,2,"Keg Coors Light","Draft beer",65,"12/ case of twelve (e.g. 12 bottles of wine or beer)",null,null,null,null,null,null,null,null,null,null,null,null,null,null,null,null,null,null,null,null,"Bottle/ can beer",4,"4/ case of four (e.g. case of 4 boxes of wine)",null,null,{"$f":"INDEX($AB$3:$AB$9,MATCH(F4,$AC$3:$AC$9,0),1)","v":12}]
[null,3,"Well Vodka","Liquor",6,"1 / single item (e.g. single keg or bottle)",null,null,null,null,null,null,null,null,null,null,null,null,null,null,null,null,null,null,null,null,"Liquor",6,"6 / case of six (e.g. 6 cans, 6 bottle case of wine)",null,null,1]
[null,4,"House White","Wine",60,"12/ case of twelve (e.g. 12 bottles of wine or beer)",null,null,null,null,null,null,null,null,null,null,null,null,null,null,null,null,null,null,null,null,"Wine",12,"12/ case of twelve (e.g. 12 bottles of wine or beer)",null,null,12]
[null,5,"Mixer","Misc",10,"1 / single item (e.g. single keg or bottle)",null,null,null,null,null,null,null,null,null,null,null,null,null,null,null,null,null,null,null,null,"Misc",24,"24/ case of twenty four (e.g. 24 pack of cans)",null,null,1]
[null,6,null,null,null,null,null,null,null,null,null,null,null,null,null,null,null,null,null,null,null,null,null,null,null,null,null,30,"30/ case of thirty (e.g. 30 pack of cans)",null,null,{"$error":"#N/A"}]
[null,7,null,null,null,null,null,null,null,null,null,null,null,null,null,null,null,null,null,null,null,null,null,null,null,null,null,1,"Other (enter price of single vessel or unit)",null,null,{"$error":"#N/A"}]
[null,8,null,null,null,null,null,null,null,null,null,null,null,null,null,null,null,null,null,null,null,null,null,null,null,null,null,null,null,null,null,{"$error":"#N/A"}]
[null,9,null,null,null,null,null,null,null,null,null,null,null,null,null,null,null,null,null,null,null,null,null,null,null,null,null,null,null,null,null,{"$error":"#N/A"}]
[null,10,null,null,null,null,null,null,null,null,null,null,null,null,null,null,null,null,null,null,null,null,null,null,null,null,null,null,null,null,null,{"$error":"#N/A"}]
[null,11,null,null,null,null,null,null,null,null,null,null,null,null,null,null,null,null,null,null,null,null,null,null,null,null,null,null,null,null,null,{"$error":"#N/A"}]
[null,12,null,null,null,null,null,null,null,null,null,null,null,null,null,null,null,null,null,null,null,null,null,null,null,null,null,null,null,null,null,{"$error":"#N/A"}]
[null,13,null,null,null,null,null,null,null,null,null,null,null,null,null,null,null,null,null,null,null,null,null,null,null,null,null,null,null,null,null,{"$error":"#N/A"}]
[null,14,null,null,null,null,null,null,null,null,null,null,null,null,null,null,null,null,null,null,null,null,null,null,null,null,null,null,null,null,null,{"$error":"#N/A"}]
[null,15,null,null,null,null,null,null,null,null,null,null,null,null,null,null,null,null,null,null,null,null,null,null,null,null,null,null,null,null,null,{"$error":"#N/A"}]
[null,16,null,null,null,null,null,null,null,null,null,null,null,null,null,null,null,null,null,null,null,null,null,null,null,null,null,null,null,null,null,{"$error":"#N/A"}]
[null,17,null,null,null,null,null,null,null,null,null,null,null,null,null,null,null,null,null,null,null,null,null,null,null,null,null,null,null,null,null,{"$error":"#N/A"}]
[null,18,null,null,null,null,null,null,null,null,null,null,null,null,null,null,null,null,null,null,null,null,null,null,null,null,null,null,null,null,null,{"$error":"#N/A"}]
[null,19,null,null,null,null,null,null,null,null,null,null,null,null,null,null,null,null,null,null,null,null,null,null,null,null,null,null,null,null,null,{"$error":"#N/A"}]
[null,20,null,null,null,null,null,null,null,null,null,null,null,null,null,null,null,null,null,null,null,null,null,null,null,null,null,null,null,null,null,{"$error":"#N/A"}]
[null,21,null,null,null,null,null,null,null,null,null,null,null,null,null,null,null,null,null,null,null,null,null,null,null,null,null,null,null,null,null,{"$error":"#N/A"}]
[null,22,null,null,null,null,null,null,null,null,null,null,null,null,null,null,null,null,null,null,null,null,null,null,null,null,null,null,null,null,null,{"$error":"#N/A"}]
[null,23,null,null,null,null,null,null,null,null,null,null,null,null,null,null,null,null,null,null,null,null,null,null,null,null,null,null,null,null,null,{"$error":"#N/A"}]
[null,24,null,null,null,null,null,null,null,null,null,null,null,null,null,null,null,null,null,null,null,null,null,null,null,null,null,null,null,null,null,{"$error":"#N/A"}]
[null,25,null,null,null,null,null,null,null,null,null,null,null,null,null,null,null,null,null,null,null,null,null,null,null,null,null,null,null,null,null,{"$error":"#N/A"}]
[null,26,null,null,null,null,null,null,null,null,null,null,null,null,null,null,null,null,null,null,null,null,null,null,null,null,null,null,null,null,null,{"$error":"#N/A"}]
[null,27,null,null,null,null,null,null,null,null,null,null,null,null,null,null,null,null,null,null,null,null,null,null,null,null,null,null,null,null,null,{"$error":"#N/A"}]
[null,28,null,null,null,null,null,null,null,null,null,null,null,null,null,null,null,null,null,null,null,null,null,null,null,null,null,null,null,null,null,{"$error":"#N/A"}]
[null,29,null,null,null,null,null,null,null,null,null,null,null,null,null,null,null,null,null,null,null,null,null,null,null,null,null,null,null,null,null,{"$error":"#N/A"}]
[null,30,null,null,null,null,null,null,null,null,null,null,null,null,null,null,null,null,null,null,null,null,null,null,null,null,null,null,null,null,null,{"$error":"#N/A"}]
[null,31,null,null,null,null,null,null,null,null,null,null,null,null,null,null,null,null,null,null,null,null,null,null,null,null,null,null,null,null,null,{"$error":"#N/A"}]
[null,32,null,null,null,null,null,null,null,null,null,null,null,null,null,null,null,null,null,null,null,null,null,null,null,null,null,null,null,null,null,{"$error":"#N/A"}]
[null,33,null,null,null,null,null,null,null,null,null,null,null,null,null,null,null,null,null,null,null,null,null,null,null,null,null,null,null,null,null,{"$error":"#N/A"}]
[null,34,null,null,null,null,null,null,null,null,null,null,null,null,null,null,null,null,null,null,null,null,null,null,null,null,null,null,null,null,null,{"$error":"#N/A"}]
[null,35,null,null,null,null,null,null,null,null,null,null,null,null,null,null,null,null,null,null,null,null,null,null,null,null,null,null,null,null,null,{"$error":"#N/A"}]
[null,36,null,null,null,null,null,null,null,null,null,null,null,null,null,null,null,null,null,null,null,null,null,null,null,null,null,null,null,null,null,{"$error":"#N/A"}]
[null,37,null,null,null,null,null,null,null,null,null,null,null,null,null,null,null,null,null,null,null,null,null,null,null,null,null,null,null,null,null,{"$error":"#N/A"}]
[null,38,null,null,null,null,null,null,null,null,null,null,null,null,null,null,null,null,null,null,null,null,null,null,null,null,null,null,null,null,null,{"$error":"#N/A"}]
[null,39,null,null,null,null,null,null,null,null,null,null,null,null,null,null,null,null,null,null,null,null,null,null,null,null,null,null,null,null,null,{"$error":"#N/A"}]
[null,40,null,null,null,null,null,null,null,null,null,null,null,null,null,null,null,null,null,null,null,null,null,null,null,null,null,null,null,null,null,{"$error":"#N/A"}]
[null,41,null,null,null,null,null,null,null,null,null,null,null,null,null,null,null,null,null,null,null,null,null,null,null,null,null,null,null,null,null,{"$error":"#N/A"}]
[null,42,null,null,null,null,null,null,null,null,null,null,null,null,null,null,null,null,null,null,null,null,null,null,null,null,null,null,null,null,null,{"$error":"#N/A"}]
[null,43,null,null,null,null,null,null,null,null,null,null,null,null,null,null,null,null,null,null,null,null,null,null,null,null,null,null,null,null,null,{"$error":"#N/A"}]
[null,44,null,null,null,null,null,null,null,null,null,null,null,null,null,null,null,null,null,null,null,null,null,null,null,null,null,null,null,null,null,{"$error":"#N/A"}]
[null,45,null,null,null,null,null,null,null,null,null,null,null,null,null,null,null,null,null,null,null,null,null,null,null,null,null,null,null,null,null,{"$error":"#N/A"}]
[null,46,null,null,null,null,null,null,null,null,null,null,null,null,null,null,null,null,null,null,null,null,null,null,null,null,null,null,null,null,null,{"$error":"#N/A"}]
[null,47,null,null,null,null,null,null,null,null,null,null,null,null,null,null,null,null,null,null,null,null,null,null,null,null,null,null,null,null,null,{"$error":"#N/A"}]
[null,48,null,null,null,null,null,null,null,null,null,null,null,null,null,null,null,null,null,null,null,null,null,null,null,null,null,null,null,null,null,{"$error":"#N/A"}]
[null,49,null,null,null,null,null,null,null,null,null,null,null,null,null,null,null,null,null,null,null,null,null,null,null,null,null,null,null,null,null,{"$error":"#N/A"}]
[null,50,null,null,null,null,null,null,null,null,null,null,null,null,null,null,null,null,null,null,null,null,null,null,null,null,null,null,null,null,null,{"$error":"#N/A"}]
[null,51,null,null,null,null,null,null,null,null,null,null,null,null,null,null,null,null,null,null,null,null,null,null,null,null,null,null,null,null,null,{"$error":"#N/A"}]
[null,52,null,null,null,null,null,null,null,null,null,null,null,null,null,null,null,null,null,null,null,null,null,null,null,null,null,null,null,null,null,{"$error":"#N/A"}]
[null,53,null,null,null,null,null,null,null,null,null,null,null,null,null,null,null,null,null,null,null,null,null,null,null,null,null,null,null,null,null,{"$error":"#N/A"}]
[null,54,null,null,null,null,null,null,null,null,null,null,null,null,null,null,null,null,null,null,null,null,null,null,null,null,null,null,null,null,null,{"$error":"#N/A"}]
[null,55,null,null,null,null,null,null,null,null,null,null,null,null,null,null,null,null,null,null,null,null,null,null,null,null,null,null,null,null,null,{"$error":"#N/A"}]
[null,56,null,null,null,null,null,null,null,null,null,null,null,null,null,null,null,null,null,null,null,null,null,null,null,null,null,null,null,null,null,{"$error":"#N/A"}]
[null,57,null,null,null,null,null,null,null,null,null,null,null,null,null,null,null,null,null,null,null,null,null,null,null,null,null,null,null,null,null,{"$error":"#N/A"}]
[null,58,null,null,null,null,null,null,null,null,null,null,null,null,null,null,null,null,null,null,null,null,null,null,null,null,null,null,null,null,null,{"$error":"#N/A"}]
[null,59,null,null,null,null,null,null,null,null,null,null,null,null,null,null,null,null,null,null,null,null,null,null,null,null,null,null,null,null,null,{"$error":"#N/A"}]
[null,60,null,null,null,null,null,null,null,null,null,null,null,null,null,null,null,null,null,null,null,null,null,null,null,null,null,null,null,null,null,{"$error":"#N/A"}]
[null,61,null,null,null,null,null,null,null,null,null,null,null,null,null,null,null,null,null,null,null,null,null,null,null,null,null,null,null,null,null,{"$error":"#N/A"}]
[null,62,null,null,null,null,null,null,null,null,null,null,null,null,null,null,null,null,null,null,null,null,null,null,null,null,null,null,null,null,null,{"$error":"#N/A"}]
[null,63,null,null,null,null,null,null,null,null,null,null,null,null,null,null,null,null,null,null,null,null,null,null,null,null,null,null,null,null,null,{"$error":"#N/A"}]
[null,64,null,null,null,null,null,null,null,null,null,null,null,null,null,null,null,null,null,null,null,null,null,null,null,null,null,null,null,null,null,{"$error":"#N/A"}]
[null,65,null,null,null,null,null,null,null,null,null,null,null,null,null,null,null,null,null,null,null,null,null,null,null,null,null,null,null,null,null,{"$error":"#N/A"}]
[null,66,null,null,null,null,null,null,null,null,null,null,null,null,null,null,null,null,null,null,null,null,null,null,null,null,null,null,null,null,null,{"$f":"INDEX($AB$3:$AB$9,MATCH(F68,$AC$3:$AC$9,0),1)","v":{"$error":"#N/A"}}]
[null,67,null,null,null,null,null,null,null,null,null,null,null,null,null,null,null,null,null,null,null,null,null,null,null,null,null,null,null,null,null,{"$error":"#N/A"}]
[null,68,null,null,null,null,null,null,null,null,null,null,null,null,null,null,null,null,null,null,null,null,null,null,null,null,null,null,null,null,null,{"$error":"#N/A"}]
[null,69,null,null,null,null,null,null,null,null,null,null,null,null,null,null,null,null,null,null,null,null,null,null,null,null,null,null,null,null,null,{"$error":"#N/A"}]
[null,70,null,null,null,null,null,null,null,null,null,null,null,null,null,null,null,null,null,null,null,null,null,null,null,null,null,null,null,null,null,{"$error":"#N/A"}]
[null,71,null,null,null,null,null,null,null,null,null,null,null,null,null,null,null,null,null,null,null,null,null,null,null,null,null,null,null,null,null,{"$error":"#N/A"}]
[null,72,null,null,null,null,null,null,null,null,null,null,null,null,null,null,null,null,null,null,null,null,null,null,null,null,null,null,null,null,null,{"$error":"#N/A"}]
[null,73,null,null,null,null,null,null,null,null,null,null,null,null,null,null,null,null,null,null,null,null,null,null,null,null,null,null,null,null,null,{"$error":"#N/A"}]
[null,74,null,null,null,null,null,null,null,null,null,null,null,null,null,null,null,null,null,null,null,null,null,null,null,null,null,null,null,null,null,{"$error":"#N/A"}]
[null,75,null,null,null,null,null,null,null,null,null,null,null,null,null,null,null,null,null,null,null,null,null,null,null,null,null,null,null,null,null,{"$error":"#N/A"}]
[null,76,null,null,null,null,null,null,null,null,null,null,null,null,null,null,null,null,null,null,null,null,null,null,null,null,null,null,null,null,null,{"$error":"#N/A"}]
[null,77,null,null,null,null,null,null,null,null,null,null,null,null,null,null,null,null,null,null,null,null,null,null,null,null,null,null,null,null,null,{"$error":"#N/A"}]
[null,78,null,null,null,null,null,null,null,null,null,null,null,null,null,null,null,null,null,null,null,null,null,null,null,null,null,null,null,null,null,{"$error":"#N/A"}]
[null,79,null,null,null,null,null,null,null,null,null,null,null,null,null,null,null,null,null,null,null,null,null,null,null,null,null,null,null,null,null,{"$error":"#N/A"}]
[null,80,null,null,null,null,null,null,null,null,null,null,null,null,null,null,null,null,null,null,null,null,null,null,null,null,null,null,null,null,null,{"$error":"#N/A"}]
[null,81,null,null,null,null,null,null,null,null,null,null,null,null,null,null,null,null,null,null,null,null,null,null,null,null,null,null,null,null,null,{"$error":"#N/A"}]
[null,82,null,null,null,null,null,null,null,null,null,null,null,null,null,null,null,null,null,null,null,null,null,null,null,null,null,null,null,null,null,{"$error":"#N/A"}]
[null,83,null,null,null,null,null,null,null,null,null,null,null,null,null,null,null,null,null,null,null,null,null,null,null,null,null,null,null,null,null,{"$error":"#N/A"}]
[null,84,null,null,null,null,null,null,null,null,null,null,null,null,null,null,null,null,null,null,null,null,null,null,null,null,null,null,null,null,null,{"$error":"#N/A"}]
[null,85,null,null,null,null,null,null,null,null,null,null,null,null,null,null,null,null,null,null,null,null,null,null,null,null,null,null,null,null,null,{"$error":"#N/A"}]
[null,86,null,null,null,null,null,null,null,null,null,null,null,null,null,null,null,null,null,null,null,null,null,null,null,null,null,null,null,null,null,{"$error":"#N/A"}]
[null,87,null,null,null,null,null,null,null,null,null,null,null,null,null,null,null,null,null,null,null,null,null,null,null,null,null,null,null,null,null,{"$error":"#N/A"}]
[null,88,null,null,null,null,null,null,null,null,null,null,null,null,null,null,null,null,null,null,null,null,null,null,null,null,null,null,null,null,null,{"$error":"#N/A"}]
[null,89,null,null,null,null,null,null,null,null,null,null,null,null,null,null,null,null,null,null,null,null,null,null,null,null,null,null,null,null,null,{"$error":"#N/A"}]
[null,90,null,null,null,null,null,null,null,null,null,null,null,null,null,null,null,null,null,null,null,null,null,null,null,null,null,null,null,null,null,{"$error":"#N/A"}]
[null,91,null,null,null,null,null,null,null,null,null,null,null,null,null,null,null,null,null,null,null,null,null,null,null,null,null,null,null,null,null,{"$error":"#N/A"}]
[null,92,null,null,null,null,null,null,null,null,null,null,null,null,null,null,null,null,null,null,null,null,null,null,null,null,null,null,null,null,null,{"$error":"#N/A"}]
[null,93,null,null,null,null,null,null,null,null,null,null,null,null,null,null,null,null,null,null,null,null,null,null,null,null,null,null,null,null,null,{"$error":"#N/A"}]
[null,94,null,null,null,null,null,null,null,null,null,null,null,null,null,null,null,null,null,null,null,null,null,null,null,null,null,null,null,null,null,{"$error":"#N/A"}]
[null,95,null,null,null,null,null,null,null,null,null,null,null,null,null,null,null,null,null,null,null,null,null,null,null,null,null,null,null,null,null,{"$error":"#N/A"}]
[null,96,null,null,null,null,null,null,null,null,null,null,null,null,null,null,null,null,null,null,null,null,null,null,null,null,null,null,null,null,null,{"$error":"#N/A"}]
[null,97,null,null,null,null,null,null,null,null,null,null,null,null,null,null,null,null,null,null,null,null,null,null,null,null,null,null,null,null,null,{"$error":"#N/A"}]
[null,98,null,null,null,null,null,null,null,null,null,null,null,null,null,null,null,null,null,null,null,null,null,null,null,null,null,null,null,null,null,{"$error":"#N/A"}]
[null,99,null,null,null,null,null,null,null,null,null,null,null,null,null,null,null,null,null,null,null,null,null,null,null,null,null,null,null,null,null,{"$error":"#N/A"}]
[null,100,null,null,null,null,null,null,null,null,null,null,null,null,null,null,null,null,null,null,null,null,null,null,null,null,null,null,null,null,null,{"$error":"#N/A"}]
[null,101,null,null,null,null,null,null,null,null,null,null,null,null,null,null,null,null,null,null,null,null,null,null,null,null,null,null,null,null,null,{"$error":"#N/A"}]
[null,102,null,null,null,null,null,null,null,null,null,null,null,null,null,null,null,null,null,null,null,null,null,null,null,null,null,null,null,null,null,{"$error":"#N/A"}]
[null,103,null,null,null,null,null,null,null,null,null,null,null,null,null,null,null,null,null,null,null,null,null,null,null,null,null,null,null,null,null,{"$error":"#N/A"}]
[null,104,null,null,null,null,null,null,null,null,null,null,null,null,null,null,null,null,null,null,null,null,null,null,null,null,null,null,null,null,null,{"$error":"#N/A"}]
[null,105,null,null,null,null,null,null,null,null,null,null,null,null,null,null,null,null,null,null,null,null,null,null,null,null,null,null,null,null,null,{"$error":"#N/A"}]
[null,106,null,null,null,null,null,null,null,null,null,null,null,null,null,null,null,null,null,null,null,null,null,null,null,null,null,null,null,null,null,{"$error":"#N/A"}]
[null,107,null,null,null,null,null,null,null,null,null,null,null,null,null,null,null,null,null,null,null,null,null,null,null,null,null,null,null,null,null,{"$error":"#N/A"}]
[null,108,null,null,null,null,null,null,null,null,null,null,null,null,null,null,null,null,null,null,null,null,null,null,null,null,null,null,null,null,null,{"$error":"#N/A"}]
[null,109,null,null,null,null,null,null,null,null,null,null,null,null,null,null,null,null,null,null,null,null,null,null,null,null,null,null,null,null,null,{"$error":"#N/A"}]
[null,110,null,null,null,null,null,null,null,null,null,null,null,null,null,null,null,null,null,null,null,null,null,null,null,null,null,null,null,null,null,{"$error":"#N/A"}]
[null,111,null,null,null,null,null,null,null,null,null,null,null,null,null,null,null,null,null,null,null,null,null,null,null,null,null,null,null,null,null,{"$error":"#N/A"}]
[null,112,null,null,null,null,null,null,null,null,null,null,null,null,null,null,null,null,null,null,null,null,null,null,null,null,null,null,null,null,null,{"$error":"#N/A"}]
[null,113,null,null,null,null,null,null,null,null,null,null,null,null,null,null,null,null,null,null,null,null,null,null,null,null,null,null,null,null,null,{"$error":"#N/A"}]
[null,114,null,null,null,null,null,null,null,null,null,null,null,null,null,null,null,null,null,null,null,null,null,null,null,null,null,null,null,null,null,{"$error":"#N/A"}]
[null,115,null,null,null,null,null,null,null,null,null,null,null,null,null,null,null,null,null,null,null,null,null,null,null,null,null,null,null,null,null,{"$error":"#N/A"}]
[null,116,null,null,null,null,null,null,null,null,null,null,null,null,null,null,null,null,null,null,null,null,null,null,null,null,null,null,null,null,null,{"$error":"#N/A"}]
[null,117,null,null,null,null,null,null,null,null,null,null,null,null,null,null,null,null,null,null,null,null,null,null,null,null,null,null,null,null,null,{"$error":"#N/A"}]
[null,118,null,null,null,null,null,null,null,null,null,null,null,null,null,null,null,null,null,null,null,null,null,null,null,null,null,null,null,null,null,{"$error":"#N/A"}]
[null,119,null,null,null,null,null,null,null,null,null,null,null,null,null,null,null,null,null,null,null,null,null,null,null,null,null,null,null,null,null,{"$error":"#N/A"}]
[null,120,null,null,null,null,null,null,null,null,null,null,null,null,null,null,null,null,null,null,null,null,null,null,null,null,null,null,null,null,null,{"$error":"#N/A"}]
[null,121,null,null,null,null,null,null,null,null,null,null,null,null,null,null,null,null,null,null,null,null,null,null,null,null,null,null,null,null,null,{"$error":"#N/A"}]
[null,122,null,null,null,null,null,null,null,null,null,null,null,null,null,null,null,null,null,null,null,null,null,null,null,null,null,null,null,null,null,{"$error":"#N/A"}]
[null,123,null,null,null,null,null,null,null,null,null,null,null,null,null,null,null,null,null,null,null,null,null,null,null,null,null,null,null,null,null,{"$error":"#N/A"}]
[null,124,null,null,null,null,null,null,null,null,null,null,null,null,null,null,null,null,null,null,null,null,null,null,null,null,null,null,null,null,null,{"$error":"#N/A"}]
[null,125,null,null,null,null,null,null,null,null,null,null,null,null,null,null,null,null,null,null,null,null,null,null,null,null,null,null,null,null,null,{"$error":"#N/A"}]
[null,126,null,null,null,null,null,null,null,null,null,null,null,null,null,null,null,null,null,null,null,null,null,null,null,null,null,null,null,null,null,{"$error":"#N/A"}]
[null,127,null,null,null,null,null,null,null,null,null,null,null,null,null,null,null,null,null,null,null,null,null,null,null,null,null,null,null,null,null,{"$error":"#N/A"}]
[null,128,null,null,null,null,null,null,null,null,null,null,null,null,null,null,null,null,null,null,null,null,null,null,null,null,null,null,null,null,null,{"$error":"#N/A"}]
[null,129,null,null,null,null,null,null,null,null,null,null,null,null,null,null,null,null,null,null,null,null,null,null,null,null,null,null,null,null,null,{"$error":"#N/A"}]
[null,130,null,null,null,null,null,null,null,null,null,null,null,null,null,null,null,null,null,null,null,null,null,null,null,null,null,null,null,null,null,{"$f":"INDEX($AB$3:$AB$9,MATCH(F132,$AC$3:$AC$9,0),1)","v":{"$error":"#N/A"}}]
[null,131,null,null,null,null,null,null,null,null,null,null,null,null,null,null,null,null,null,null,null,null,null,null,null,null,null,null,null,null,null,{"$error":"#N/A"}]
[null,132,null,null,null,null,null,null,null,null,null,null,null,null,null,null,null,null,null,null,null,null,null,null,null,null,null,null,null,null,null,{"$error":"#N/A"}]
[null,133,null,null,null,null,null,null,null,null,null,null,null,null,null,null,null,null,null,null,null,null,null,null,null,null,null,null,null,null,null,{"$error":"#N/A"}]
[null,134,null,null,null,null,null,null,null,null,null,null,null,null,null,null,null,null,null,null,null,null,null,null,null,null,null,null,null,null,null,{"$error":"#N/A"}]
[null,135,null,null,null,null,null,null,null,null,null,null,null,null,null,null,null,null,null,null,null,null,null,null,null,null,null,null,null,null,null,{"$error":"#N/A"}]
[null,136,null,null,null,null,null,null,null,null,null,null,null,null,null,null,null,null,null,null,null,null,null,null,null,null,null,null,null,null,null,{"$error":"#N/A"}]
[null,137,null,null,null,null,null,null,null,null,null,null,null,null,null,null,null,null,null,null,null,null,null,null,null,null,null,null,null,null,null,{"$error":"#N/A"}]
[null,138,null,null,null,null,null,null,null,null,null,null,null,null,null,null,null,null,null,null,null,null,null,null,null,null,null,null,null,null,null,{"$error":"#N/A"}]
[null,139,null,null,null,null,null,null,null,null,null,null,null,null,null,null,null,null,null,null,null,null,null,null,null,null,null,null,null,null,null,{"$error":"#N/A"}]
[null,140,null,null,null,null,null,null,null,null,null,null,null,null,null,null,null,null,null,null,null,null,null,null,null,null,null,null,null,null,null,{"$error":"#N/A"}]
[null,141,null,null,null,null,null,null,null,null,null,null,null,null,null,null,null,null,null,null,null,null,null,null,null,null,null,null,null,null,null,{"$error":"#N/A"}]
[null,142,null,null,null,null,null,null,null,null,null,null,null,null,null,null,null,null,null,null,null,null,null,null,null,null,null,null,null,null,null,{"$error":"#N/A"}]
[null,143,null,null,null,null,null,null,null,null,null,null,null,null,null,null,null,null,null,null,null,null,null,null,null,null,null,null,null,null,null,{"$error":"#N/A"}]
[null,144,null,null,null,null,null,null,null,null,null,null,null,null,null,null,null,null,null,null,null,null,null,null,null,null,null,null,null,null,null,{"$error":"#N/A"}]
[null,145,null,null,null,null,null,null,null,null,null,null,null,null,null,null,null,null,null,null,null,null,null,null,null,null,null,null,null,null,null,{"$error":"#N/A"}]
[null,146,null,null,null,null,null,null,null,null,null,null,null,null,null,null,null,null,null,null,null,null,null,null,null,null,null,null,null,null,null,{"$error":"#N/A"}]
[null,147,null,null,null,null,null,null,null,null,null,null,null,null,null,null,null,null,null,null,null,null,null,null,null,null,null,null,null,null,null,{"$error":"#N/A"}]
[null,148,null,null,null,null,null,null,null,null,null,null,null,null,null,null,null,null,null,null,null,null,null,null,null,null,null,null,null,null,null,{"$error":"#N/A"}]
[null,149,null,null,null,null,null,null,null,null,null,null,null,null,null,null,null,null,null,null,null,null,null,null,null,null,null,null,null,null,null,{"$error":"#N/A"}]
[null,150,null,null,null,null,null,null,null,null,null,null,null,null,null,null,null,null,null,null,null,null,null,null,null,null,null,null,null,null,null,{"$error":"#N/A"}]
[null,151,null,null,null,null,null,null,null,null,null,null,null,null,null,null,null,null,null,null,null,null,null,null,null,null,null,null,null,null,null,{"$error":"#N/A"}]
[null,152,null,null,null,null,null,null,null,null,null,null,null,null,null,null,null,null,null,null,null,null,null,null,null,null,null,null,null,null,null,{"$error":"#N/A"}]
[null,153,null,null,null,null,null,null,null,null,null,null,null,null,null,null,null,null,null,null,null,null,null,null,null,null,null,null,null,null,null,{"$error":"#N/A"}]
[null,154,null,null,null,null,null,null,null,null,null,null,null,null,null,null,null,null,null,null,null,null,null,null,null,null,null,null,null,null,null,{"$error":"#N/A"}]
[null,155,null,null,null,null,null,null,null,null,null,null,null,null,null,null,null,null,null,null,null,null,null,null,null,null,null,null,null,null,null,{"$error":"#N/A"}]
[null,156,null,null,null,null,null,null,null,null,null,null,null,null,null,null,null,null,null,null,null,null,null,null,null,null,null,null,null,null,null,{"$error":"#N/A"}]
[null,157,null,null,null,null,null,null,null,null,null,null,null,null,null,null,null,null,null,null,null,null,null,null,null,null,null,null,null,null,null,{"$error":"#N/A"}]
[null,158,null,null,null,null,null,null,null,null,null,null,null,null,null,null,null,null,null,null,null,null,null,null,null,null,null,null,null,null,null,{"$error":"#N/A"}]
[null,159,null,null,null,null,null,null,null,null,null,null,null,null,null,null,null,null,null,null,null,null,null,null,null,null,null,null,null,null,null,{"$error":"#N/A"}]
[null,160,null,null,null,null,null,null,null,null,null,null,null,null,null,null,null,null,null,null,null,null,null,null,null,null,null,null,null,null,null,{"$error":"#N/A"}]
[null,161,null,null,null,null,null,null,null,null,null,null,null,null,null,null,null,null,null,null,null,null,null,null,null,null,null,null,null,null,null,{"$error":"#N/A"}]
[null,162,null,null,null,null,null,null,null,null,null,null,null,null,null,null,null,null,null,null,null,null,null,null,null,null,null,null,null,null,null,{"$error":"#N/A"}]
[null,163,null,null,null,null,null,null,null,null,null,null,null,null,null,null,null,null,null,null,null,null,null,null,null,null,null,null,null,null,null,{"$error":"#N/A"}]
[null,164,null,null,null,null,null,null,null,null,null,null,null,null,null,null,null,null,null,null,null,null,null,null,null,null,null,null,null,null,null,{"$error":"#N/A"}]
[null,165,null,null,null,null,null,null,null,null,null,null,null,null,null,null,null,null,null,null,null,null,null,null,null,null,null,null,null,null,null,{"$error":"#N/A"}]
[null,166,null,null,null,null,null,null,null,null,null,null,null,null,null,null,null,null,null,null,null,null,null,null,null,null,null,null,null,null,null,{"$error":"#N/A"}]
[null,167,null,null,null,null,null,null,null,null,null,null,null,null,null,null,null,null,null,null,null,null,null,null,null,null,null,null,null,null,null,{"$error":"#N/A"}]
[null,168,null,null,null,null,null,null,null,null,null,null,null,null,null,null,null,null,null,null,null,null,null,null,null,null,null,null,null,null,null,{"$error":"#N/A"}]
[null,169,null,null,null,null,null,null,null,null,null,null,null,null,null,null,null,null,null,null,null,null,null,null,null,null,null,null,null,null,null,{"$error":"#N/A"}]
[null,170,null,null,null,null,null,null,null,null,null,null,null,null,null,null,null,null,null,null,null,null,null,null,null,null,null,null,null,null,null,{"$error":"#N/A"}]
[null,171,null,null,null,null,null,null,null,null,null,null,null,null,null,null,null,null,null,null,null,null,null,null,null,null,null,null,null,null,null,{"$error":"#N/A"}]
[null,172,null,null,null,null,null,null,null,null,null,null,null,null,null,null,null,null,null,null,null,null,null,null,null,null,null,null,null,null,null,{"$error":"#N/A"}]
[null,173,null,null,null,null,null,null,null,null,null,null,null,null,null,null,null,null,null,null,null,null,null,null,null,null,null,null,null,null,null,{"$error":"#N/A"}]
[null,174,null,null,null,null,null,null,null,null,null,null,null,null,null,null,null,null,null,null,null,null,null,null,null,null,null,null,null,null,null,{"$error":"#N/A"}]
[null,175,null,null,null,null,null,null,null,null,null,null,null,null,null,null,null,null,null,null,null,null,null,null,null,null,null,null,null,null,null,{"$error":"#N/A"}]
[null,176,null,null,null,null,null,null,null,null,null,null,null,null,null,null,null,null,null,null,null,null,null,null,null,null,null,null,null,null,null,{"$error":"#N/A"}]
[null,177,null,null,null,null,null,null,null,null,null,null,null,null,null,null,null,null,null,null,null,null,null,null,null,null,null,null,null,null,null,{"$error":"#N/A"}]
[null,178,null,null,null,null,null,null,null,null,null,null,null,null,null,null,null,null,null,null,null,null,null,null,null,null,null,null,null,null,null,{"$error":"#N/A"}]
[null,179,null,null,null,null,null,null,null,null,null,null,null,null,null,null,null,null,null,null,null,null,null,null,null,null,null,null,null,null,null,{"$error":"#N/A"}]
[null,180,null,null,null,null,null,null,null,null,null,null,null,null,null,null,null,null,null,null,null,null,null,null,null,null,null,null,null,null,null,{"$error":"#N/A"}]
[null,181,null,null,null,null,null,null,null,null,null,null,null,null,null,null,null,null,null,null,null,null,null,null,null,null,null,null,null,null,null,{"$error":"#N/A"}]
[null,182,null,null,null,null,null,null,null,null,null,null,null,null,null,null,null,null,null,null,null,null,null,null,null,null,null,null,null,null,null,{"$error":"#N/A"}]
[null,183,null,null,null,null,null,null,null,null,null,null,null,null,null,null,null,null,null,null,null,null,null,null,null,null,null,null,null,null,null,{"$error":"#N/A"}]
[null,184,null,null,null,null,null,null,null,null,null,null,null,null,null,null,null,null,null,null,null,null,null,null,null,null,null,null,null,null,null,{"$error":"#N/A"}]
[null,185,null,null,null,null,null,null,null,null,null,null,null,null,null,null,null,null,null,null,null,null,null,null,null,null,null,null,null,null,null,{"$error":"#N/A"}]
[null,186,null,null,null,null,null,null,null,null,null,null,null,null,null,null,null,null,null,null,null,null,null,null,null,null,null,null,null,null,null,{"$error":"#N/A"}]
[null,187,null,null,null,null,null,null,null,null,null,null,null,null,null,null,null,null,null,null,null,null,null,null,null,null,null,null,null,null,null,{"$error":"#N/A"}]
[null,188,null,null,null,null,null,null,null,null,null,null,null,null,null,null,null,null,null,null,null,null,null,null,null,null,null,null,null,null,null,{"$error":"#N/A"}]
[null,189,null,null,null,null,null,null,null,null,null,null,null,null,null,null,null,null,null,null,null,null,null,null,null,null,null,null,null,null,null,{"$error":"#N/A"}]
[null,190,null,null,null,null,null,null,null,null,null,null,null,null,null,null,null,null,null,null,null,null,null,null,null,null,null,null,null,null,null,{"$error":"#N/A"}]
[null,191,null,null,null,null,null,null,null,null,null,null,null,null,null,null,null,null,null,null,null,null,null,null,null,null,null,null,null,null,null,{"$error":"#N/A"}]
[null,192,null,null,null,null,null,null,null,null,null,null,null,null,null,null,null,null,null,null,null,null,null,null,null,null,null,null,null,null,null,{"$error":"#N/A"}]
[null,193,null,null,null,null,null,null,null,null,null,null,null,null,null,null,null,null,null,null,null,null,null,null,null,null,null,null,null,null,null,{"$error":"#N/A"}]
[null,194,null,null,null,null,null,null,null,null,null,null,null,null,null,null,null,null,null,null,null,null,null,null,null,null,null,null,null,null,null,{"$f":"INDEX($AB$3:$AB$9,MATCH(F196,$AC$3:$AC$9,0),1)","v":{"$error":"#N/A"}}]
[null,195,null,null,null,null,null,null,null,null,null,null,null,null,null,null,null,null,null,null,null,null,null,null,null,null,null,null,null,null,null,{"$error":"#N/A"}]
[null,196,null,null,null,null,null,null,null,null,null,null,null,null,null,null,null,null,null,null,null,null,null,null,null,null,null,null,null,null,null,{"$error":"#N/A"}]
[null,197,null,null,null,null,null,null,null,null,null,null,null,null,null,null,null,null,null,null,null,null,null,null,null,null,null,null,null,null,null,{"$error":"#N/A"}]
[null,198,null,null,null,null,null,null,null,null,null,null,null,null,null,null,null,null,null,null,null,null,null,null,null,null,null,null,null,null,null,{"$error":"#N/A"}]
[null,199,null,null,null,null,null,null,null,null,null,null,null,null,null,null,null,null,null,null,null,null,null,null,null,null,null,null,null,null,null,{"$error":"#N/A"}]
[null,200,null,null,null,null,null,null,null,null,null,null,null,null,null,null,null,null,null,null,null,null,null,null,null,null,null,null,null,null,null,{"$error":"#N/A"}]
[null,201,null,null,null,null,null,null,null,null,null,null,null,null,null,null,null,null,null,null,null,null,null,null,null,null,null,null,null,null,null,{"$error":"#N/A"}]
[null,202,null,null,null,null,null,null,null,null,null,null,null,null,null,null,null,null,null,null,null,null,null,null,null,null,null,null,null,null,null,{"$error":"#N/A"}]
[null,203,null,null,null,null,null,null,null,null,null,null,null,null,null,null,null,null,null,null,null,null,null,null,null,null,null,null,null,null,null,{"$error":"#N/A"}]
[null,204,null,null,null,null,null,null,null,null,null,null,null,null,null,null,null,null,null,null,null,null,null,null,null,null,null,null,null,null,null,{"$error":"#N/A"}]
[null,205,null,null,null,null,null,null,null,null,null,null,null,null,null,null,null,null,null,null,null,null,null,null,null,null,null,null,null,null,null,{"$error":"#N/A"}]
[null,206,null,null,null,null,null,null,null,null,null,null,null,null,null,null,null,null,null,null,null,null,null,null,null,null,null,null,null,null,null,{"$error":"#N/A"}]
[null,207,null,null,null,null,null,null,null,null,null,null,null,null,null,null,null,null,null,null,null,null,null,null,null,null,null,null,null,null,null,{"$error":"#N/A"}]
[null,208,null,null,null,null,null,null,null,null,null,null,null,null,null,null,null,null,null,null,null,null,null,null,null,null,null,null,null,null,null,{"$error":"#N/A"}]
[null,209,null,null,null,null,null,null,null,null,null,null,null,null,null,null,null,null,null,null,null,null,null,null,null,null,null,null,null,null,null,{"$error":"#N/A"}]
[null,210,null,null,null,null,null,null,null,null,null,null,null,null,null,null,null,null,null,null,null,null,null,null,null,null,null,null,null,null,null,{"$error":"#N/A"}]
[null,211,null,null,null,null,null,null,null,null,null,null,null,null,null,null,null,null,null,null,null,null,null,null,null,null,null,null,null,null,null,{"$error":"#N/A"}]
[null,212,null,null,null,null,null,null,null,null,null,null,null,null,null,null,null,null,null,null,null,null,null,null,null,null,null,null,null,null,null,{"$error":"#N/A"}]
[null,213,null,null,null,null,null,null,null,null,null,null,null,null,null,null,null,null,null,null,null,null,null,null,null,null,null,null,null,null,null,{"$error":"#N/A"}]
[null,214,null,null,null,null,null,null,null,null,null,null,null,null,null,null,null,null,null,null,null,null,null,null,null,null,null,null,null,null,null,{"$error":"#N/A"}]
[null,215,null,null,null,null,null,null,null,null,null,null,null,null,null,null,null,null,null,null,null,null,null,null,null,null,null,null,null,null,null,{"$error":"#N/A"}]
[null,216,null,null,null,null,null,null,null,null,null,null,null,null,null,null,null,null,null,null,null,null,null,null,null,null,null,null,null,null,null,{"$error":"#N/A"}]
[null,217,null,null,null,null,null,null,null,null,null,null,null,null,null,null,null,null,null,null,null,null,null,null,null,null,null,null,null,null,null,{"$error":"#N/A"}]
[null,218,null,null,null,null,null,null,null,null,null,null,null,null,null,null,null,null,null,null,null,null,null,null,null,null,null,null,null,null,null,{"$error":"#N/A"}]
[null,219,null,null,null,null,null,null,null,null,null,null,null,null,null,null,null,null,null,null,null,null,null,null,null,null,null,null,null,null,null,{"$error":"#N/A"}]
[null,220,null,null,null,null,null,null,null,null,null,null,null,null,null,null,null,null,null,null,null,null,null,null,null,null,null,null,null,null,null,{"$error":"#N/A"}]
[null,221,null,null,null,null,null,null,null,null,null,null,null,null,null,null,null,null,null,null,null,null,null,null,null,null,null,null,null,null,null,{"$error":"#N/A"}]
[null,222,null,null,null,null,null,null,null,null,null,null,null,null,null,null,null,null,null,null,null,null,null,null,null,null,null,null,null,null,null,{"$error":"#N/A"}]
[null,223,null,null,null,null,null,null,null,null,null,null,null,null,null,null,null,null,null,null,null,null,null,null,null,null,null,null,null,null,null,{"$error":"#N/A"}]
[null,224,null,null,null,null,null,null,null,null,null,null,null,null,null,null,null,null,null,null,null,null,null,null,null,null,null,null,null,null,null,{"$error":"#N/A"}]
[null,225,null,null,null,null,null,null,null,null,null,null,null,null,null,null,null,null,null,null,null,null,null,null,null,null,null,null,null,null,null,{"$error":"#N/A"}]
[null,226,null,null,null,null,null,null,null,null,null,null,null,null,null,null,null,null,null,null,null,null,null,null,null,null,null,null,null,null,null,{"$error":"#N/A"}]
[null,227,null,null,null,null,null,null,null,null,null,null,null,null,null,null,null,null,null,null,null,null,null,null,null,null,null,null,null,null,null,{"$error":"#N/A"}]
[null,228,null,null,null,null,null,null,null,null,null,null,null,null,null,null,null,null,null,null,null,null,null,null,null,null,null,null,null,null,null,{"$error":"#N/A"}]
[null,229,null,null,null,null,null,null,null,null,null,null,null,null,null,null,null,null,null,null,null,null,null,null,null,null,null,null,null,null,null,{"$error":"#N/A"}]
[null,230,null,null,null,null,null,null,null,null,null,null,null,null,null,null,null,null,null,null,null,null,null,null,null,null,null,null,null,null,null,{"$error":"#N/A"}]
[null,231,null,null,null,null,null,null,null,null,null,null,null,null,null,null,null,null,null,null,null,null,null,null,null,null,null,null,null,null,null,{"$error":"#N/A"}]
[null,232,null,null,null,null,null,null,null,null,null,null,null,null,null,null,null,null,null,null,null,null,null,null,null,null,null,null,null,null,null,{"$error":"#N/A"}]
[null,233,null,null,null,null,null,null,null,null,null,null,null,null,null,null,null,null,null,null,null,null,null,null,null,null,null,null,null,null,null,{"$error":"#N/A"}]
[null,234,null,null,null,null,null,null,null,null,null,null,null,null,null,null,null,null,null,null,null,null,null,null,null,null,null,null,null,null,null,{"$error":"#N/A"}]
[null,235,null,null,null,null,null,null,null,null,null,null,null,null,null,null,null,null,null,null,null,null,null,null,null,null,null,null,null,null,null,{"$error":"#N/A"}]
[null,236,null,null,null,null,null,null,null,null,null,null,null,null,null,null,null,null,null,null,null,null,null,null,null,null,null,null,null,null,null,{"$error":"#N/A"}]
[null,237,null,null,null,null,null,null,null,null,null,null,null,null,null,null,null,null,null,null,null,null,null,null,null,null,null,null,null,null,null,{"$error":"#N/A"}]
[null,238,null,null,null,null,null,null,null,null,null,null,null,null,null,null,null,null,null,null,null,null,null,null,null,null,null,null,null,null,null,{"$error":"#N/A"}]
[null,239,null,null,null,null,null,null,null,null,null,null,null,null,null,null,null,null,null,null,null,null,null,null,null,null,null,null,null,null,null,{"$error":"#N/A"}]
[null,240,null,null,null,null,null,null,null,null,null,null,null,null,null,null,null,null,null,null,null,null,null,null,null,null,null,null,null,null,null,{"$error":"#N/A"}]
[null,241,null,null,null,null,null,null,null,null,null,null,null,null,null,null,null,null,null,null,null,null,null,null,null,null,null,null,null,null,null,{"$error":"#N/A"}]
[null,242,null,null,null,null,null,null,null,null,null,null,null,null,null,null,null,null,null,null,null,null,null,null,null,null,null,null,null,null,null,{"$error":"#N/A"}]
[null,243,null,null,null,null,null,null,null,null,null,null,null,null,null,null,null,null,null,null,null,null,null,null,null,null,null,null,null,null,null,{"$error":"#N/A"}]
[null,244,null,null,null,null,null,null,null,null,null,null,null,null,null,null,null,null,null,null,null,null,null,null,null,null,null,null,null,null,null,{"$error":"#N/A"}]
[null,245,null,null,null,null,null,null,null,null,null,null,null,null,null,null,null,null,null,null,null,null,null,null,null,null,null,null,null,null,null,{"$error":"#N/A"}]
[null,246,null,null,null,null,null,null,null,null,null,null,null,null,null,null,null,null,null,null,null,null,null,null,null,null,null,null,null,null,null,{"$error":"#N/A"}]
[null,247,null,null,null,null,null,null,null,null,null,null,null,null,null,null,null,null,null,null,null,null,null,null,null,null,null,null,null,null,null,{"$error":"#N/A"}]
[null,248,null,null,null,null,null,null,null,null,null,null,null,null,null,null,null,null,null,null,null,null,null,null,null,null,null,null,null,null,null,{"$error":"#N/A"}]
[null,249,null,null,null,null,null,null,null,null,null,null,null,null,null,null,null,null,null,null,null,null,null,null,null,null,null,null,null,null,null,{"$error":"#N/A"}]
[null,250,null,null,null,null,null,null,null,null,null,null,null,null,null,null,null,null,null,null,null,null,null,null,null,null,null,null,null,null,null,{"$error":"#N/A"}]
[null,251,null,null,null,null,null,null,null,null,null,null,null,null,null,null,null,null,null,null,null,null,null,null,null,null,null,null,null,null,null,{"$error":"#N/A"}]
[null,252,null,null,null,null,null,null,null,null,null,null,null,null,null,null,null,null,null,null,null,null,null,null,null,null,null,null,null,null,null,{"$error":"#N/A"}]
[null,253,null,null,null,null,null,null,null,null,null,null,null,null,null,null,null,null,null,null,null,null,null,null,null,null,null,null,null,null,null,{"$error":"#N/A"}]
[null,254,null,null,null,null,null,null,null,null,null,null,null,null,null,null,null,null,null,null,null,null,null,null,null,null,null,null,null,null,null,{"$error":"#N/A"}]
[null,255,null,null,null,null,null,null,null,null,null,null,null,null,null,null,null,null,null,null,null,null,null,null,null,null,null,null,null,null,null,{"$error":"#N/A"}]
[null,256,null,null,null,null,null,null,null,null,null,null,null,null,null,null,null,null,null,null,null,null,null,null,null,null,null,null,null,null,null,{"$error":"#N/A"}]
[null,257,null,null,null,null,null,null,null,null,null,null,null,null,null,null,null,null,null,null,null,null,null,null,null,null,null,null,null,null,null,{"$error":"#N/A"}]
[null,258,null,null,null,null,null,null,null,null,null,null,null,null,null,null,null,null,null,null,null,null,null,null,null,null,null,null,null,null,null,{"$f":"INDEX($AB$3:$AB$9,MATCH(F260,$AC$3:$AC$9,0),1)","v":{"$error":"#N/A"}}]
[null,259,null,null,null,null,null,null,null,null,null,null,null,null,null,null,null,null,null,null,null,null,null,null,null,null,null,null,null,null,null,{"$error":"#N/A"}]
[null,260,null,null,null,null,null,null,null,null,null,null,null,null,null,null,null,null,null,null,null,null,null,null,null,null,null,null,null,null,null,{"$error":"#N/A"}]
[null,261,null,null,null,null,null,null,null,null,null,null,null,null,null,null,null,null,null,null,null,null,null,null,null,null,null,null,null,null,null,{"$error":"#N/A"}]
[null,262,null,null,null,null,null,null,null,null,null,null,null,null,null,null,null,null,null,null,null,null,null,null,null,null,null,null,null,null,null,{"$error":"#N/A"}]
[null,263,null,null,null,null,null,null,null,null,null,null,null,null,null,null,null,null,null,null,null,null,null,null,null,null,null,null,null,null,null,{"$error":"#N/A"}]
[null,264,null,null,null,null,null,null,null,null,null,null,null,null,null,null,null,null,null,null,null,null,null,null,null,null,null,null,null,null,null,{"$error":"#N/A"}]
[null,265,null,null,null,null,null,null,null,null,null,null,null,null,null,null,null,null,null,null,null,null,null,null,null,null,null,null,null,null,null,{"$error":"#N/A"}]
[null,266,null,null,null,null,null,null,null,null,null,null,null,null,null,null,null,null,null,null,null,null,null,null,null,null,null,null,null,null,null,{"$error":"#N/A"}]
[null,267,null,null,null,null,null,null,null,null,null,null,null,null,null,null,null,null,null,null,null,null,null,null,null,null,null,null,null,null,null,{"$error":"#N/A"}]
[null,268,null,null,null,null,null,null,null,null,null,null,null,null,null,null,null,null,null,null,null,null,null,null,null,null,null,null,null,null,null,{"$error":"#N/A"}]
[null,269,null,null,null,null,null,null,null,null,null,null,null,null,null,null,null,null,null,null,null,null,null,null,null,null,null,null,null,null,null,{"$error":"#N/A"}]
[null,270,null,null,null,null,null,null,null,null,null,null,null,null,null,null,null,null,null,null,null,null,null,null,null,null,null,null,null,null,null,{"$error":"#N/A"}]
[null,271,null,null,null,null,null,null,null,null,null,null,null,null,null,null,null,null,null,null,null,null,null,null,null,null,null,null,null,null,null,{"$error":"#N/A"}]
[null,272,null,null,null,null,null,null,null,null,null,null,null,null,null,null,null,null,null,null,null,null,null,null,null,null,null,null,null,null,null,{"$error":"#N/A"}]
[null,273,null,null,null,null,null,null,null,null,null,null,null,null,null,null,null,null,null,null,null,null,null,null,null,null,null,null,null,null,null,{"$error":"#N/A"}]
[null,274,null,null,null,null,null,null,null,null,null,null,null,null,null,null,null,null,null,null,null,null,null,null,null,null,null,null,null,null,null,{"$error":"#N/A"}]
[null,275,null,null,null,null,null,null,null,null,null,null,null,null,null,null,null,null,null,null,null,null,null,null,null,null,null,null,null,null,null,{"$error":"#N/A"}]
[null,276,null,null,null,null,null,null,null,null,null,null,null,null,null,null,null,null,null,null,null,null,null,null,null,null,null,null,null,null,null,{"$error":"#N/A"}]
[null,277,null,null,null,null,null,null,null,null,null,null,null,null,null,null,null,null,null,null,null,null,null,null,null,null,null,null,null,null,null,{"$error":"#N/A"}]
[null,278,null,null,null,null,null,null,null,null,null,null,null,null,null,null,null,null,null,null,null,null,null,null,null,null,null,null,null,null,null,{"$error":"#N/A"}]
[null,279,null,null,null,null,null,null,null,null,null,null,null,null,null,null,null,null,null,null,null,null,null,null,null,null,null,null,null,null,null,{"$error":"#N/A"}]
[null,280,null,null,null,null,null,null,null,null,null,null,null,null,null,null,null,null,null,null,null,null,null,null,null,null,null,null,null,null,null,{"$error":"#N/A"}]
[null,281,null,null,null,null,null,null,null,null,null,null,null,null,null,null,null,null,null,null,null,null,null,null,null,null,null,null,null,null,null,{"$error":"#N/A"}]
[null,282,null,null,null,null,null,null,null,null,null,null,null,null,null,null,null,null,null,null,null,null,null,null,null,null,null,null,null,null,null,{"$error":"#N/A"}]
[null,283,null,null,null,null,null,null,null,null,null,null,null,null,null,null,null,null,null,null,null,null,null,null,null,null,null,null,null,null,null,{"$error":"#N/A"}]
[null,284,null,null,null,null,null,null,null,null,null,null,null,null,null,null,null,null,null,null,null,null,null,null,null,null,null,null,null,null,null,{"$error":"#N/A"}]
[null,285,null,null,null,null,null,null,null,null,null,null,null,null,null,null,null,null,null,null,null,null,null,null,null,null,null,null,null,null,null,{"$error":"#N/A"}]
[null,286,null,null,null,null,null,null,null,null,null,null,null,null,null,null,null,null,null,null,null,null,null,null,null,null,null,null,null,null,null,{"$error":"#N/A"}]
[null,287,null,null,null,null,null,null,null,null,null,null,null,null,null,null,null,null,null,null,null,null,null,null,null,null,null,null,null,null,null,{"$error":"#N/A"}]
[null,288,null,null,null,null,null,null,null,null,null,null,null,null,null,null,null,null,null,null,null,null,null,null,null,null,null,null,null,null,null,{"$error":"#N/A"}]
[null,289,null,null,null,null,null,null,null,null,null,null,null,null,null,null,null,null,null,null,null,null,null,null,null,null,null,null,null,null,null,{"$error":"#N/A"}]
[null,290,null,null,null,null,null,null,null,null,null,null,null,null,null,null,null,null,null,null,null,null,null,null,null,null,null,null,null,null,null,{"$error":"#N/A"}]
[null,291,null,null,null,null,null,null,null,null,null,null,null,null,null,null,null,null,null,null,null,null,null,null,null,null,null,null,null,null,null,{"$error":"#N/A"}]
[null,292,null,null,null,null,null,null,null,null,null,null,null,null,null,null,null,null,null,null,null,null,null,null,null,null,null,null,null,null,null,{"$error":"#N/A"}]
[null,293,null,null,null,null,null,null,null,null,null,null,null,null,null,null,null,null,null,null,null,null,null,null,null,null,null,null,null,null,null,{"$error":"#N/A"}]
[null,294,null,null,null,null,null,null,null,null,null,null,null,null,null,null,null,null,null,null,null,null,null,null,null,null,null,null,null,null,null,{"$error":"#N/A"}]
[null,295,null,null,null,null,null,null,null,null,null,null,null,null,null,null,null,null,null,null,null,null,null,null,null,null,null,null,null,null,null,{"$error":"#N/A"}]
[null,296,null,null,null,null,null,null,null,null,null,null,null,null,null,null,null,null,null,null,null,null,null,null,null,null,null,null,null,null,null,{"$error":"#N/A"}]
[null,297,null,null,null,null,null,null,null,null,null,null,null,null,null,null,null,null,null,null,null,null,null,null,null,null,null,null,null,null,null,{"$error":"#N/A"}]
[null,298,null,null,null,null,null,null,null,null,null,null,null,null,null,null,null,null,null,null,null,null,null,null,null,null,null,null,null,null,null,{"$error":"#N/A"}]
[null,299,null,null,null,null,null,null,null,null,null,null,null,null,null,null,null,null,null,null,null,null,null,null,null,null,null,null,null,null,null,{"$error":"#N/A"}]
[null,300,null,null,null,null,null,null,null,null,null,null,null,null,null,null,null,null,null,null,null,null,null,null,null,null,null,null,null,null,null,{"$error":"#N/A"}]
[null,301,null,null,null,null,null,null,null,null,null,null,null,null,null,null,null,null,null,null,null,null,null,null,null,null,null,null,null,null,null,{"$error":"#N/A"}]
[null,302,null,null,null,null,null,null,null,null,null,null,null,null,null,null,null,null,null,null,null,null,null,null,null,null,null,null,null,null,null,{"$error":"#N/A"}]
[null,303,null,null,null,null,null,null,null,null,null,null,null,null,null,null,null,null,null,null,null,null,null,null,null,null,null,null,null,null,null,{"$error":"#N/A"}]
[null,304,null,null,null,null,null,null,null,null,null,null,null,null,null,null,null,null,null,null,null,null,null,null,null,null,null,null,null,null,null,{"$error":"#N/A"}]
[null,305,null,null,null,null,null,null,null,null,null,null,null,null,null,null,null,null,null,null,null,null,null,null,null,null,null,null,null,null,null,{"$error":"#N/A"}]
[null,306,null,null,null,null,null,null,null,null,null,null,null,null,null,null,null,null,null,null,null,null,null,null,null,null,null,null,null,null,null,{"$error":"#N/A"}]
[null,307,null,null,null,null,null,null,null,null,null,null,null,null,null,null,null,null,null,null,null,null,null,null,null,null,null,null,null,null,null,{"$error":"#N/A"}]
[null,308,null,null,null,null,null,null,null,null,null,null,null,null,null,null,null,null,null,null,null,null,null,null,null,null,null,null,null,null,null,{"$error":"#N/A"}]
[null,309,null,null,null,null,null,null,null,null,null,null,null,null,null,null,null,null,null,null,null,null,null,null,null,null,null,null,null,null,null,{"$error":"#N/A"}]
[null,310,null,null,null,null,null,null,null,null,null,null,null,null,null,null,null,null,null,null,null,null,null,null,null,null,null,null,null,null,null,{"$error":"#N/A"}]
[null,311,null,null,null,null,null,null,null,null,null,null,null,null,null,null,null,null,null,null,null,null,null,null,null,null,null,null,null,null,null,{"$error":"#N/A"}]
[null,312,null,null,null,null,null,null,null,null,null,null,null,null,null,null,null,null,null,null,null,null,null,null,null,null,null,null,null,null,null,{"$error":"#N/A"}]
[null,313,null,null,null,null,null,null,null,null,null,null,null,null,null,null,null,null,null,null,null,null,null,null,null,null,null,null,null,null,null,{"$error":"#N/A"}]
[null,314,null,null,null,null,null,null,null,null,null,null,null,null,null,null,null,null,null,null,null,null,null,null,null,null,null,null,null,null,null,{"$error":"#N/A"}]
[null,315,null,null,null,null,null,null,null,null,null,null,null,null,null,null,null,null,null,null,null,null,null,null,null,null,null,null,null,null,null,{"$error":"#N/A"}]
[null,316,null,null,null,null,null,null,null,null,null,null,null,null,null,null,null,null,null,null,null,null,null,null,null,null,null,null,null,null,null,{"$error":"#N/A"}]
[null,317,null,null,null,null,null,null,null,null,null,null,null,null,null,null,null,null,null,null,null,null,null,null,null,null,null,null,null,null,null,{"$error":"#N/A"}]
[null,318,null,null,null,null,null,null,null,null,null,null,null,null,null,null,null,null,null,null,null,null,null,null,null,null,null,null,null,null,null,{"$error":"#N/A"}]
[null,319,null,null,null,null,null,null,null,null,null,null,null,null,null,null,null,null,null,null,null,null,null,null,null,null,null,null,null,null,null,{"$error":"#N/A"}]
[null,320,null,null,null,null,null,null,null,null,null,null,null,null,null,null,null,null,null,null,null,null,null,null,null,null,null,null,null,null,null,{"$error":"#N/A"}]
[null,321,null,null,null,null,null,null,null,null,null,null,null,null,null,null,null,null,null,null,null,null,null,null,null,null,null,null,null,null,null,{"$error":"#N/A"}]
[null,322,null,null,null,null,null,null,null,null,null,null,null,null,null,null,null,null,null,null,null,null,null,null,null,null,null,null,null,null,null,{"$f":"INDEX($AB$3:$AB$9,MATCH(F324,$AC$3:$AC$9,0),1)","v":{"$error":"#N/A"}}]
[null,323,null,null,null,null,null,null,null,null,null,null,null,null,null,null,null,null,null,null,null,null,null,null,null,null,null,null,null,null,null,{"$error":"#N/A"}]
[null,324,null,null,null,null,null,null,null,null,null,null,null,null,null,null,null,null,null,null,null,null,null,null,null,null,null,null,null,null,null,{"$error":"#N/A"}]
[null,325,null,null,null,null,null,null,null,null,null,null,null,null,null,null,null,null,null,null,null,null,null,null,null,null,null,null,null,null,null,{"$error":"#N/A"}]
[null,326,null,null,null,null,null,null,null,null,null,null,null,null,null,null,null,null,null,null,null,null,null,null,null,null,null,null,null,null,null,{"$error":"#N/A"}]
[null,327,null,null,null,null,null,null,null,null,null,null,null,null,null,null,null,null,null,null,null,null,null,null,null,null,null,null,null,null,null,{"$error":"#N/A"}]
[null,328,null,null,null,null,null,null,null,null,null,null,null,null,null,null,null,null,null,null,null,null,null,null,null,null,null,null,null,null,null,{"$error":"#N/A"}]
[null,329,null,null,null,null,null,null,null,null,null,null,null,null,null,null,null,null,null,null,null,null,null,null,null,null,null,null,null,null,null,{"$error":"#N/A"}]
[null,330,null,null,null,null,null,null,null,null,null,null,null,null,null,null,null,null,null,null,null,null,null,null,null,null,null,null,null,null,null,{"$error":"#N/A"}]
[null,331,null,null,null,null,null,null,null,null,null,null,null,null,null,null,null,null,null,null,null,null,null,null,null,null,null,null,null,null,null,{"$error":"#N/A"}]
[null,332,null,null,null,null,null,null,null,null,null,null,null,null,null,null,null,null,null,null,null,null,null,null,null,null,null,null,null,null,null,{"$error":"#N/A"}]
[null,333,null,null,null,null,null,null,null,null,null,null,null,null,null,null,null,null,null,null,null,null,null,null,null,null,null,null,null,null,null,{"$error":"#N/A"}]
[null,334,null,null,null,null,null,null,null,null,null,null,null,null,null,null,null,null,null,null,null,null,null,null,null,null,null,null,null,null,null,{"$error":"#N/A"}]
[null,335,null,null,null,null,null,null,null,null,null,null,null,null,null,null,null,null,null,null,null,null,null,null,null,null,null,null,null,null,null,{"$error":"#N/A"}]
[null,336,null,null,null,null,null,null,null,null,null,null,null,null,null,null,null,null,null,null,null,null,null,null,null,null,null,null,null,null,null,{"$error":"#N/A"}]
[null,337,null,null,null,null,null,null,null,null,null,null,null,null,null,null,null,null,null,null,null,null,null,null,null,null,null,null,null,null,null,{"$error":"#N/A"}]
[null,338,null,null,null,null,null,null,null,null,null,null,null,null,null,null,null,null,null,null,null,null,null,null,null,null,null,null,null,null,null,{"$error":"#N/A"}]
[null,339,null,null,null,null,null,null,null,null,null,null,null,null,null,null,null,null,null,null,null,null,null,null,null,null,null,null,null,null,null,{"$error":"#N/A"}]
[null,340,null,null,null,null,null,null,null,null,null,null,null,null,null,null,null,null,null,null,null,null,null,null,null,null,null,null,null,null,null,{"$error":"#N/A"}]
[null,341,null,null,null,null,null,null,null,null,null,null,null,null,null,null,null,null,null,null,null,null,null,null,null,null,null,null,null,null,null,{"$error":"#N/A"}]
[null,342,null,null,null,null,null,null,null,null,null,null,null,null,null,null,null,null,null,null,null,null,null,null,null,null,null,null,null,null,null,{"$error":"#N/A"}]
[null,343,null,null,null,null,null,null,null,null,null,null,null,null,null,null,null,null,null,null,null,null,null,null,null,null,null,null,null,null,null,{"$error":"#N/A"}]
[null,344,null,null,null,null,null,null,null,null,null,null,null,null,null,null,null,null,null,null,null,null,null,null,null,null,null,null,null,null,null,{"$error":"#N/A"}]
[null,345,null,null,null,null,null,null,null,null,null,null,null,null,null,null,null,null,null,null,null,null,null,null,null,null,null,null,null,null,null,{"$error":"#N/A"}]
[null,346,null,null,null,null,null,null,null,null,null,null,null,null,null,null,null,null,null,null,null,null,null,null,null,null,null,null,null,null,null,{"$error":"#N/A"}]
[null,347,null,null,null,null,null,null,null,null,null,null,null,null,null,null,null,null,null,null,null,null,null,null,null,null,null,null,null,null,null,{"$error":"#N/A"}]
[null,348,null,null,null,null,null,null,null,null,null,null,null,null,null,null,null,null,null,null,null,null,null,null,null,null,null,null,null,null,null,{"$error":"#N/A"}]
[null,349,null,null,null,null,null,null,null,null,null,null,null,null,null,null,null,null,null,null,null,null,null,null,null,null,null,null,null,null,null,{"$error":"#N/A"}]
[null,350,null,null,null,null,null,null,null,null,null,null,null,null,null,null,null,null,null,null,null,null,null,null,null,null,null,null,null,null,null,{"$f":"INDEX($AB$3:$AB$9,MATCH(F502,$AC$3:$AC$9,0),1)","v":{"$error":"#N/A"}}]
[null,351]
[null,352]
[null,353]
[null,354]
[null,355]
[null,356]
[null,357]
[null,358]
[null,359]
[null,360]
[null,361]
[null,362]
[null,363]
[null,364]
[null,365]
[null,366]
[null,367]
[null,368]
[null,369]
[null,370]
[null,371]
[null,372]
[null,373]
[null,374]
[null,375]
[null,376]
[null,377]
[null,378]
[null,379]
[null,380]
[null,381]
[null,382]
[null,383]
[null,384]
[null,385]
[null,386]
[null,387]
[null,388]
[null,389]
[null,390]
[null,391]
[null,392]
[null,393]
[null,394]
[null,395]
[null,396]
[null,397]
[null,398]
[null,399]
[null,400]
[null,401]
[null,402]
[null,403]
[null,404]
[null,405]
[null,406]
[null,407]
[null,408]
[null,409]
[null,410]
[null,411]
[null,412]
[null,413]
[null,414]
[null,415]
[null,416]
[null,417]
[null,418]
[null,419]
[null,420]
[null,421]
[null,422]
[null,423]
[null,424]
[null,425]
[null,426]
[null,427]
[null,428]
[null,429]
[null,430]
[null,431]
[null,432]
[null,433]
[null,434]
[null,435]
[null,436]
[null,437]
[null,438]
[null,439]
[null,440]
[null,441]
[null,442]
[null,443]
[null,444]
[null,445]
[null,446]
[null,447]
[null,448]
[null,449]
[null,450]
[null,451]
[null,452]
[null,453]
[null,454]
[null,455]
[null,456]
[null,457]
[null,458]
[null,459]
[null,460]
[null,461]
[null,462]
[null,463]
[null,464]
[null,465]
[null,466]
[null,467]
[null,468]
[null,469]
[null,470]
[null,471]
[null,472]
[null,473]
[null,474]
[null,475]
[null,476]
[null,477]
[null,478]
[null,479]
[null,480]
[null,481]
[null,482]
[null,483]
[null,484]
[null,485]
[null,486]
[null,487]
[null,488]
[null,489]
[null,490]
[null,491]
[null,492]
[null,493]
[null,494]
[null,495]
[null,496]
[null,497]
[null,498]
[null,499]
[null,500]

{"sheet":"Count","index":3,"n_rows":502,"n_cols":16,"rows_kept":502,"cut":false,"hidden":false,"merged":[]}
[null,null,null,null,"Zone 1","Zone 2","Zone 3","Zone 4","Zone 5","Zone 6","Zone 7","Zone 8","Zone 9","Zone 10","Total","Value"]
[null,null,null,null,"e.g. Well 1","e.g. Well 2","e.g. Bar cooler","e.g. Bar liquor pyramid","e.g. Bar Liquor","e.g.Liquor backups","e.g. Dry storage","e.g. Liquor store","e.g. Walk in cooler","e.g. Wine room",{"$f":"SUM(O3:O502)","v":0},{"$f":"SUM(P3:P502)","v":0}]
[null,1,{"$f":"IF(ISBLANK('Product info'!C3),\"\",'Product info'!C3)","v":"Bottle Bud"},{"$f":"IF(ISBLANK('Product info'!D3),\"\",'Product info'!D3)","v":"Bottle/ can beer"},null,null,null,null,null,null,null,null,null,null,{"$f":"SUM(E3:N3)","v":0},{"$f":"IF(ISERROR(O3*'Product info'!E3/'Product info'!AF3),0,O3*'Product info'!E3/'Product info'!AF3)","v":0}]
[null,2,{"$f":"IF(ISBLANK('Product info'!C4),\"\",'Product info'!C4)","v":"Keg Coors Light"},{"$f":"IF(ISBLANK('Product info'!D4),\"\",'Product info'!D4)","v":"Draft beer"},null,null,null,null,null,null,null,null,null,null,{"$f":"SUM(E4:N4)","v":0},{"$f":"IF(ISERROR(O4*'Product info'!E4/'Product info'!AF4),0,O4*'Product info'!E4/'Product info'!AF4)","v":0}]
[null,3,{"$f":"IF(ISBLANK('Product info'!C5),\"\",'Product info'!C5)","v":"Well Vodka"},{"$f":"IF(ISBLANK('Product info'!D5),\"\",'Product info'!D5)","v":"Liquor"},null,null,null,null,null,null,null,null,null,null,0,{"$f":"IF(ISERROR(O5*'Product info'!E5/'Product info'!AF5),0,O5*'Product info'!E5/'Product info'!AF5)","v":0}]
[null,4,{"$f":"IF(ISBLANK('Product info'!C6),\"\",'Product info'!C6)","v":"House White"},{"$f":"IF(ISBLANK('Product info'!D6),\"\",'Product info'!D6)","v":"Wine"},null,null,null,null,null,null,null,null,null,null,0,{"$f":"IF(ISERROR(O6*'Product info'!E6/'Product info'!AF6),0,O6*'Product info'!E6/'Product info'!AF6)","v":0}]
[null,5,{"$f":"IF(ISBLANK('Product info'!C7),\"\",'Product info'!C7)","v":"Mixer"},{"$f":"IF(ISBLANK('Product info'!D7),\"\",'Product info'!D7)","v":"Misc"},null,null,null,null,null,null,null,null,null,null,0,{"$f":"IF(ISERROR(O7*'Product info'!E7/'Product info'!AF7),0,O7*'Product info'!E7/'Product info'!AF7)","v":0}]
[null,6,{"$f":"IF(ISBLANK('Product info'!C8),\"\",'Product info'!C8)","v":""},{"$f":"IF(ISBLANK('Product info'!D8),\"\",'Product info'!D8)","v":""},null,null,null,null,null,null,null,null,null,null,0,{"$f":"IF(ISERROR(O8*'Product info'!E8/'Product info'!AF8),0,O8*'Product info'!E8/'Product info'!AF8)","v":0}]
[null,7,{"$f":"IF(ISBLANK('Product info'!C9),\"\",'Product info'!C9)","v":""},{"$f":"IF(ISBLANK('Product info'!D9),\"\",'Product info'!D9)","v":""},null,null,null,null,null,null,null,null,null,null,0,{"$f":"IF(ISERROR(O9*'Product info'!E9/'Product info'!AF9),0,O9*'Product info'!E9/'Product info'!AF9)","v":0}]
[null,8,{"$f":"IF(ISBLANK('Product info'!C10),\"\",'Product info'!C10)","v":""},{"$f":"IF(ISBLANK('Product info'!D10),\"\",'Product info'!D10)","v":""},null,null,null,null,null,null,null,null,null,null,0,{"$f":"IF(ISERROR(O10*'Product info'!E10/'Product info'!AF10),0,O10*'Product info'!E10/'Product info'!AF10)","v":0}]
[null,9,{"$f":"IF(ISBLANK('Product info'!C11),\"\",'Product info'!C11)","v":""},{"$f":"IF(ISBLANK('Product info'!D11),\"\",'Product info'!D11)","v":""},null,null,null,null,null,null,null,null,null,null,0,{"$f":"IF(ISERROR(O11*'Product info'!E11/'Product info'!AF11),0,O11*'Product info'!E11/'Product info'!AF11)","v":0}]
[null,10,{"$f":"IF(ISBLANK('Product info'!C12),\"\",'Product info'!C12)","v":""},{"$f":"IF(ISBLANK('Product info'!D12),\"\",'Product info'!D12)","v":""},null,null,null,null,null,null,null,null,null,null,0,{"$f":"IF(ISERROR(O12*'Product info'!E12/'Product info'!AF12),0,O12*'Product info'!E12/'Product info'!AF12)","v":0}]
[null,11,{"$f":"IF(ISBLANK('Product info'!C13),\"\",'Product info'!C13)","v":""},{"$f":"IF(ISBLANK('Product info'!D13),\"\",'Product info'!D13)","v":""},null,null,null,null,null,null,null,null,null,null,{"$f":"SUM(E13:N13)","v":0},{"$f":"IF(ISERROR(O13*'Product info'!E13/'Product info'!AF13),0,O13*'Product info'!E13/'Product info'!AF13)","v":0}]
[null,12,{"$f":"IF(ISBLANK('Product info'!C14),\"\",'Product info'!C14)","v":""},{"$f":"IF(ISBLANK('Product info'!D14),\"\",'Product info'!D14)","v":""},null,null,null,null,null,null,null,null,null,null,0,{"$f":"IF(ISERROR(O14*'Product info'!E14/'Product info'!AF14),0,O14*'Product info'!E14/'Product info'!AF14)","v":0}]
[null,13,{"$f":"IF(ISBLANK('Product info'!C15),\"\",'Product info'!C15)","v":""},{"$f":"IF(ISBLANK('Product info'!D15),\"\",'Product info'!D15)","v":""},null,null,null,null,null,null,null,null,null,null,0,{"$f":"IF(ISERROR(O15*'Product info'!E15/'Product info'!AF15),0,O15*'Product info'!E15/'Product info'!AF15)","v":0}]
[null,14,{"$f":"IF(ISBLANK('Product info'!C16),\"\",'Product info'!C16)","v":""},{"$f":"IF(ISBLANK('Product info'!D16),\"\",'Product info'!D16)","v":""},null,null,null,null,null,null,null,null,null,null,0,{"$f":"IF(ISERROR(O16*'Product info'!E16/'Product info'!AF16),0,O16*'Product info'!E16/'Product info'!AF16)","v":0}]
[null,15,{"$f":"IF(ISBLANK('Product info'!C17),\"\",'Product info'!C17)","v":""},{"$f":"IF(ISBLANK('Product info'!D17),\"\",'Product info'!D17)","v":""},null,null,null,null,null,null,null,null,null,null,0,{"$f":"IF(ISERROR(O17*'Product info'!E17/'Product info'!AF17),0,O17*'Product info'!E17/'Product info'!AF17)","v":0}]
[null,16,{"$f":"IF(ISBLANK('Product info'!C18),\"\",'Product info'!C18)","v":""},{"$f":"IF(ISBLANK('Product info'!D18),\"\",'Product info'!D18)","v":""},null,null,null,null,null,null,null,null,null,null,0,{"$f":"IF(ISERROR(O18*'Product info'!E18/'Product info'!AF18),0,O18*'Product info'!E18/'Product info'!AF18)","v":0}]
[null,17,{"$f":"IF(ISBLANK('Product info'!C19),\"\",'Product info'!C19)","v":""},{"$f":"IF(ISBLANK('Product info'!D19),\"\",'Product info'!D19)","v":""},null,null,null,null,null,null,null,null,null,null,0,{"$f":"IF(ISERROR(O19*'Product info'!E19/'Product info'!AF19),0,O19*'Product info'!E19/'Product info'!AF19)","v":0}]
[null,18,{"$f":"IF(ISBLANK('Product info'!C20),\"\",'Product info'!C20)","v":""},{"$f":"IF(ISBLANK('Product info'!D20),\"\",'Product info'!D20)","v":""},null,null,null,null,null,null,null,null,null,null,0,{"$f":"IF(ISERROR(O20*'Product info'!E20/'Product info'!AF20),0,O20*'Product info'!E20/'Product info'!AF20)","v":0}]
[null,19,{"$f":"IF(ISBLANK('Product info'!C21),\"\",'Product info'!C21)","v":""},{"$f":"IF(ISBLANK('Product info'!D21),\"\",'Product info'!D21)","v":""},null,null,null,null,null,null,null,null,null,null,0,{"$f":"IF(ISERROR(O21*'Product info'!E21/'Product info'!AF21),0,O21*'Product info'!E21/'Product info'!AF21)","v":0}]
[null,20,{"$f":"IF(ISBLANK('Product info'!C22),\"\",'Product info'!C22)","v":""},{"$f":"IF(ISBLANK('Product info'!D22),\"\",'Product info'!D22)","v":""},null,null,null,null,null,null,null,null,null,null,0,{"$f":"IF(ISERROR(O22*'Product info'!E22/'Product info'!AF22),0,O22*'Product info'!E22/'Product info'!AF22)","v":0}]
[null,21,{"$f":"IF(ISBLANK('Product info'!C23),\"\",'Product info'!C23)","v":""},{"$f":"IF(ISBLANK('Product info'!D23),\"\",'Product info'!D23)","v":""},null,null,null,null,null,null,null,null,null,null,0,{"$f":"IF(ISERROR(O23*'Product info'!E23/'Product info'!AF23),0,O23*'Product info'!E23/'Product info'!AF23)","v":0}]
[null,22,{"$f":"IF(ISBLANK('Product info'!C24),\"\",'Product info'!C24)","v":""},{"$f":"IF(ISBLANK('Product info'!D24),\"\",'Product info'!D24)","v":""},null,null,null,null,null,null,null,null,null,null,0,{"$f":"IF(ISERROR(O24*'Product info'!E24/'Product info'!AF24),0,O24*'Product info'!E24/'Product info'!AF24)","v":0}]
[null,23,{"$f":"IF(ISBLANK('Product info'!C25),\"\",'Product info'!C25)","v":""},{"$f":"IF(ISBLANK('Product info'!D25),\"\",'Product info'!D25)","v":""},null,null,null,null,null,null,null,null,null,null,0,{"$f":"IF(ISERROR(O25*'Product info'!E25/'Product info'!AF25),0,O25*'Product info'!E25/'Product info'!AF25)","v":0}]
[null,24,{"$f":"IF(ISBLANK('Product info'!C26),\"\",'Product info'!C26)","v":""},{"$f":"IF(ISBLANK('Product info'!D26),\"\",'Product info'!D26)","v":""},null,null,null,null,null,null,null,null,null,null,0,{"$f":"IF(ISERROR(O26*'Product info'!E26/'Product info'!AF26),0,O26*'Product info'!E26/'Product info'!AF26)","v":0}]
[null,25,{"$f":"IF(ISBLANK('Product info'!C27),\"\",'Product info'!C27)","v":""},{"$f":"IF(ISBLANK('Product info'!D27),\"\",'Product info'!D27)","v":""},null,null,null,null,null,null,null,null,null,null,0,{"$f":"IF(ISERROR(O27*'Product info'!E27/'Product info'!AF27),0,O27*'Product info'!E27/'Product info'!AF27)","v":0}]
[null,26,{"$f":"IF(ISBLANK('Product info'!C28),\"\",'Product info'!C28)","v":""},{"$f":"IF(ISBLANK('Product info'!D28),\"\",'Product info'!D28)","v":""},null,null,null,null,null,null,null,null,null,null,0,{"$f":"IF(ISERROR(O28*'Product info'!E28/'Product info'!AF28),0,O28*'Product info'!E28/'Product info'!AF28)","v":0}]
[null,27,{"$f":"IF(ISBLANK('Product info'!C29),\"\",'Product info'!C29)","v":""},{"$f":"IF(ISBLANK('Product info'!D29),\"\",'Product info'!D29)","v":""},null,null,null,null,null,null,null,null,null,null,0,{"$f":"IF(ISERROR(O29*'Product info'!E29/'Product info'!AF29),0,O29*'Product info'!E29/'Product info'!AF29)","v":0}]
[null,28,{"$f":"IF(ISBLANK('Product info'!C30),\"\",'Product info'!C30)","v":""},{"$f":"IF(ISBLANK('Product info'!D30),\"\",'Product info'!D30)","v":""},null,null,null,null,null,null,null,null,null,null,0,{"$f":"IF(ISERROR(O30*'Product info'!E30/'Product info'!AF30),0,O30*'Product info'!E30/'Product info'!AF30)","v":0}]
[null,29,{"$f":"IF(ISBLANK('Product info'!C31),\"\",'Product info'!C31)","v":""},{"$f":"IF(ISBLANK('Product info'!D31),\"\",'Product info'!D31)","v":""},null,null,null,null,null,null,null,null,null,null,0,{"$f":"IF(ISERROR(O31*'Product info'!E31/'Product info'!AF31),0,O31*'Product info'!E31/'Product info'!AF31)","v":0}]
[null,30,{"$f":"IF(ISBLANK('Product info'!C32),\"\",'Product info'!C32)","v":""},{"$f":"IF(ISBLANK('Product info'!D32),\"\",'Product info'!D32)","v":""},null,null,null,null,null,null,null,null,null,null,0,{"$f":"IF(ISERROR(O32*'Product info'!E32/'Product info'!AF32),0,O32*'Product info'!E32/'Product info'!AF32)","v":0}]
[null,31,{"$f":"IF(ISBLANK('Product info'!C33),\"\",'Product info'!C33)","v":""},{"$f":"IF(ISBLANK('Product info'!D33),\"\",'Product info'!D33)","v":""},null,null,null,null,null,null,null,null,null,null,0,{"$f":"IF(ISERROR(O33*'Product info'!E33/'Product info'!AF33),0,O33*'Product info'!E33/'Product info'!AF33)","v":0}]
[null,32,{"$f":"IF(ISBLANK('Product info'!C34),\"\",'Product info'!C34)","v":""},{"$f":"IF(ISBLANK('Product info'!D34),\"\",'Product info'!D34)","v":""},null,null,null,null,null,null,null,null,null,null,0,{"$f":"IF(ISERROR(O34*'Product info'!E34/'Product info'!AF34),0,O34*'Product info'!E34/'Product info'!AF34)","v":0}]
[null,33,{"$f":"IF(ISBLANK('Product info'!C35),\"\",'Product info'!C35)","v":""},{"$f":"IF(ISBLANK('Product info'!D35),\"\",'Product info'!D35)","v":""},null,null,null,null,null,null,null,null,null,null,0,{"$f":"IF(ISERROR(O35*'Product info'!E35/'Product info'!AF35),0,O35*'Product info'!E35/'Product info'!AF35)","v":0}]
[null,34,{"$f":"IF(ISBLANK('Product info'!C36),\"\",'Product info'!C36)","v":""},{"$f":"IF(ISBLANK('Product info'!D36),\"\",'Product info'!D36)","v":""},null,null,null,null,null,null,null,null,null,null,0,{"$f":"IF(ISERROR(O36*'Product info'!E36/'Product info'!AF36),0,O36*'Product info'!E36/'Product info'!AF36)","v":0}]
[null,35,{"$f":"IF(ISBLANK('Product info'!C37),\"\",'Product info'!C37)","v":""},{"$f":"IF(ISBLANK('Product info'!D37),\"\",'Product info'!D37)","v":""},null,null,null,null,null,null,null,null,null,null,0,{"$f":"IF(ISERROR(O37*'Product info'!E37/'Product info'!AF37),0,O37*'Product info'!E37/'Product info'!AF37)","v":0}]
[null,36,{"$f":"IF(ISBLANK('Product info'!C38),\"\",'Product info'!C38)","v":""},{"$f":"IF(ISBLANK('Product info'!D38),\"\",'Product info'!D38)","v":""},null,null,null,null,null,null,null,null,null,null,0,{"$f":"IF(ISERROR(O38*'Product info'!E38/'Product info'!AF38),0,O38*'Product info'!E38/'Product info'!AF38)","v":0}]
[null,37,{"$f":"IF(ISBLANK('Product info'!C39),\"\",'Product info'!C39)","v":""},{"$f":"IF(ISBLANK('Product info'!D39),\"\",'Product info'!D39)","v":""},null,null,null,null,null,null,null,null,null,null,0,{"$f":"IF(ISERROR(O39*'Product info'!E39/'Product info'!AF39),0,O39*'Product info'!E39/'Product info'!AF39)","v":0}]
[null,38,{"$f":"IF(ISBLANK('Product info'!C40),\"\",'Product info'!C40)","v":""},{"$f":"IF(ISBLANK('Product info'!D40),\"\",'Product info'!D40)","v":""},null,null,null,null,null,null,null,null,null,null,0,{"$f":"IF(ISERROR(O40*'Product info'!E40/'Product info'!AF40),0,O40*'Product info'!E40/'Product info'!AF40)","v":0}]
[null,39,{"$f":"IF(ISBLANK('Product info'!C41),\"\",'Product info'!C41)","v":""},{"$f":"IF(ISBLANK('Product info'!D41),\"\",'Product info'!D41)","v":""},null,null,null,null,null,null,null,null,null,null,0,{"$f":"IF(ISERROR(O41*'Product info'!E41/'Product info'!AF41),0,O41*'Product info'!E41/'Product info'!AF41)","v":0}]
[null,40,{"$f":"IF(ISBLANK('Product info'!C42),\"\",'Product info'!C42)","v":""},{"$f":"IF(ISBLANK('Product info'!D42),\"\",'Product info'!D42)","v":""},null,null,null,null,null,null,null,null,null,null,0,{"$f":"IF(ISERROR(O42*'Product info'!E42/'Product info'!AF42),0,O42*'Product info'!E42/'Product info'!AF42)","v":0}]
[null,41,{"$f":"IF(ISBLANK('Product info'!C43),\"\",'Product info'!C43)","v":""},{"$f":"IF(ISBLANK('Product info'!D43),\"\",'Product info'!D43)","v":""},null,null,null,null,null,null,null,null,null,null,0,{"$f":"IF(ISERROR(O43*'Product info'!E43/'Product info'!AF43),0,O43*'Product info'!E43/'Product info'!AF43)","v":0}]
[null,42,{"$f":"IF(ISBLANK('Product info'!C44),\"\",'Product info'!C44)","v":""},{"$f":"IF(ISBLANK('Product info'!D44),\"\",'Product info'!D44)","v":""},null,null,null,null,null,null,null,null,null,null,0,{"$f":"IF(ISERROR(O44*'Product info'!E44/'Product info'!AF44),0,O44*'Product info'!E44/'Product info'!AF44)","v":0}]
[null,43,{"$f":"IF(ISBLANK('Product info'!C45),\"\",'Product info'!C45)","v":""},{"$f":"IF(ISBLANK('Product info'!D45),\"\",'Product info'!D45)","v":""},null,null,null,null,null,null,null,null,null,null,0,{"$f":"IF(ISERROR(O45*'Product info'!E45/'Product info'!AF45),0,O45*'Product info'!E45/'Product info'!AF45)","v":0}]
[null,44,{"$f":"IF(ISBLANK('Product info'!C46),\"\",'Product info'!C46)","v":""},{"$f":"IF(ISBLANK('Product info'!D46),\"\",'Product info'!D46)","v":""},null,null,null,null,null,null,null,null,null,null,0,{"$f":"IF(ISERROR(O46*'Product info'!E46/'Product info'!AF46),0,O46*'Product info'!E46/'Product info'!AF46)","v":0}]
[null,45,{"$f":"IF(ISBLANK('Product info'!C47),\"\",'Product info'!C47)","v":""},{"$f":"IF(ISBLANK('Product info'!D47),\"\",'Product info'!D47)","v":""},null,null,null,null,null,null,null,null,null,null,0,{"$f":"IF(ISERROR(O47*'Product info'!E47/'Product info'!AF47),0,O47*'Product info'!E47/'Product info'!AF47)","v":0}]
[null,46,{"$f":"IF(ISBLANK('Product info'!C48),\"\",'Product info'!C48)","v":""},{"$f":"IF(ISBLANK('Product info'!D48),\"\",'Product info'!D48)","v":""},null,null,null,null,null,null,null,null,null,null,0,{"$f":"IF(ISERROR(O48*'Product info'!E48/'Product info'!AF48),0,O48*'Product info'!E48/'Product info'!AF48)","v":0}]
[null,47,{"$f":"IF(ISBLANK('Product info'!C49),\"\",'Product info'!C49)","v":""},{"$f":"IF(ISBLANK('Product info'!D49),\"\",'Product info'!D49)","v":""},null,null,null,null,null,null,null,null,null,null,0,{"$f":"IF(ISERROR(O49*'Product info'!E49/'Product info'!AF49),0,O49*'Product info'!E49/'Product info'!AF49)","v":0}]
[null,48,{"$f":"IF(ISBLANK('Product info'!C50),\"\",'Product info'!C50)","v":""},{"$f":"IF(ISBLANK('Product info'!D50),\"\",'Product info'!D50)","v":""},null,null,null,null,null,null,null,null,null,null,0,{"$f":"IF(ISERROR(O50*'Product info'!E50/'Product info'!AF50),0,O50*'Product info'!E50/'Product info'!AF50)","v":0}]
[null,49,{"$f":"IF(ISBLANK('Product info'!C51),\"\",'Product info'!C51)","v":""},{"$f":"IF(ISBLANK('Product info'!D51),\"\",'Product info'!D51)","v":""},null,null,null,null,null,null,null,null,null,null,0,{"$f":"IF(ISERROR(O51*'Product info'!E51/'Product info'!AF51),0,O51*'Product info'!E51/'Product info'!AF51)","v":0}]
[null,50,{"$f":"IF(ISBLANK('Product info'!C52),\"\",'Product info'!C52)","v":""},{"$f":"IF(ISBLANK('Product info'!D52),\"\",'Product info'!D52)","v":""},null,null,null,null,null,null,null,null,null,null,0,{"$f":"IF(ISERROR(O52*'Product info'!E52/'Product info'!AF52),0,O52*'Product info'!E52/'Product info'!AF52)","v":0}]
[null,51,{"$f":"IF(ISBLANK('Product info'!C53),\"\",'Product info'!C53)","v":""},{"$f":"IF(ISBLANK('Product info'!D53),\"\",'Product info'!D53)","v":""},null,null,null,null,null,null,null,null,null,null,0,{"$f":"IF(ISERROR(O53*'Product info'!E53/'Product info'!AF53),0,O53*'Product info'!E53/'Product info'!AF53)","v":0}]
[null,52,{"$f":"IF(ISBLANK('Product info'!C54),\"\",'Product info'!C54)","v":""},{"$f":"IF(ISBLANK('Product info'!D54),\"\",'Product info'!D54)","v":""},null,null,null,null,null,null,null,null,null,null,0,{"$f":"IF(ISERROR(O54*'Product info'!E54/'Product info'!AF54),0,O54*'Product info'!E54/'Product info'!AF54)","v":0}]
[null,53,{"$f":"IF(ISBLANK('Product info'!C55),\"\",'Product info'!C55)","v":""},{"$f":"IF(ISBLANK('Product info'!D55),\"\",'Product info'!D55)","v":""},null,null,null,null,null,null,null,null,null,null,0,{"$f":"IF(ISERROR(O55*'Product info'!E55/'Product info'!AF55),0,O55*'Product info'!E55/'Product info'!AF55)","v":0}]
[null,54,{"$f":"IF(ISBLANK('Product info'!C56),\"\",'Product info'!C56)","v":""},{"$f":"IF(ISBLANK('Product info'!D56),\"\",'Product info'!D56)","v":""},null,null,null,null,null,null,null,null,null,null,0,{"$f":"IF(ISERROR(O56*'Product info'!E56/'Product info'!AF56),0,O56*'Product info'!E56/'Product info'!AF56)","v":0}]
[null,55,{"$f":"IF(ISBLANK('Product info'!C57),\"\",'Product info'!C57)","v":""},{"$f":"IF(ISBLANK('Product info'!D57),\"\",'Product info'!D57)","v":""},null,null,null,null,null,null,null,null,null,null,0,{"$f":"IF(ISERROR(O57*'Product info'!E57/'Product info'!AF57),0,O57*'Product info'!E57/'Product info'!AF57)","v":0}]
[null,56,{"$f":"IF(ISBLANK('Product info'!C58),\"\",'Product info'!C58)","v":""},{"$f":"IF(ISBLANK('Product info'!D58),\"\",'Product info'!D58)","v":""},null,null,null,null,null,null,null,null,null,null,0,{"$f":"IF(ISERROR(O58*'Product info'!E58/'Product info'!AF58),0,O58*'Product info'!E58/'Product info'!AF58)","v":0}]
[null,57,{"$f":"IF(ISBLANK('Product info'!C59),\"\",'Product info'!C59)","v":""},{"$f":"IF(ISBLANK('Product info'!D59),\"\",'Product info'!D59)","v":""},null,null,null,null,null,null,null,null,null,null,0,{"$f":"IF(ISERROR(O59*'Product info'!E59/'Product info'!AF59),0,O59*'Product info'!E59/'Product info'!AF59)","v":0}]
[null,58,{"$f":"IF(ISBLANK('Product info'!C60),\"\",'Product info'!C60)","v":""},{"$f":"IF(ISBLANK('Product info'!D60),\"\",'Product info'!D60)","v":""},null,null,null,null,null,null,null,null,null,null,0,{"$f":"IF(ISERROR(O60*'Product info'!E60/'Product info'!AF60),0,O60*'Product info'!E60/'Product info'!AF60)","v":0}]
[null,59,{"$f":"IF(ISBLANK('Product info'!C61),\"\",'Product info'!C61)","v":""},{"$f":"IF(ISBLANK('Product info'!D61),\"\",'Product info'!D61)","v":""},null,null,null,null,null,null,null,null,null,null,0,{"$f":"IF(ISERROR(O61*'Product info'!E61/'Product info'!AF61),0,O61*'Product info'!E61/'Product info'!AF61)","v":0}]
[null,60,{"$f":"IF(ISBLANK('Product info'!C62),\"\",'Product info'!C62)","v":""},{"$f":"IF(ISBLANK('Product info'!D62),\"\",'Product info'!D62)","v":""},null,null,null,null,null,null,null,null,null,null,0,{"$f":"IF(ISERROR(O62*'Product info'!E62/'Product info'!AF62),0,O62*'Product info'!E62/'Product info'!AF62)","v":0}]
[null,61,{"$f":"IF(ISBLANK('Product info'!C63),\"\",'Product info'!C63)","v":""},{"$f":"IF(ISBLANK('Product info'!D63),\"\",'Product info'!D63)","v":""},null,null,null,null,null,null,null,null,null,null,0,{"$f":"IF(ISERROR(O63*'Product info'!E63/'Product info'!AF63),0,O63*'Product info'!E63/'Product info'!AF63)","v":0}]
[null,62,{"$f":"IF(ISBLANK('Product info'!C64),\"\",'Product info'!C64)","v":""},{"$f":"IF(ISBLANK('Product info'!D64),\"\",'Product info'!D64)","v":""},null,null,null,null,null,null,null,null,null,null,0,{"$f":"IF(ISERROR(O64*'Product info'!E64/'Product info'!AF64),0,O64*'Product info'!E64/'Product info'!AF64)","v":0}]
[null,63,{"$f":"IF(ISBLANK('Product info'!C65),\"\",'Product info'!C65)","v":""},{"$f":"IF(ISBLANK('Product info'!D65),\"\",'Product info'!D65)","v":""},null,null,null,null,null,null,null,null,null,null,0,{"$f":"IF(ISERROR(O65*'Product info'!E65/'Product info'!AF65),0,O65*'Product info'!E65/'Product info'!AF65)","v":0}]
[null,64,{"$f":"IF(ISBLANK('Product info'!C66),\"\",'Product info'!C66)","v":""},{"$f":"IF(ISBLANK('Product info'!D66),\"\",'Product info'!D66)","v":""},null,null,null,null,null,null,null,null,null,null,0,{"$f":"IF(ISERROR(O66*'Product info'!E66/'Product info'!AF66),0,O66*'Product info'!E66/'Product info'!AF66)","v":0}]
[null,65,{"$f":"IF(ISBLANK('Product info'!C67),\"\",'Product info'!C67)","v":""},{"$f":"IF(ISBLANK('Product info'!D67),\"\",'Product info'!D67)","v":""},null,null,null,null,null,null,null,null,null,null,0,{"$f":"IF(ISERROR(O67*'Product info'!E67/'Product info'!AF67),0,O67*'Product info'!E67/'Product info'!AF67)","v":0}]
[null,66,{"$f":"IF(ISBLANK('Product info'!C68),\"\",'Product info'!C68)","v":""},{"$f":"IF(ISBLANK('Product info'!D68),\"\",'Product info'!D68)","v":""},null,null,null,null,null,null,null,null,null,null,0,{"$f":"IF(ISERROR(O68*'Product info'!E68/'Product info'!AF68),0,O68*'Product info'!E68/'Product info'!AF68)","v":0}]
[null,67,{"$f":"IF(ISBLANK('Product info'!C69),\"\",'Product info'!C69)","v":""},{"$f":"IF(ISBLANK('Product info'!D69),\"\",'Product info'!D69)","v":""},null,null,null,null,null,null,null,null,null,null,0,{"$f":"IF(ISERROR(O69*'Product info'!E69/'Product info'!AF69),0,O69*'Product info'!E69/'Product info'!AF69)","v":0}]
[null,68,{"$f":"IF(ISBLANK('Product info'!C70),\"\",'Product info'!C70)","v":""},{"$f":"IF(ISBLANK('Product info'!D70),\"\",'Product info'!D70)","v":""},null,null,null,null,null,null,null,null,null,null,0,{"$f":"IF(ISERROR(O70*'Product info'!E70/'Product info'!AF70),0,O70*'Product info'!E70/'Product info'!AF70)","v":0}]
[null,69,{"$f":"IF(ISBLANK('Product info'!C71),\"\",'Product info'!C71)","v":""},{"$f":"IF(ISBLANK('Product info'!D71),\"\",'Product info'!D71)","v":""},null,null,null,null,null,null,null,null,null,null,0,{"$f":"IF(ISERROR(O71*'Product info'!E71/'Product info'!AF71),0,O71*'Product info'!E71/'Product info'!AF71)","v":0}]
[null,70,{"$f":"IF(ISBLANK('Product info'!C72),\"\",'Product info'!C72)","v":""},{"$f":"IF(ISBLANK('Product info'!D72),\"\",'Product info'!D72)","v":""},null,null,null,null,null,null,null,null,null,null,0,{"$f":"IF(ISERROR(O72*'Product info'!E72/'Product info'!AF72),0,O72*'Product info'!E72/'Product info'!AF72)","v":0}]
[null,71,{"$f":"IF(ISBLANK('Product info'!C73),\"\",'Product info'!C73)","v":""},{"$f":"IF(ISBLANK('Product info'!D73),\"\",'Product info'!D73)","v":""},null,null,null,null,null,null,null,null,null,null,0,{"$f":"IF(ISERROR(O73*'Product info'!E73/'Product info'!AF73),0,O73*'Product info'!E73/'Product info'!AF73)","v":0}]
[null,72,{"$f":"IF(ISBLANK('Product info'!C74),\"\",'Product info'!C74)","v":""},{"$f":"IF(ISBLANK('Product info'!D74),\"\",'Product info'!D74)","v":""},null,null,null,null,null,null,null,null,null,null,0,{"$f":"IF(ISERROR(O74*'Product info'!E74/'Product info'!AF74),0,O74*'Product info'!E74/'Product info'!AF74)","v":0}]
[null,73,{"$f":"IF(ISBLANK('Product info'!C75),\"\",'Product info'!C75)","v":""},{"$f":"IF(ISBLANK('Product info'!D75),\"\",'Product info'!D75)","v":""},null,null,null,null,null,null,null,null,null,null,0,{"$f":"IF(ISERROR(O75*'Product info'!E75/'Product info'!AF75),0,O75*'Product info'!E75/'Product info'!AF75)","v":0}]
[null,74,{"$f":"IF(ISBLANK('Product info'!C76),\"\",'Product info'!C76)","v":""},{"$f":"IF(ISBLANK('Product info'!D76),\"\",'Product info'!D76)","v":""},null,null,null,null,null,null,null,null,null,null,0,{"$f":"IF(ISERROR(O76*'Product info'!E76/'Product info'!AF76),0,O76*'Product info'!E76/'Product info'!AF76)","v":0}]
[null,75,{"$f":"IF(ISBLANK('Product info'!C77),\"\",'Product info'!C77)","v":""},{"$f":"IF(ISBLANK('Product info'!D77),\"\",'Product info'!D77)","v":""},null,null,null,null,null,null,null,null,null,null,{"$f":"SUM(E77:N77)","v":0},{"$f":"IF(ISERROR(O77*'Product info'!E77/'Product info'!AF77),0,O77*'Product info'!E77/'Product info'!AF77)","v":0}]
[null,76,{"$f":"IF(ISBLANK('Product info'!C78),\"\",'Product info'!C78)","v":""},{"$f":"IF(ISBLANK('Product info'!D78),\"\",'Product info'!D78)","v":""},null,null,null,null,null,null,null,null,null,null,0,{"$f":"IF(ISERROR(O78*'Product info'!E78/'Product info'!AF78),0,O78*'Product info'!E78/'Product info'!AF78)","v":0}]
[null,77,{"$f":"IF(ISBLANK('Product info'!C79),\"\",'Product info'!C79)","v":""},{"$f":"IF(ISBLANK('Product info'!D79),\"\",'Product info'!D79)","v":""},null,null,null,null,null,null,null,null,null,null,0,{"$f":"IF(ISERROR(O79*'Product info'!E79/'Product info'!AF79),0,O79*'Product info'!E79/'Product info'!AF79)","v":0}]
[null,78,{"$f":"IF(ISBLANK('Product info'!C80),\"\",'Product info'!C80)","v":""},{"$f":"IF(ISBLANK('Product info'!D80),\"\",'Product info'!D80)","v":""},null,null,null,null,null,null,null,null,null,null,0,{"$f":"IF(ISERROR(O80*'Product info'!E80/'Product info'!AF80),0,O80*'Product info'!E80/'Product info'!AF80)","v":0}]
[null,79,{"$f":"IF(ISBLANK('Product info'!C81),\"\",'Product info'!C81)","v":""},{"$f":"IF(ISBLANK('Product info'!D81),\"\",'Product info'!D81)","v":""},null,null,null,null,null,null,null,null,null,null,0,{"$f":"IF(ISERROR(O81*'Product info'!E81/'Product info'!AF81),0,O81*'Product info'!E81/'Product info'!AF81)","v":0}]
[null,80,{"$f":"IF(ISBLANK('Product info'!C82),\"\",'Product info'!C82)","v":""},{"$f":"IF(ISBLANK('Product info'!D82),\"\",'Product info'!D82)","v":""},null,null,null,null,null,null,null,null,null,null,0,{"$f":"IF(ISERROR(O82*'Product info'!E82/'Product info'!AF82),0,O82*'Product info'!E82/'Product info'!AF82)","v":0}]
[null,81,{"$f":"IF(ISBLANK('Product info'!C83),\"\",'Product info'!C83)","v":""},{"$f":"IF(ISBLANK('Product info'!D83),\"\",'Product info'!D83)","v":""},null,null,null,null,null,null,null,null,null,null,0,{"$f":"IF(ISERROR(O83*'Product info'!E83/'Product info'!AF83),0,O83*'Product info'!E83/'Product info'!AF83)","v":0}]
[null,82,{"$f":"IF(ISBLANK('Product info'!C84),\"\",'Product info'!C84)","v":""},{"$f":"IF(ISBLANK('Product info'!D84),\"\",'Product info'!D84)","v":""},null,null,null,null,null,null,null,null,null,null,0,{"$f":"IF(ISERROR(O84*'Product info'!E84/'Product info'!AF84),0,O84*'Product info'!E84/'Product info'!AF84)","v":0}]
[null,83,{"$f":"IF(ISBLANK('Product info'!C85),\"\",'Product info'!C85)","v":""},{"$f":"IF(ISBLANK('Product info'!D85),\"\",'Product info'!D85)","v":""},null,null,null,null,null,null,null,null,null,null,0,{"$f":"IF(ISERROR(O85*'Product info'!E85/'Product info'!AF85),0,O85*'Product info'!E85/'Product info'!AF85)","v":0}]
[null,84,{"$f":"IF(ISBLANK('Product info'!C86),\"\",'Product info'!C86)","v":""},{"$f":"IF(ISBLANK('Product info'!D86),\"\",'Product info'!D86)","v":""},null,null,null,null,null,null,null,null,null,null,0,{"$f":"IF(ISERROR(O86*'Product info'!E86/'Product info'!AF86),0,O86*'Product info'!E86/'Product info'!AF86)","v":0}]
[null,85,{"$f":"IF(ISBLANK('Product info'!C87),\"\",'Product info'!C87)","v":""},{"$f":"IF(ISBLANK('Product info'!D87),\"\",'Product info'!D87)","v":""},null,null,null,null,null,null,null,null,null,null,0,{"$f":"IF(ISERROR(O87*'Product info'!E87/'Product info'!AF87),0,O87*'Product info'!E87/'Product info'!AF87)","v":0}]
[null,86,{"$f":"IF(ISBLANK('Product info'!C88),\"\",'Product info'!C88)","v":""},{"$f":"IF(ISBLANK('Product info'!D88),\"\",'Product info'!D88)","v":""},null,null,null,null,null,null,null,null,null,null,0,{"$f":"IF(ISERROR(O88*'Product info'!E88/'Product info'!AF88),0,O88*'Product info'!E88/'Product info'!AF88)","v":0}]
[null,87,{"$f":"IF(ISBLANK('Product info'!C89),\"\",'Product info'!C89)","v":""},{"$f":"IF(ISBLANK('Product info'!D89),\"\",'Product info'!D89)","v":""},null,null,null,null,null,null,null,null,null,null,0,{"$f":"IF(ISERROR(O89*'Product info'!E89/'Product info'!AF89),0,O89*'Product info'!E89/'Product info'!AF89)","v":0}]
[null,88,{"$f":"IF(ISBLANK('Product info'!C90),\"\",'Product info'!C90)","v":""},{"$f":"IF(ISBLANK('Product info'!D90),\"\",'Product info'!D90)","v":""},null,null,null,null,null,null,null,null,null,null,0,{"$f":"IF(ISERROR(O90*'Product info'!E90/'Product info'!AF90),0,O90*'Product info'!E90/'Product info'!AF90)","v":0}]
[null,89,{"$f":"IF(ISBLANK('Product info'!C91),\"\",'Product info'!C91)","v":""},{"$f":"IF(ISBLANK('Product info'!D91),\"\",'Product info'!D91)","v":""},null,null,null,null,null,null,null,null,null,null,0,{"$f":"IF(ISERROR(O91*'Product info'!E91/'Product info'!AF91),0,O91*'Product info'!E91/'Product info'!AF91)","v":0}]
[null,90,{"$f":"IF(ISBLANK('Product info'!C92),\"\",'Product info'!C92)","v":""},{"$f":"IF(ISBLANK('Product info'!D92),\"\",'Product info'!D92)","v":""},null,null,null,null,null,null,null,null,null,null,0,{"$f":"IF(ISERROR(O92*'Product info'!E92/'Product info'!AF92),0,O92*'Product info'!E92/'Product info'!AF92)","v":0}]
[null,91,{"$f":"IF(ISBLANK('Product info'!C93),\"\",'Product info'!C93)","v":""},{"$f":"IF(ISBLANK('Product info'!D93),\"\",'Product info'!D93)","v":""},null,null,null,null,null,null,null,null,null,null,0,{"$f":"IF(ISERROR(O93*'Product info'!E93/'Product info'!AF93),0,O93*'Product info'!E93/'Product info'!AF93)","v":0}]
[null,92,{"$f":"IF(ISBLANK('Product info'!C94),\"\",'Product info'!C94)","v":""},{"$f":"IF(ISBLANK('Product info'!D94),\"\",'Product info'!D94)","v":""},null,null,null,null,null,null,null,null,null,null,0,{"$f":"IF(ISERROR(O94*'Product info'!E94/'Product info'!AF94),0,O94*'Product info'!E94/'Product info'!AF94)","v":0}]
[null,93,{"$f":"IF(ISBLANK('Product info'!C95),\"\",'Product info'!C95)","v":""},{"$f":"IF(ISBLANK('Product info'!D95),\"\",'Product info'!D95)","v":""},null,null,null,null,null,null,null,null,null,null,0,{"$f":"IF(ISERROR(O95*'Product info'!E95/'Product info'!AF95),0,O95*'Product info'!E95/'Product info'!AF95)","v":0}]
[null,94,{"$f":"IF(ISBLANK('Product info'!C96),\"\",'Product info'!C96)","v":""},{"$f":"IF(ISBLANK('Product info'!D96),\"\",'Product info'!D96)","v":""},null,null,null,null,null,null,null,null,null,null,0,{"$f":"IF(ISERROR(O96*'Product info'!E96/'Product info'!AF96),0,O96*'Product info'!E96/'Product info'!AF96)","v":0}]
[null,95,{"$f":"IF(ISBLANK('Product info'!C97),\"\",'Product info'!C97)","v":""},{"$f":"IF(ISBLANK('Product info'!D97),\"\",'Product info'!D97)","v":""},null,null,null,null,null,null,null,null,null,null,0,{"$f":"IF(ISERROR(O97*'Product info'!E97/'Product info'!AF97),0,O97*'Product info'!E97/'Product info'!AF97)","v":0}]
[null,96,{"$f":"IF(ISBLANK('Product info'!C98),\"\",'Product info'!C98)","v":""},{"$f":"IF(ISBLANK('Product info'!D98),\"\",'Product info'!D98)","v":""},null,null,null,null,null,null,null,null,null,null,0,{"$f":"IF(ISERROR(O98*'Product info'!E98/'Product info'!AF98),0,O98*'Product info'!E98/'Product info'!AF98)","v":0}]
[null,97,{"$f":"IF(ISBLANK('Product info'!C99),\"\",'Product info'!C99)","v":""},{"$f":"IF(ISBLANK('Product info'!D99),\"\",'Product info'!D99)","v":""},null,null,null,null,null,null,null,null,null,null,0,{"$f":"IF(ISERROR(O99*'Product info'!E99/'Product info'!AF99),0,O99*'Product info'!E99/'Product info'!AF99)","v":0}]
[null,98,{"$f":"IF(ISBLANK('Product info'!C100),\"\",'Product info'!C100)","v":""},{"$f":"IF(ISBLANK('Product info'!D100),\"\",'Product info'!D100)","v":""},null,null,null,null,null,null,null,null,null,null,0,{"$f":"IF(ISERROR(O100*'Product info'!E100/'Product info'!AF100),0,O100*'Product info'!E100/'Product info'!AF100)","v":0}]
[null,99,{"$f":"IF(ISBLANK('Product info'!C101),\"\",'Product info'!C101)","v":""},{"$f":"IF(ISBLANK('Product info'!D101),\"\",'Product info'!D101)","v":""},null,null,null,null,null,null,null,null,null,null,0,{"$f":"IF(ISERROR(O101*'Product info'!E101/'Product info'!AF101),0,O101*'Product info'!E101/'Product info'!AF101)","v":0}]
[null,100,{"$f":"IF(ISBLANK('Product info'!C102),\"\",'Product info'!C102)","v":""},{"$f":"IF(ISBLANK('Product info'!D102),\"\",'Product info'!D102)","v":""},null,null,null,null,null,null,null,null,null,null,0,{"$f":"IF(ISERROR(O102*'Product info'!E102/'Product info'!AF102),0,O102*'Product info'!E102/'Product info'!AF102)","v":0}]
[null,101,{"$f":"IF(ISBLANK('Product info'!C103),\"\",'Product info'!C103)","v":""},{"$f":"IF(ISBLANK('Product info'!D103),\"\",'Product info'!D103)","v":""},null,null,null,null,null,null,null,null,null,null,0,{"$f":"IF(ISERROR(O103*'Product info'!E103/'Product info'!AF103),0,O103*'Product info'!E103/'Product info'!AF103)","v":0}]
[null,102,{"$f":"IF(ISBLANK('Product info'!C104),\"\",'Product info'!C104)","v":""},{"$f":"IF(ISBLANK('Product info'!D104),\"\",'Product info'!D104)","v":""},null,null,null,null,null,null,null,null,null,null,0,{"$f":"IF(ISERROR(O104*'Product info'!E104/'Product info'!AF104),0,O104*'Product info'!E104/'Product info'!AF104)","v":0}]
[null,103,{"$f":"IF(ISBLANK('Product info'!C105),\"\",'Product info'!C105)","v":""},{"$f":"IF(ISBLANK('Product info'!D105),\"\",'Product info'!D105)","v":""},null,null,null,null,null,null,null,null,null,null,0,{"$f":"IF(ISERROR(O105*'Product info'!E105/'Product info'!AF105),0,O105*'Product info'!E105/'Product info'!AF105)","v":0}]
[null,104,{"$f":"IF(ISBLANK('Product info'!C106),\"\",'Product info'!C106)","v":""},{"$f":"IF(ISBLANK('Product info'!D106),\"\",'Product info'!D106)","v":""},null,null,null,null,null,null,null,null,null,null,0,{"$f":"IF(ISERROR(O106*'Product info'!E106/'Product info'!AF106),0,O106*'Product info'!E106/'Product info'!AF106)","v":0}]
[null,105,{"$f":"IF(ISBLANK('Product info'!C107),\"\",'Product info'!C107)","v":""},{"$f":"IF(ISBLANK('Product info'!D107),\"\",'Product info'!D107)","v":""},null,null,null,null,null,null,null,null,null,null,0,{"$f":"IF(ISERROR(O107*'Product info'!E107/'Product info'!AF107),0,O107*'Product info'!E107/'Product info'!AF107)","v":0}]
[null,106,{"$f":"IF(ISBLANK('Product info'!C108),\"\",'Product info'!C108)","v":""},{"$f":"IF(ISBLANK('Product info'!D108),\"\",'Product info'!D108)","v":""},null,null,null,null,null,null,null,null,null,null,0,{"$f":"IF(ISERROR(O108*'Product info'!E108/'Product info'!AF108),0,O108*'Product info'!E108/'Product info'!AF108)","v":0}]
[null,107,{"$f":"IF(ISBLANK('Product info'!C109),\"\",'Product info'!C109)","v":""},{"$f":"IF(ISBLANK('Product info'!D109),\"\",'Product info'!D109)","v":""},null,null,null,null,null,null,null,null,null,null,0,{"$f":"IF(ISERROR(O109*'Product info'!E109/'Product info'!AF109),0,O109*'Product info'!E109/'Product info'!AF109)","v":0}]
[null,108,{"$f":"IF(ISBLANK('Product info'!C110),\"\",'Product info'!C110)","v":""},{"$f":"IF(ISBLANK('Product info'!D110),\"\",'Product info'!D110)","v":""},null,null,null,null,null,null,null,null,null,null,0,{"$f":"IF(ISERROR(O110*'Product info'!E110/'Product info'!AF110),0,O110*'Product info'!E110/'Product info'!AF110)","v":0}]
[null,109,{"$f":"IF(ISBLANK('Product info'!C111),\"\",'Product info'!C111)","v":""},{"$f":"IF(ISBLANK('Product info'!D111),\"\",'Product info'!D111)","v":""},null,null,null,null,null,null,null,null,null,null,0,{"$f":"IF(ISERROR(O111*'Product info'!E111/'Product info'!AF111),0,O111*'Product info'!E111/'Product info'!AF111)","v":0}]
[null,110,{"$f":"IF(ISBLANK('Product info'!C112),\"\",'Product info'!C112)","v":""},{"$f":"IF(ISBLANK('Product info'!D112),\"\",'Product info'!D112)","v":""},null,null,null,null,null,null,null,null,null,null,0,{"$f":"IF(ISERROR(O112*'Product info'!E112/'Product info'!AF112),0,O112*'Product info'!E112/'Product info'!AF112)","v":0}]
[null,111,{"$f":"IF(ISBLANK('Product info'!C113),\"\",'Product info'!C113)","v":""},{"$f":"IF(ISBLANK('Product info'!D113),\"\",'Product info'!D113)","v":""},null,null,null,null,null,null,null,null,null,null,0,{"$f":"IF(ISERROR(O113*'Product info'!E113/'Product info'!AF113),0,O113*'Product info'!E113/'Product info'!AF113)","v":0}]
[null,112,{"$f":"IF(ISBLANK('Product info'!C114),\"\",'Product info'!C114)","v":""},{"$f":"IF(ISBLANK('Product info'!D114),\"\",'Product info'!D114)","v":""},null,null,null,null,null,null,null,null,null,null,0,{"$f":"IF(ISERROR(O114*'Product info'!E114/'Product info'!AF114),0,O114*'Product info'!E114/'Product info'!AF114)","v":0}]
[null,113,{"$f":"IF(ISBLANK('Product info'!C115),\"\",'Product info'!C115)","v":""},{"$f":"IF(ISBLANK('Product info'!D115),\"\",'Product info'!D115)","v":""},null,null,null,null,null,null,null,null,null,null,0,{"$f":"IF(ISERROR(O115*'Product info'!E115/'Product info'!AF115),0,O115*'Product info'!E115/'Product info'!AF115)","v":0}]
[null,114,{"$f":"IF(ISBLANK('Product info'!C116),\"\",'Product info'!C116)","v":""},{"$f":"IF(ISBLANK('Product info'!D116),\"\",'Product info'!D116)","v":""},null,null,null,null,null,null,null,null,null,null,0,{"$f":"IF(ISERROR(O116*'Product info'!E116/'Product info'!AF116),0,O116*'Product info'!E116/'Product info'!AF116)","v":0}]
[null,115,{"$f":"IF(ISBLANK('Product info'!C117),\"\",'Product info'!C117)","v":""},{"$f":"IF(ISBLANK('Product info'!D117),\"\",'Product info'!D117)","v":""},null,null,null,null,null,null,null,null,null,null,0,{"$f":"IF(ISERROR(O117*'Product info'!E117/'Product info'!AF117),0,O117*'Product info'!E117/'Product info'!AF117)","v":0}]
[null,116,{"$f":"IF(ISBLANK('Product info'!C118),\"\",'Product info'!C118)","v":""},{"$f":"IF(ISBLANK('Product info'!D118),\"\",'Product info'!D118)","v":""},null,null,null,null,null,null,null,null,null,null,0,{"$f":"IF(ISERROR(O118*'Product info'!E118/'Product info'!AF118),0,O118*'Product info'!E118/'Product info'!AF118)","v":0}]
[null,117,{"$f":"IF(ISBLANK('Product info'!C119),\"\",'Product info'!C119)","v":""},{"$f":"IF(ISBLANK('Product info'!D119),\"\",'Product info'!D119)","v":""},null,null,null,null,null,null,null,null,null,null,0,{"$f":"IF(ISERROR(O119*'Product info'!E119/'Product info'!AF119),0,O119*'Product info'!E119/'Product info'!AF119)","v":0}]
[null,118,{"$f":"IF(ISBLANK('Product info'!C120),\"\",'Product info'!C120)","v":""},{"$f":"IF(ISBLANK('Product info'!D120),\"\",'Product info'!D120)","v":""},null,null,null,null,null,null,null,null,null,null,0,{"$f":"IF(ISERROR(O120*'Product info'!E120/'Product info'!AF120),0,O120*'Product info'!E120/'Product info'!AF120)","v":0}]
[null,119,{"$f":"IF(ISBLANK('Product info'!C121),\"\",'Product info'!C121)","v":""},{"$f":"IF(ISBLANK('Product info'!D121),\"\",'Product info'!D121)","v":""},null,null,null,null,null,null,null,null,null,null,0,{"$f":"IF(ISERROR(O121*'Product info'!E121/'Product info'!AF121),0,O121*'Product info'!E121/'Product info'!AF121)","v":0}]
[null,120,{"$f":"IF(ISBLANK('Product info'!C122),\"\",'Product info'!C122)","v":""},{"$f":"IF(ISBLANK('Product info'!D122),\"\",'Product info'!D122)","v":""},null,null,null,null,null,null,null,null,null,null,0,{"$f":"IF(ISERROR(O122*'Product info'!E122/'Product info'!AF122),0,O122*'Product info'!E122/'Product info'!AF122)","v":0}]
[null,121,{"$f":"IF(ISBLANK('Product info'!C123),\"\",'Product info'!C123)","v":""},{"$f":"IF(ISBLANK('Product info'!D123),\"\",'Product info'!D123)","v":""},null,null,null,null,null,null,null,null,null,null,0,{"$f":"IF(ISERROR(O123*'Product info'!E123/'Product info'!AF123),0,O123*'Product info'!E123/'Product info'!AF123)","v":0}]
[null,122,{"$f":"IF(ISBLANK('Product info'!C124),\"\",'Product info'!C124)","v":""},{"$f":"IF(ISBLANK('Product info'!D124),\"\",'Product info'!D124)","v":""},null,null,null,null,null,null,null,null,null,null,0,{"$f":"IF(ISERROR(O124*'Product info'!E124/'Product info'!AF124),0,O124*'Product info'!E124/'Product info'!AF124)","v":0}]
[null,123,{"$f":"IF(ISBLANK('Product info'!C125),\"\",'Product info'!C125)","v":""},{"$f":"IF(ISBLANK('Product info'!D125),\"\",'Product info'!D125)","v":""},null,null,null,null,null,null,null,null,null,null,0,{"$f":"IF(ISERROR(O125*'Product info'!E125/'Product info'!AF125),0,O125*'Product info'!E125/'Product info'!AF125)","v":0}]
[null,124,{"$f":"IF(ISBLANK('Product info'!C126),\"\",'Product info'!C126)","v":""},{"$f":"IF(ISBLANK('Product info'!D126),\"\",'Product info'!D126)","v":""},null,null,null,null,null,null,null,null,null,null,0,{"$f":"IF(ISERROR(O126*'Product info'!E126/'Product info'!AF126),0,O126*'Product info'!E126/'Product info'!AF126)","v":0}]
[null,125,{"$f":"IF(ISBLANK('Product info'!C127),\"\",'Product info'!C127)","v":""},{"$f":"IF(ISBLANK('Product info'!D127),\"\",'Product info'!D127)","v":""},null,null,null,null,null,null,null,null,null,null,0,{"$f":"IF(ISERROR(O127*'Product info'!E127/'Product info'!AF127),0,O127*'Product info'!E127/'Product info'!AF127)","v":0}]
[null,126,{"$f":"IF(ISBLANK('Product info'!C128),\"\",'Product info'!C128)","v":""},{"$f":"IF(ISBLANK('Product info'!D128),\"\",'Product info'!D128)","v":""},null,null,null,null,null,null,null,null,null,null,0,{"$f":"IF(ISERROR(O128*'Product info'!E128/'Product info'!AF128),0,O128*'Product info'!E128/'Product info'!AF128)","v":0}]
[null,127,{"$f":"IF(ISBLANK('Product info'!C129),\"\",'Product info'!C129)","v":""},{"$f":"IF(ISBLANK('Product info'!D129),\"\",'Product info'!D129)","v":""},null,null,null,null,null,null,null,null,null,null,0,{"$f":"IF(ISERROR(O129*'Product info'!E129/'Product info'!AF129),0,O129*'Product info'!E129/'Product info'!AF129)","v":0}]
[null,128,{"$f":"IF(ISBLANK('Product info'!C130),\"\",'Product info'!C130)","v":""},{"$f":"IF(ISBLANK('Product info'!D130),\"\",'Product info'!D130)","v":""},null,null,null,null,null,null,null,null,null,null,0,{"$f":"IF(ISERROR(O130*'Product info'!E130/'Product info'!AF130),0,O130*'Product info'!E130/'Product info'!AF130)","v":0}]
[null,129,{"$f":"IF(ISBLANK('Product info'!C131),\"\",'Product info'!C131)","v":""},{"$f":"IF(ISBLANK('Product info'!D131),\"\",'Product info'!D131)","v":""},null,null,null,null,null,null,null,null,null,null,0,{"$f":"IF(ISERROR(O131*'Product info'!E131/'Product info'!AF131),0,O131*'Product info'!E131/'Product info'!AF131)","v":0}]
[null,130,{"$f":"IF(ISBLANK('Product info'!C132),\"\",'Product info'!C132)","v":""},{"$f":"IF(ISBLANK('Product info'!D132),\"\",'Product info'!D132)","v":""},null,null,null,null,null,null,null,null,null,null,0,{"$f":"IF(ISERROR(O132*'Product info'!E132/'Product info'!AF132),0,O132*'Product info'!E132/'Product info'!AF132)","v":0}]
[null,131,{"$f":"IF(ISBLANK('Product info'!C133),\"\",'Product info'!C133)","v":""},{"$f":"IF(ISBLANK('Product info'!D133),\"\",'Product info'!D133)","v":""},null,null,null,null,null,null,null,null,null,null,0,{"$f":"IF(ISERROR(O133*'Product info'!E133/'Product info'!AF133),0,O133*'Product info'!E133/'Product info'!AF133)","v":0}]
[null,132,{"$f":"IF(ISBLANK('Product info'!C134),\"\",'Product info'!C134)","v":""},{"$f":"IF(ISBLANK('Product info'!D134),\"\",'Product info'!D134)","v":""},null,null,null,null,null,null,null,null,null,null,0,{"$f":"IF(ISERROR(O134*'Product info'!E134/'Product info'!AF134),0,O134*'Product info'!E134/'Product info'!AF134)","v":0}]
[null,133,{"$f":"IF(ISBLANK('Product info'!C135),\"\",'Product info'!C135)","v":""},{"$f":"IF(ISBLANK('Product info'!D135),\"\",'Product info'!D135)","v":""},null,null,null,null,null,null,null,null,null,null,0,{"$f":"IF(ISERROR(O135*'Product info'!E135/'Product info'!AF135),0,O135*'Product info'!E135/'Product info'!AF135)","v":0}]
[null,134,{"$f":"IF(ISBLANK('Product info'!C136),\"\",'Product info'!C136)","v":""},{"$f":"IF(ISBLANK('Product info'!D136),\"\",'Product info'!D136)","v":""},null,null,null,null,null,null,null,null,null,null,0,{"$f":"IF(ISERROR(O136*'Product info'!E136/'Product info'!AF136),0,O136*'Product info'!E136/'Product info'!AF136)","v":0}]
[null,135,{"$f":"IF(ISBLANK('Product info'!C137),\"\",'Product info'!C137)","v":""},{"$f":"IF(ISBLANK('Product info'!D137),\"\",'Product info'!D137)","v":""},null,null,null,null,null,null,null,null,null,null,0,{"$f":"IF(ISERROR(O137*'Product info'!E137/'Product info'!AF137),0,O137*'Product info'!E137/'Product info'!AF137)","v":0}]
[null,136,{"$f":"IF(ISBLANK('Product info'!C138),\"\",'Product info'!C138)","v":""},{"$f":"IF(ISBLANK('Product info'!D138),\"\",'Product info'!D138)","v":""},null,null,null,null,null,null,null,null,null,null,0,{"$f":"IF(ISERROR(O138*'Product info'!E138/'Product info'!AF138),0,O138*'Product info'!E138/'Product info'!AF138)","v":0}]
[null,137,{"$f":"IF(ISBLANK('Product info'!C139),\"\",'Product info'!C139)","v":""},{"$f":"IF(ISBLANK('Product info'!D139),\"\",'Product info'!D139)","v":""},null,null,null,null,null,null,null,null,null,null,0,{"$f":"IF(ISERROR(O139*'Product info'!E139/'Product info'!AF139),0,O139*'Product info'!E139/'Product info'!AF139)","v":0}]
[null,138,{"$f":"IF(ISBLANK('Product info'!C140),\"\",'Product info'!C140)","v":""},{"$f":"IF(ISBLANK('Product info'!D140),\"\",'Product info'!D140)","v":""},null,null,null,null,null,null,null,null,null,null,0,{"$f":"IF(ISERROR(O140*'Product info'!E140/'Product info'!AF140),0,O140*'Product info'!E140/'Product info'!AF140)","v":0}]
[null,139,{"$f":"IF(ISBLANK('Product info'!C141),\"\",'Product info'!C141)","v":""},{"$f":"IF(ISBLANK('Product info'!D141),\"\",'Product info'!D141)","v":""},null,null,null,null,null,null,null,null,null,null,{"$f":"SUM(E141:N141)","v":0},{"$f":"IF(ISERROR(O141*'Product info'!E141/'Product info'!AF141),0,O141*'Product info'!E141/'Product info'!AF141)","v":0}]
[null,140,{"$f":"IF(ISBLANK('Product info'!C142),\"\",'Product info'!C142)","v":""},{"$f":"IF(ISBLANK('Product info'!D142),\"\",'Product info'!D142)","v":""},null,null,null,null,null,null,null,null,null,null,0,{"$f":"IF(ISERROR(O142*'Product info'!E142/'Product info'!AF142),0,O142*'Product info'!E142/'Product info'!AF142)","v":0}]
[null,141,{"$f":"IF(ISBLANK('Product info'!C143),\"\",'Product info'!C143)","v":""},{"$f":"IF(ISBLANK('Product info'!D143),\"\",'Product info'!D143)","v":""},null,null,null,null,null,null,null,null,null,null,0,{"$f":"IF(ISERROR(O143*'Product info'!E143/'Product info'!AF143),0,O143*'Product info'!E143/'Product info'!AF143)","v":0}]
[null,142,{"$f":"IF(ISBLANK('Product info'!C144),\"\",'Product info'!C144)","v":""},{"$f":"IF(ISBLANK('Product info'!D144),\"\",'Product info'!D144)","v":""},null,null,null,null,null,null,null,null,null,null,0,{"$f":"IF(ISERROR(O144*'Product info'!E144/'Product info'!AF144),0,O144*'Product info'!E144/'Product info'!AF144)","v":0}]
[null,143,{"$f":"IF(ISBLANK('Product info'!C145),\"\",'Product info'!C145)","v":""},{"$f":"IF(ISBLANK('Product info'!D145),\"\",'Product info'!D145)","v":""},null,null,null,null,null,null,null,null,null,null,0,{"$f":"IF(ISERROR(O145*'Product info'!E145/'Product info'!AF145),0,O145*'Product info'!E145/'Product info'!AF145)","v":0}]
[null,144,{"$f":"IF(ISBLANK('Product info'!C146),\"\",'Product info'!C146)","v":""},{"$f":"IF(ISBLANK('Product info'!D146),\"\",'Product info'!D146)","v":""},null,null,null,null,null,null,null,null,null,null,0,{"$f":"IF(ISERROR(O146*'Product info'!E146/'Product info'!AF146),0,O146*'Product info'!E146/'Product info'!AF146)","v":0}]
[null,145,{"$f":"IF(ISBLANK('Product info'!C147),\"\",'Product info'!C147)","v":""},{"$f":"IF(ISBLANK('Product info'!D147),\"\",'Product info'!D147)","v":""},null,null,null,null,null,null,null,null,null,null,0,{"$f":"IF(ISERROR(O147*'Product info'!E147/'Product info'!AF147),0,O147*'Product info'!E147/'Product info'!AF147)","v":0}]
[null,146,{"$f":"IF(ISBLANK('Product info'!C148),\"\",'Product info'!C148)","v":""},{"$f":"IF(ISBLANK('Product info'!D148),\"\",'Product info'!D148)","v":""},null,null,null,null,null,null,null,null,null,null,0,{"$f":"IF(ISERROR(O148*'Product info'!E148/'Product info'!AF148),0,O148*'Product info'!E148/'Product info'!AF148)","v":0}]
[null,147,{"$f":"IF(ISBLANK('Product info'!C149),\"\",'Product info'!C149)","v":""},{"$f":"IF(ISBLANK('Product info'!D149),\"\",'Product info'!D149)","v":""},null,null,null,null,null,null,null,null,null,null,0,{"$f":"IF(ISERROR(O149*'Product info'!E149/'Product info'!AF149),0,O149*'Product info'!E149/'Product info'!AF149)","v":0}]
[null,148,{"$f":"IF(ISBLANK('Product info'!C150),\"\",'Product info'!C150)","v":""},{"$f":"IF(ISBLANK('Product info'!D150),\"\",'Product info'!D150)","v":""},null,null,null,null,null,null,null,null,null,null,0,{"$f":"IF(ISERROR(O150*'Product info'!E150/'Product info'!AF150),0,O150*'Product info'!E150/'Product info'!AF150)","v":0}]
[null,149,{"$f":"IF(ISBLANK('Product info'!C151),\"\",'Product info'!C151)","v":""},{"$f":"IF(ISBLANK('Product info'!D151),\"\",'Product info'!D151)","v":""},null,null,null,null,null,null,null,null,null,null,0,{"$f":"IF(ISERROR(O151*'Product info'!E151/'Product info'!AF151),0,O151*'Product info'!E151/'Product info'!AF151)","v":0}]
[null,150,{"$f":"IF(ISBLANK('Product info'!C152),\"\",'Product info'!C152)","v":""},{"$f":"IF(ISBLANK('Product info'!D152),\"\",'Product info'!D152)","v":""},null,null,null,null,null,null,null,null,null,null,0,{"$f":"IF(ISERROR(O152*'Product info'!E152/'Product info'!AF152),0,O152*'Product info'!E152/'Product info'!AF152)","v":0}]
[null,151,{"$f":"IF(ISBLANK('Product info'!C153),\"\",'Product info'!C153)","v":""},{"$f":"IF(ISBLANK('Product info'!D153),\"\",'Product info'!D153)","v":""},null,null,null,null,null,null,null,null,null,null,0,{"$f":"IF(ISERROR(O153*'Product info'!E153/'Product info'!AF153),0,O153*'Product info'!E153/'Product info'!AF153)","v":0}]
[null,152,{"$f":"IF(ISBLANK('Product info'!C154),\"\",'Product info'!C154)","v":""},{"$f":"IF(ISBLANK('Product info'!D154),\"\",'Product info'!D154)","v":""},null,null,null,null,null,null,null,null,null,null,0,{"$f":"IF(ISERROR(O154*'Product info'!E154/'Product info'!AF154),0,O154*'Product info'!E154/'Product info'!AF154)","v":0}]
[null,153,{"$f":"IF(ISBLANK('Product info'!C155),\"\",'Product info'!C155)","v":""},{"$f":"IF(ISBLANK('Product info'!D155),\"\",'Product info'!D155)","v":""},null,null,null,null,null,null,null,null,null,null,0,{"$f":"IF(ISERROR(O155*'Product info'!E155/'Product info'!AF155),0,O155*'Product info'!E155/'Product info'!AF155)","v":0}]
[null,154,{"$f":"IF(ISBLANK('Product info'!C156),\"\",'Product info'!C156)","v":""},{"$f":"IF(ISBLANK('Product info'!D156),\"\",'Product info'!D156)","v":""},null,null,null,null,null,null,null,null,null,null,0,{"$f":"IF(ISERROR(O156*'Product info'!E156/'Product info'!AF156),0,O156*'Product info'!E156/'Product info'!AF156)","v":0}]
[null,155,{"$f":"IF(ISBLANK('Product info'!C157),\"\",'Product info'!C157)","v":""},{"$f":"IF(ISBLANK('Product info'!D157),\"\",'Product info'!D157)","v":""},null,null,null,null,null,null,null,null,null,null,0,{"$f":"IF(ISERROR(O157*'Product info'!E157/'Product info'!AF157),0,O157*'Product info'!E157/'Product info'!AF157)","v":0}]
[null,156,{"$f":"IF(ISBLANK('Product info'!C158),\"\",'Product info'!C158)","v":""},{"$f":"IF(ISBLANK('Product info'!D158),\"\",'Product info'!D158)","v":""},null,null,null,null,null,null,null,null,null,null,0,{"$f":"IF(ISERROR(O158*'Product info'!E158/'Product info'!AF158),0,O158*'Product info'!E158/'Product info'!AF158)","v":0}]
[null,157,{"$f":"IF(ISBLANK('Product info'!C159),\"\",'Product info'!C159)","v":""},{"$f":"IF(ISBLANK('Product info'!D159),\"\",'Product info'!D159)","v":""},null,null,null,null,null,null,null,null,null,null,0,{"$f":"IF(ISERROR(O159*'Product info'!E159/'Product info'!AF159),0,O159*'Product info'!E159/'Product info'!AF159)","v":0}]
[null,158,{"$f":"IF(ISBLANK('Product info'!C160),\"\",'Product info'!C160)","v":""},{"$f":"IF(ISBLANK('Product info'!D160),\"\",'Product info'!D160)","v":""},null,null,null,null,null,null,null,null,null,null,0,{"$f":"IF(ISERROR(O160*'Product info'!E160/'Product info'!AF160),0,O160*'Product info'!E160/'Product info'!AF160)","v":0}]
[null,159,{"$f":"IF(ISBLANK('Product info'!C161),\"\",'Product info'!C161)","v":""},{"$f":"IF(ISBLANK('Product info'!D161),\"\",'Product info'!D161)","v":""},null,null,null,null,null,null,null,null,null,null,0,{"$f":"IF(ISERROR(O161*'Product info'!E161/'Product info'!AF161),0,O161*'Product info'!E161/'Product info'!AF161)","v":0}]
[null,160,{"$f":"IF(ISBLANK('Product info'!C162),\"\",'Product info'!C162)","v":""},{"$f":"IF(ISBLANK('Product info'!D162),\"\",'Product info'!D162)","v":""},null,null,null,null,null,null,null,null,null,null,0,{"$f":"IF(ISERROR(O162*'Product info'!E162/'Product info'!AF162),0,O162*'Product info'!E162/'Product info'!AF162)","v":0}]
[null,161,{"$f":"IF(ISBLANK('Product info'!C163),\"\",'Product info'!C163)","v":""},{"$f":"IF(ISBLANK('Product info'!D163),\"\",'Product info'!D163)","v":""},null,null,null,null,null,null,null,null,null,null,0,{"$f":"IF(ISERROR(O163*'Product info'!E163/'Product info'!AF163),0,O163*'Product info'!E163/'Product info'!AF163)","v":0}]
[null,162,{"$f":"IF(ISBLANK('Product info'!C164),\"\",'Product info'!C164)","v":""},{"$f":"IF(ISBLANK('Product info'!D164),\"\",'Product info'!D164)","v":""},null,null,null,null,null,null,null,null,null,null,0,{"$f":"IF(ISERROR(O164*'Product info'!E164/'Product info'!AF164),0,O164*'Product info'!E164/'Product info'!AF164)","v":0}]
[null,163,{"$f":"IF(ISBLANK('Product info'!C165),\"\",'Product info'!C165)","v":""},{"$f":"IF(ISBLANK('Product info'!D165),\"\",'Product info'!D165)","v":""},null,null,null,null,null,null,null,null,null,null,0,{"$f":"IF(ISERROR(O165*'Product info'!E165/'Product info'!AF165),0,O165*'Product info'!E165/'Product info'!AF165)","v":0}]
[null,164,{"$f":"IF(ISBLANK('Product info'!C166),\"\",'Product info'!C166)","v":""},{"$f":"IF(ISBLANK('Product info'!D166),\"\",'Product info'!D166)","v":""},null,null,null,null,null,null,null,null,null,null,0,{"$f":"IF(ISERROR(O166*'Product info'!E166/'Product info'!AF166),0,O166*'Product info'!E166/'Product info'!AF166)","v":0}]
[null,165,{"$f":"IF(ISBLANK('Product info'!C167),\"\",'Product info'!C167)","v":""},{"$f":"IF(ISBLANK('Product info'!D167),\"\",'Product info'!D167)","v":""},null,null,null,null,null,null,null,null,null,null,0,{"$f":"IF(ISERROR(O167*'Product info'!E167/'Product info'!AF167),0,O167*'Product info'!E167/'Product info'!AF167)","v":0}]
[null,166,{"$f":"IF(ISBLANK('Product info'!C168),\"\",'Product info'!C168)","v":""},{"$f":"IF(ISBLANK('Product info'!D168),\"\",'Product info'!D168)","v":""},null,null,null,null,null,null,null,null,null,null,0,{"$f":"IF(ISERROR(O168*'Product info'!E168/'Product info'!AF168),0,O168*'Product info'!E168/'Product info'!AF168)","v":0}]
[null,167,{"$f":"IF(ISBLANK('Product info'!C169),\"\",'Product info'!C169)","v":""},{"$f":"IF(ISBLANK('Product info'!D169),\"\",'Product info'!D169)","v":""},null,null,null,null,null,null,null,null,null,null,0,{"$f":"IF(ISERROR(O169*'Product info'!E169/'Product info'!AF169),0,O169*'Product info'!E169/'Product info'!AF169)","v":0}]
[null,168,{"$f":"IF(ISBLANK('Product info'!C170),\"\",'Product info'!C170)","v":""},{"$f":"IF(ISBLANK('Product info'!D170),\"\",'Product info'!D170)","v":""},null,null,null,null,null,null,null,null,null,null,0,{"$f":"IF(ISERROR(O170*'Product info'!E170/'Product info'!AF170),0,O170*'Product info'!E170/'Product info'!AF170)","v":0}]
[null,169,{"$f":"IF(ISBLANK('Product info'!C171),\"\",'Product info'!C171)","v":""},{"$f":"IF(ISBLANK('Product info'!D171),\"\",'Product info'!D171)","v":""},null,null,null,null,null,null,null,null,null,null,0,{"$f":"IF(ISERROR(O171*'Product info'!E171/'Product info'!AF171),0,O171*'Product info'!E171/'Product info'!AF171)","v":0}]
[null,170,{"$f":"IF(ISBLANK('Product info'!C172),\"\",'Product info'!C172)","v":""},{"$f":"IF(ISBLANK('Product info'!D172),\"\",'Product info'!D172)","v":""},null,null,null,null,null,null,null,null,null,null,0,{"$f":"IF(ISERROR(O172*'Product info'!E172/'Product info'!AF172),0,O172*'Product info'!E172/'Product info'!AF172)","v":0}]
[null,171,{"$f":"IF(ISBLANK('Product info'!C173),\"\",'Product info'!C173)","v":""},{"$f":"IF(ISBLANK('Product info'!D173),\"\",'Product info'!D173)","v":""},null,null,null,null,null,null,null,null,null,null,0,{"$f":"IF(ISERROR(O173*'Product info'!E173/'Product info'!AF173),0,O173*'Product info'!E173/'Product info'!AF173)","v":0}]
[null,172,{"$f":"IF(ISBLANK('Product info'!C174),\"\",'Product info'!C174)","v":""},{"$f":"IF(ISBLANK('Product info'!D174),\"\",'Product info'!D174)","v":""},null,null,null,null,null,null,null,null,null,null,0,{"$f":"IF(ISERROR(O174*'Product info'!E174/'Product info'!AF174),0,O174*'Product info'!E174/'Product info'!AF174)","v":0}]
[null,173,{"$f":"IF(ISBLANK('Product info'!C175),\"\",'Product info'!C175)","v":""},{"$f":"IF(ISBLANK('Product info'!D175),\"\",'Product info'!D175)","v":""},null,null,null,null,null,null,null,null,null,null,0,{"$f":"IF(ISERROR(O175*'Product info'!E175/'Product info'!AF175),0,O175*'Product info'!E175/'Product info'!AF175)","v":0}]
[null,174,{"$f":"IF(ISBLANK('Product info'!C176),\"\",'Product info'!C176)","v":""},{"$f":"IF(ISBLANK('Product info'!D176),\"\",'Product info'!D176)","v":""},null,null,null,null,null,null,null,null,null,null,0,{"$f":"IF(ISERROR(O176*'Product info'!E176/'Product info'!AF176),0,O176*'Product info'!E176/'Product info'!AF176)","v":0}]
[null,175,{"$f":"IF(ISBLANK('Product info'!C177),\"\",'Product info'!C177)","v":""},{"$f":"IF(ISBLANK('Product info'!D177),\"\",'Product info'!D177)","v":""},null,null,null,null,null,null,null,null,null,null,0,{"$f":"IF(ISERROR(O177*'Product info'!E177/'Product info'!AF177),0,O177*'Product info'!E177/'Product info'!AF177)","v":0}]
[null,176,{"$f":"IF(ISBLANK('Product info'!C178),\"\",'Product info'!C178)","v":""},{"$f":"IF(ISBLANK('Product info'!D178),\"\",'Product info'!D178)","v":""},null,null,null,null,null,null,null,null,null,null,0,{"$f":"IF(ISERROR(O178*'Product info'!E178/'Product info'!AF178),0,O178*'Product info'!E178/'Product info'!AF178)","v":0}]
[null,177,{"$f":"IF(ISBLANK('Product info'!C179),\"\",'Product info'!C179)","v":""},{"$f":"IF(ISBLANK('Product info'!D179),\"\",'Product info'!D179)","v":""},null,null,null,null,null,null,null,null,null,null,0,{"$f":"IF(ISERROR(O179*'Product info'!E179/'Product info'!AF179),0,O179*'Product info'!E179/'Product info'!AF179)","v":0}]
[null,178,{"$f":"IF(ISBLANK('Product info'!C180),\"\",'Product info'!C180)","v":""},{"$f":"IF(ISBLANK('Product info'!D180),\"\",'Product info'!D180)","v":""},null,null,null,null,null,null,null,null,null,null,0,{"$f":"IF(ISERROR(O180*'Product info'!E180/'Product info'!AF180),0,O180*'Product info'!E180/'Product info'!AF180)","v":0}]
[null,179,{"$f":"IF(ISBLANK('Product info'!C181),\"\",'Product info'!C181)","v":""},{"$f":"IF(ISBLANK('Product info'!D181),\"\",'Product info'!D181)","v":""},null,null,null,null,null,null,null,null,null,null,0,{"$f":"IF(ISERROR(O181*'Product info'!E181/'Product info'!AF181),0,O181*'Product info'!E181/'Product info'!AF181)","v":0}]
[null,180,{"$f":"IF(ISBLANK('Product info'!C182),\"\",'Product info'!C182)","v":""},{"$f":"IF(ISBLANK('Product info'!D182),\"\",'Product info'!D182)","v":""},null,null,null,null,null,null,null,null,null,null,0,{"$f":"IF(ISERROR(O182*'Product info'!E182/'Product info'!AF182),0,O182*'Product info'!E182/'Product info'!AF182)","v":0}]
[null,181,{"$f":"IF(ISBLANK('Product info'!C183),\"\",'Product info'!C183)","v":""},{"$f":"IF(ISBLANK('Product info'!D183),\"\",'Product info'!D183)","v":""},null,null,null,null,null,null,null,null,null,null,0,{"$f":"IF(ISERROR(O183*'Product info'!E183/'Product info'!AF183),0,O183*'Product info'!E183/'Product info'!AF183)","v":0}]
[null,182,{"$f":"IF(ISBLANK('Product info'!C184),\"\",'Product info'!C184)","v":""},{"$f":"IF(ISBLANK('Product info'!D184),\"\",'Product info'!D184)","v":""},null,null,null,null,null,null,null,null,null,null,0,{"$f":"IF(ISERROR(O184*'Product info'!E184/'Product info'!AF184),0,O184*'Product info'!E184/'Product info'!AF184)","v":0}]
[null,183,{"$f":"IF(ISBLANK('Product info'!C185),\"\",'Product info'!C185)","v":""},{"$f":"IF(ISBLANK('Product info'!D185),\"\",'Product info'!D185)","v":""},null,null,null,null,null,null,null,null,null,null,0,{"$f":"IF(ISERROR(O185*'Product info'!E185/'Product info'!AF185),0,O185*'Product info'!E185/'Product info'!AF185)","v":0}]
[null,184,{"$f":"IF(ISBLANK('Product info'!C186),\"\",'Product info'!C186)","v":""},{"$f":"IF(ISBLANK('Product info'!D186),\"\",'Product info'!D186)","v":""},null,null,null,null,null,null,null,null,null,null,0,{"$f":"IF(ISERROR(O186*'Product info'!E186/'Product info'!AF186),0,O186*'Product info'!E186/'Product info'!AF186)","v":0}]
[null,185,{"$f":"IF(ISBLANK('Product info'!C187),\"\",'Product info'!C187)","v":""},{"$f":"IF(ISBLANK('Product info'!D187),\"\",'Product info'!D187)","v":""},null,null,null,null,null,null,null,null,null,null,0,{"$f":"IF(ISERROR(O187*'Product info'!E187/'Product info'!AF187),0,O187*'Product info'!E187/'Product info'!AF187)","v":0}]
[null,186,{"$f":"IF(ISBLANK('Product info'!C188),\"\",'Product info'!C188)","v":""},{"$f":"IF(ISBLANK('Product info'!D188),\"\",'Product info'!D188)","v":""},null,null,null,null,null,null,null,null,null,null,0,{"$f":"IF(ISERROR(O188*'Product info'!E188/'Product info'!AF188),0,O188*'Product info'!E188/'Product info'!AF188)","v":0}]
[null,187,{"$f":"IF(ISBLANK('Product info'!C189),\"\",'Product info'!C189)","v":""},{"$f":"IF(ISBLANK('Product info'!D189),\"\",'Product info'!D189)","v":""},null,null,null,null,null,null,null,null,null,null,0,{"$f":"IF(ISERROR(O189*'Product info'!E189/'Product info'!AF189),0,O189*'Product info'!E189/'Product info'!AF189)","v":0}]
[null,188,{"$f":"IF(ISBLANK('Product info'!C190),\"\",'Product info'!C190)","v":""},{"$f":"IF(ISBLANK('Product info'!D190),\"\",'Product info'!D190)","v":""},null,null,null,null,null,null,null,null,null,null,0,{"$f":"IF(ISERROR(O190*'Product info'!E190/'Product info'!AF190),0,O190*'Product info'!E190/'Product info'!AF190)","v":0}]
[null,189,{"$f":"IF(ISBLANK('Product info'!C191),\"\",'Product info'!C191)","v":""},{"$f":"IF(ISBLANK('Product info'!D191),\"\",'Product info'!D191)","v":""},null,null,null,null,null,null,null,null,null,null,0,{"$f":"IF(ISERROR(O191*'Product info'!E191/'Product info'!AF191),0,O191*'Product info'!E191/'Product info'!AF191)","v":0}]
[null,190,{"$f":"IF(ISBLANK('Product info'!C192),\"\",'Product info'!C192)","v":""},{"$f":"IF(ISBLANK('Product info'!D192),\"\",'Product info'!D192)","v":""},null,null,null,null,null,null,null,null,null,null,0,{"$f":"IF(ISERROR(O192*'Product info'!E192/'Product info'!AF192),0,O192*'Product info'!E192/'Product info'!AF192)","v":0}]
[null,191,{"$f":"IF(ISBLANK('Product info'!C193),\"\",'Product info'!C193)","v":""},{"$f":"IF(ISBLANK('Product info'!D193),\"\",'Product info'!D193)","v":""},null,null,null,null,null,null,null,null,null,null,0,{"$f":"IF(ISERROR(O193*'Product info'!E193/'Product info'!AF193),0,O193*'Product info'!E193/'Product info'!AF193)","v":0}]
[null,192,{"$f":"IF(ISBLANK('Product info'!C194),\"\",'Product info'!C194)","v":""},{"$f":"IF(ISBLANK('Product info'!D194),\"\",'Product info'!D194)","v":""},null,null,null,null,null,null,null,null,null,null,0,{"$f":"IF(ISERROR(O194*'Product info'!E194/'Product info'!AF194),0,O194*'Product info'!E194/'Product info'!AF194)","v":0}]
[null,193,{"$f":"IF(ISBLANK('Product info'!C195),\"\",'Product info'!C195)","v":""},{"$f":"IF(ISBLANK('Product info'!D195),\"\",'Product info'!D195)","v":""},null,null,null,null,null,null,null,null,null,null,0,{"$f":"IF(ISERROR(O195*'Product info'!E195/'Product info'!AF195),0,O195*'Product info'!E195/'Product info'!AF195)","v":0}]
[null,194,{"$f":"IF(ISBLANK('Product info'!C196),\"\",'Product info'!C196)","v":""},{"$f":"IF(ISBLANK('Product info'!D196),\"\",'Product info'!D196)","v":""},null,null,null,null,null,null,null,null,null,null,0,{"$f":"IF(ISERROR(O196*'Product info'!E196/'Product info'!AF196),0,O196*'Product info'!E196/'Product info'!AF196)","v":0}]
[null,195,{"$f":"IF(ISBLANK('Product info'!C197),\"\",'Product info'!C197)","v":""},{"$f":"IF(ISBLANK('Product info'!D197),\"\",'Product info'!D197)","v":""},null,null,null,null,null,null,null,null,null,null,0,{"$f":"IF(ISERROR(O197*'Product info'!E197/'Product info'!AF197),0,O197*'Product info'!E197/'Product info'!AF197)","v":0}]
[null,196,{"$f":"IF(ISBLANK('Product info'!C198),\"\",'Product info'!C198)","v":""},{"$f":"IF(ISBLANK('Product info'!D198),\"\",'Product info'!D198)","v":""},null,null,null,null,null,null,null,null,null,null,0,{"$f":"IF(ISERROR(O198*'Product info'!E198/'Product info'!AF198),0,O198*'Product info'!E198/'Product info'!AF198)","v":0}]
[null,197,{"$f":"IF(ISBLANK('Product info'!C199),\"\",'Product info'!C199)","v":""},{"$f":"IF(ISBLANK('Product info'!D199),\"\",'Product info'!D199)","v":""},null,null,null,null,null,null,null,null,null,null,0,{"$f":"IF(ISERROR(O199*'Product info'!E199/'Product info'!AF199),0,O199*'Product info'!E199/'Product info'!AF199)","v":0}]
[null,198,{"$f":"IF(ISBLANK('Product info'!C200),\"\",'Product info'!C200)","v":""},{"$f":"IF(ISBLANK('Product info'!D200),\"\",'Product info'!D200)","v":""},null,null,null,null,null,null,null,null,null,null,0,{"$f":"IF(ISERROR(O200*'Product info'!E200/'Product info'!AF200),0,O200*'Product info'!E200/'Product info'!AF200)","v":0}]
[null,199,{"$f":"IF(ISBLANK('Product info'!C201),\"\",'Product info'!C201)","v":""},{"$f":"IF(ISBLANK('Product info'!D201),\"\",'Product info'!D201)","v":""},null,null,null,null,null,null,null,null,null,null,0,{"$f":"IF(ISERROR(O201*'Product info'!E201/'Product info'!AF201),0,O201*'Product info'!E201/'Product info'!AF201)","v":0}]
[null,200,{"$f":"IF(ISBLANK('Product info'!C202),\"\",'Product info'!C202)","v":""},{"$f":"IF(ISBLANK('Product info'!D202),\"\",'Product info'!D202)","v":""},null,null,null,null,null,null,null,null,null,null,0,{"$f":"IF(ISERROR(O202*'Product info'!E202/'Product info'!AF202),0,O202*'Product info'!E202/'Product info'!AF202)","v":0}]
[null,201,{"$f":"IF(ISBLANK('Product info'!C203),\"\",'Product info'!C203)","v":""},{"$f":"IF(ISBLANK('Product info'!D203),\"\",'Product info'!D203)","v":""},null,null,null,null,null,null,null,null,null,null,0,{"$f":"IF(ISERROR(O203*'Product info'!E203/'Product info'!AF203),0,O203*'Product info'!E203/'Product info'!AF203)","v":0}]
[null,202,{"$f":"IF(ISBLANK('Product info'!C204),\"\",'Product info'!C204)","v":""},{"$f":"IF(ISBLANK('Product info'!D204),\"\",'Product info'!D204)","v":""},null,null,null,null,null,null,null,null,null,null,0,{"$f":"IF(ISERROR(O204*'Product info'!E204/'Product info'!AF204),0,O204*'Product info'!E204/'Product info'!AF204)","v":0}]
[null,203,{"$f":"IF(ISBLANK('Product info'!C205),\"\",'Product info'!C205)","v":""},{"$f":"IF(ISBLANK('Product info'!D205),\"\",'Product info'!D205)","v":""},null,null,null,null,null,null,null,null,null,null,{"$f":"SUM(E205:N205)","v":0},{"$f":"IF(ISERROR(O205*'Product info'!E205/'Product info'!AF205),0,O205*'Product info'!E205/'Product info'!AF205)","v":0}]
[null,204,{"$f":"IF(ISBLANK('Product info'!C206),\"\",'Product info'!C206)","v":""},{"$f":"IF(ISBLANK('Product info'!D206),\"\",'Product info'!D206)","v":""},null,null,null,null,null,null,null,null,null,null,0,{"$f":"IF(ISERROR(O206*'Product info'!E206/'Product info'!AF206),0,O206*'Product info'!E206/'Product info'!AF206)","v":0}]
[null,205,{"$f":"IF(ISBLANK('Product info'!C207),\"\",'Product info'!C207)","v":""},{"$f":"IF(ISBLANK('Product info'!D207),\"\",'Product info'!D207)","v":""},null,null,null,null,null,null,null,null,null,null,0,{"$f":"IF(ISERROR(O207*'Product info'!E207/'Product info'!AF207),0,O207*'Product info'!E207/'Product info'!AF207)","v":0}]
[null,206,{"$f":"IF(ISBLANK('Product info'!C208),\"\",'Product info'!C208)","v":""},{"$f":"IF(ISBLANK('Product info'!D208),\"\",'Product info'!D208)","v":""},null,null,null,null,null,null,null,null,null,null,0,{"$f":"IF(ISERROR(O208*'Product info'!E208/'Product info'!AF208),0,O208*'Product info'!E208/'Product info'!AF208)","v":0}]
[null,207,{"$f":"IF(ISBLANK('Product info'!C209),\"\",'Product info'!C209)","v":""},{"$f":"IF(ISBLANK('Product info'!D209),\"\",'Product info'!D209)","v":""},null,null,null,null,null,null,null,null,null,null,0,{"$f":"IF(ISERROR(O209*'Product info'!E209/'Product info'!AF209),0,O209*'Product info'!E209/'Product info'!AF209)","v":0}]
[null,208,{"$f":"IF(ISBLANK('Product info'!C210),\"\",'Product info'!C210)","v":""},{"$f":"IF(ISBLANK('Product info'!D210),\"\",'Product info'!D210)","v":""},null,null,null,null,null,null,null,null,null,null,0,{"$f":"IF(ISERROR(O210*'Product info'!E210/'Product info'!AF210),0,O210*'Product info'!E210/'Product info'!AF210)","v":0}]
[null,209,{"$f":"IF(ISBLANK('Product info'!C211),\"\",'Product info'!C211)","v":""},{"$f":"IF(ISBLANK('Product info'!D211),\"\",'Product info'!D211)","v":""},null,null,null,null,null,null,null,null,null,null,0,{"$f":"IF(ISERROR(O211*'Product info'!E211/'Product info'!AF211),0,O211*'Product info'!E211/'Product info'!AF211)","v":0}]
[null,210,{"$f":"IF(ISBLANK('Product info'!C212),\"\",'Product info'!C212)","v":""},{"$f":"IF(ISBLANK('Product info'!D212),\"\",'Product info'!D212)","v":""},null,null,null,null,null,null,null,null,null,null,0,{"$f":"IF(ISERROR(O212*'Product info'!E212/'Product info'!AF212),0,O212*'Product info'!E212/'Product info'!AF212)","v":0}]
[null,211,{"$f":"IF(ISBLANK('Product info'!C213),\"\",'Product info'!C213)","v":""},{"$f":"IF(ISBLANK('Product info'!D213),\"\",'Product info'!D213)","v":""},null,null,null,null,null,null,null,null,null,null,0,{"$f":"IF(ISERROR(O213*'Product info'!E213/'Product info'!AF213),0,O213*'Product info'!E213/'Product info'!AF213)","v":0}]
[null,212,{"$f":"IF(ISBLANK('Product info'!C214),\"\",'Product info'!C214)","v":""},{"$f":"IF(ISBLANK('Product info'!D214),\"\",'Product info'!D214)","v":""},null,null,null,null,null,null,null,null,null,null,0,{"$f":"IF(ISERROR(O214*'Product info'!E214/'Product info'!AF214),0,O214*'Product info'!E214/'Product info'!AF214)","v":0}]
[null,213,{"$f":"IF(ISBLANK('Product info'!C215),\"\",'Product info'!C215)","v":""},{"$f":"IF(ISBLANK('Product info'!D215),\"\",'Product info'!D215)","v":""},null,null,null,null,null,null,null,null,null,null,0,{"$f":"IF(ISERROR(O215*'Product info'!E215/'Product info'!AF215),0,O215*'Product info'!E215/'Product info'!AF215)","v":0}]
[null,214,{"$f":"IF(ISBLANK('Product info'!C216),\"\",'Product info'!C216)","v":""},{"$f":"IF(ISBLANK('Product info'!D216),\"\",'Product info'!D216)","v":""},null,null,null,null,null,null,null,null,null,null,0,{"$f":"IF(ISERROR(O216*'Product info'!E216/'Product info'!AF216),0,O216*'Product info'!E216/'Product info'!AF216)","v":0}]
[null,215,{"$f":"IF(ISBLANK('Product info'!C217),\"\",'Product info'!C217)","v":""},{"$f":"IF(ISBLANK('Product info'!D217),\"\",'Product info'!D217)","v":""},null,null,null,null,null,null,null,null,null,null,0,{"$f":"IF(ISERROR(O217*'Product info'!E217/'Product info'!AF217),0,O217*'Product info'!E217/'Product info'!AF217)","v":0}]
[null,216,{"$f":"IF(ISBLANK('Product info'!C218),\"\",'Product info'!C218)","v":""},{"$f":"IF(ISBLANK('Product info'!D218),\"\",'Product info'!D218)","v":""},null,null,null,null,null,null,null,null,null,null,0,{"$f":"IF(ISERROR(O218*'Product info'!E218/'Product info'!AF218),0,O218*'Product info'!E218/'Product info'!AF218)","v":0}]
[null,217,{"$f":"IF(ISBLANK('Product info'!C219),\"\",'Product info'!C219)","v":""},{"$f":"IF(ISBLANK('Product info'!D219),\"\",'Product info'!D219)","v":""},null,null,null,null,null,null,null,null,null,null,0,{"$f":"IF(ISERROR(O219*'Product info'!E219/'Product info'!AF219),0,O219*'Product info'!E219/'Product info'!AF219)","v":0}]
[null,218,{"$f":"IF(ISBLANK('Product info'!C220),\"\",'Product info'!C220)","v":""},{"$f":"IF(ISBLANK('Product info'!D220),\"\",'Product info'!D220)","v":""},null,null,null,null,null,null,null,null,null,null,0,{"$f":"IF(ISERROR(O220*'Product info'!E220/'Product info'!AF220),0,O220*'Product info'!E220/'Product info'!AF220)","v":0}]
[null,219,{"$f":"IF(ISBLANK('Product info'!C221),\"\",'Product info'!C221)","v":""},{"$f":"IF(ISBLANK('Product info'!D221),\"\",'Product info'!D221)","v":""},null,null,null,null,null,null,null,null,null,null,0,{"$f":"IF(ISERROR(O221*'Product info'!E221/'Product info'!AF221),0,O221*'Product info'!E221/'Product info'!AF221)","v":0}]
[null,220,{"$f":"IF(ISBLANK('Product info'!C222),\"\",'Product info'!C222)","v":""},{"$f":"IF(ISBLANK('Product info'!D222),\"\",'Product info'!D222)","v":""},null,null,null,null,null,null,null,null,null,null,0,{"$f":"IF(ISERROR(O222*'Product info'!E222/'Product info'!AF222),0,O222*'Product info'!E222/'Product info'!AF222)","v":0}]
[null,221,{"$f":"IF(ISBLANK('Product info'!C223),\"\",'Product info'!C223)","v":""},{"$f":"IF(ISBLANK('Product info'!D223),\"\",'Product info'!D223)","v":""},null,null,null,null,null,null,null,null,null,null,0,{"$f":"IF(ISERROR(O223*'Product info'!E223/'Product info'!AF223),0,O223*'Product info'!E223/'Product info'!AF223)","v":0}]
[null,222,{"$f":"IF(ISBLANK('Product info'!C224),\"\",'Product info'!C224)","v":""},{"$f":"IF(ISBLANK('Product info'!D224),\"\",'Product info'!D224)","v":""},null,null,null,null,null,null,null,null,null,null,0,{"$f":"IF(ISERROR(O224*'Product info'!E224/'Product info'!AF224),0,O224*'Product info'!E224/'Product info'!AF224)","v":0}]
[null,223,{"$f":"IF(ISBLANK('Product info'!C225),\"\",'Product info'!C225)","v":""},{"$f":"IF(ISBLANK('Product info'!D225),\"\",'Product info'!D225)","v":""},null,null,null,null,null,null,null,null,null,null,0,{"$f":"IF(ISERROR(O225*'Product info'!E225/'Product info'!AF225),0,O225*'Product info'!E225/'Product info'!AF225)","v":0}]
[null,224,{"$f":"IF(ISBLANK('Product info'!C226),\"\",'Product info'!C226)","v":""},{"$f":"IF(ISBLANK('Product info'!D226),\"\",'Product info'!D226)","v":""},null,null,null,null,null,null,null,null,null,null,0,{"$f":"IF(ISERROR(O226*'Product info'!E226/'Product info'!AF226),0,O226*'Product info'!E226/'Product info'!AF226)","v":0}]
[null,225,{"$f":"IF(ISBLANK('Product info'!C227),\"\",'Product info'!C227)","v":""},{"$f":"IF(ISBLANK('Product info'!D227),\"\",'Product info'!D227)","v":""},null,null,null,null,null,null,null,null,null,null,0,{"$f":"IF(ISERROR(O227*'Product info'!E227/'Product info'!AF227),0,O227*'Product info'!E227/'Product info'!AF227)","v":0}]
[null,226,{"$f":"IF(ISBLANK('Product info'!C228),\"\",'Product info'!C228)","v":""},{"$f":"IF(ISBLANK('Product info'!D228),\"\",'Product info'!D228)","v":""},null,null,null,null,null,null,null,null,null,null,0,{"$f":"IF(ISERROR(O228*'Product info'!E228/'Product info'!AF228),0,O228*'Product info'!E228/'Product info'!AF228)","v":0}]
[null,227,{"$f":"IF(ISBLANK('Product info'!C229),\"\",'Product info'!C229)","v":""},{"$f":"IF(ISBLANK('Product info'!D229),\"\",'Product info'!D229)","v":""},null,null,null,null,null,null,null,null,null,null,0,{"$f":"IF(ISERROR(O229*'Product info'!E229/'Product info'!AF229),0,O229*'Product info'!E229/'Product info'!AF229)","v":0}]
[null,228,{"$f":"IF(ISBLANK('Product info'!C230),\"\",'Product info'!C230)","v":""},{"$f":"IF(ISBLANK('Product info'!D230),\"\",'Product info'!D230)","v":""},null,null,null,null,null,null,null,null,null,null,0,{"$f":"IF(ISERROR(O230*'Product info'!E230/'Product info'!AF230),0,O230*'Product info'!E230/'Product info'!AF230)","v":0}]
[null,229,{"$f":"IF(ISBLANK('Product info'!C231),\"\",'Product info'!C231)","v":""},{"$f":"IF(ISBLANK('Product info'!D231),\"\",'Product info'!D231)","v":""},null,null,null,null,null,null,null,null,null,null,0,{"$f":"IF(ISERROR(O231*'Product info'!E231/'Product info'!AF231),0,O231*'Product info'!E231/'Product info'!AF231)","v":0}]
[null,230,{"$f":"IF(ISBLANK('Product info'!C232),\"\",'Product info'!C232)","v":""},{"$f":"IF(ISBLANK('Product info'!D232),\"\",'Product info'!D232)","v":""},null,null,null,null,null,null,null,null,null,null,0,{"$f":"IF(ISERROR(O232*'Product info'!E232/'Product info'!AF232),0,O232*'Product info'!E232/'Product info'!AF232)","v":0}]
[null,231,{"$f":"IF(ISBLANK('Product info'!C233),\"\",'Product info'!C233)","v":""},{"$f":"IF(ISBLANK('Product info'!D233),\"\",'Product info'!D233)","v":""},null,null,null,null,null,null,null,null,null,null,0,{"$f":"IF(ISERROR(O233*'Product info'!E233/'Product info'!AF233),0,O233*'Product info'!E233/'Product info'!AF233)","v":0}]
[null,232,{"$f":"IF(ISBLANK('Product info'!C234),\"\",'Product info'!C234)","v":""},{"$f":"IF(ISBLANK('Product info'!D234),\"\",'Product info'!D234)","v":""},null,null,null,null,null,null,null,null,null,null,0,{"$f":"IF(ISERROR(O234*'Product info'!E234/'Product info'!AF234),0,O234*'Product info'!E234/'Product info'!AF234)","v":0}]
[null,233,{"$f":"IF(ISBLANK('Product info'!C235),\"\",'Product info'!C235)","v":""},{"$f":"IF(ISBLANK('Product info'!D235),\"\",'Product info'!D235)","v":""},null,null,null,null,null,null,null,null,null,null,0,{"$f":"IF(ISERROR(O235*'Product info'!E235/'Product info'!AF235),0,O235*'Product info'!E235/'Product info'!AF235)","v":0}]
[null,234,{"$f":"IF(ISBLANK('Product info'!C236),\"\",'Product info'!C236)","v":""},{"$f":"IF(ISBLANK('Product info'!D236),\"\",'Product info'!D236)","v":""},null,null,null,null,null,null,null,null,null,null,0,{"$f":"IF(ISERROR(O236*'Product info'!E236/'Product info'!AF236),0,O236*'Product info'!E236/'Product info'!AF236)","v":0}]
[null,235,{"$f":"IF(ISBLANK('Product info'!C237),\"\",'Product info'!C237)","v":""},{"$f":"IF(ISBLANK('Product info'!D237),\"\",'Product info'!D237)","v":""},null,null,null,null,null,null,null,null,null,null,0,{"$f":"IF(ISERROR(O237*'Product info'!E237/'Product info'!AF237),0,O237*'Product info'!E237/'Product info'!AF237)","v":0}]
[null,236,{"$f":"IF(ISBLANK('Product info'!C238),\"\",'Product info'!C238)","v":""},{"$f":"IF(ISBLANK('Product info'!D238),\"\",'Product info'!D238)","v":""},null,null,null,null,null,null,null,null,null,null,0,{"$f":"IF(ISERROR(O238*'Product info'!E238/'Product info'!AF238),0,O238*'Product info'!E238/'Product info'!AF238)","v":0}]
[null,237,{"$f":"IF(ISBLANK('Product info'!C239),\"\",'Product info'!C239)","v":""},{"$f":"IF(ISBLANK('Product info'!D239),\"\",'Product info'!D239)","v":""},null,null,null,null,null,null,null,null,null,null,0,{"$f":"IF(ISERROR(O239*'Product info'!E239/'Product info'!AF239),0,O239*'Product info'!E239/'Product info'!AF239)","v":0}]
[null,238,{"$f":"IF(ISBLANK('Product info'!C240),\"\",'Product info'!C240)","v":""},{"$f":"IF(ISBLANK('Product info'!D240),\"\",'Product info'!D240)","v":""},null,null,null,null,null,null,null,null,null,null,0,{"$f":"IF(ISERROR(O240*'Product info'!E240/'Product info'!AF240),0,O240*'Product info'!E240/'Product info'!AF240)","v":0}]
[null,239,{"$f":"IF(ISBLANK('Product info'!C241),\"\",'Product info'!C241)","v":""},{"$f":"IF(ISBLANK('Product info'!D241),\"\",'Product info'!D241)","v":""},null,null,null,null,null,null,null,null,null,null,0,{"$f":"IF(ISERROR(O241*'Product info'!E241/'Product info'!AF241),0,O241*'Product info'!E241/'Product info'!AF241)","v":0}]
[null,240,{"$f":"IF(ISBLANK('Product info'!C242),\"\",'Product info'!C242)","v":""},{"$f":"IF(ISBLANK('Product info'!D242),\"\",'Product info'!D242)","v":""},null,null,null,null,null,null,null,null,null,null,0,{"$f":"IF(ISERROR(O242*'Product info'!E242/'Product info'!AF242),0,O242*'Product info'!E242/'Product info'!AF242)","v":0}]
[null,241,{"$f":"IF(ISBLANK('Product info'!C243),\"\",'Product info'!C243)","v":""},{"$f":"IF(ISBLANK('Product info'!D243),\"\",'Product info'!D243)","v":""},null,null,null,null,null,null,null,null,null,null,0,{"$f":"IF(ISERROR(O243*'Product info'!E243/'Product info'!AF243),0,O243*'Product info'!E243/'Product info'!AF243)","v":0}]
[null,242,{"$f":"IF(ISBLANK('Product info'!C244),\"\",'Product info'!C244)","v":""},{"$f":"IF(ISBLANK('Product info'!D244),\"\",'Product info'!D244)","v":""},null,null,null,null,null,null,null,null,null,null,0,{"$f":"IF(ISERROR(O244*'Product info'!E244/'Product info'!AF244),0,O244*'Product info'!E244/'Product info'!AF244)","v":0}]
[null,243,{"$f":"IF(ISBLANK('Product info'!C245),\"\",'Product info'!C245)","v":""},{"$f":"IF(ISBLANK('Product info'!D245),\"\",'Product info'!D245)","v":""},null,null,null,null,null,null,null,null,null,null,0,{"$f":"IF(ISERROR(O245*'Product info'!E245/'Product info'!AF245),0,O245*'Product info'!E245/'Product info'!AF245)","v":0}]
[null,244,{"$f":"IF(ISBLANK('Product info'!C246),\"\",'Product info'!C246)","v":""},{"$f":"IF(ISBLANK('Product info'!D246),\"\",'Product info'!D246)","v":""},null,null,null,null,null,null,null,null,null,null,0,{"$f":"IF(ISERROR(O246*'Product info'!E246/'Product info'!AF246),0,O246*'Product info'!E246/'Product info'!AF246)","v":0}]
[null,245,{"$f":"IF(ISBLANK('Product info'!C247),\"\",'Product info'!C247)","v":""},{"$f":"IF(ISBLANK('Product info'!D247),\"\",'Product info'!D247)","v":""},null,null,null,null,null,null,null,null,null,null,0,{"$f":"IF(ISERROR(O247*'Product info'!E247/'Product info'!AF247),0,O247*'Product info'!E247/'Product info'!AF247)","v":0}]
[null,246,{"$f":"IF(ISBLANK('Product info'!C248),\"\",'Product info'!C248)","v":""},{"$f":"IF(ISBLANK('Product info'!D248),\"\",'Product info'!D248)","v":""},null,null,null,null,null,null,null,null,null,null,0,{"$f":"IF(ISERROR(O248*'Product info'!E248/'Product info'!AF248),0,O248*'Product info'!E248/'Product info'!AF248)","v":0}]
[null,247,{"$f":"IF(ISBLANK('Product info'!C249),\"\",'Product info'!C249)","v":""},{"$f":"IF(ISBLANK('Product info'!D249),\"\",'Product info'!D249)","v":""},null,null,null,null,null,null,null,null,null,null,0,{"$f":"IF(ISERROR(O249*'Product info'!E249/'Product info'!AF249),0,O249*'Product info'!E249/'Product info'!AF249)","v":0}]
[null,248,{"$f":"IF(ISBLANK('Product info'!C250),\"\",'Product info'!C250)","v":""},{"$f":"IF(ISBLANK('Product info'!D250),\"\",'Product info'!D250)","v":""},null,null,null,null,null,null,null,null,null,null,0,{"$f":"IF(ISERROR(O250*'Product info'!E250/'Product info'!AF250),0,O250*'Product info'!E250/'Product info'!AF250)","v":0}]
[null,249,{"$f":"IF(ISBLANK('Product info'!C251),\"\",'Product info'!C251)","v":""},{"$f":"IF(ISBLANK('Product info'!D251),\"\",'Product info'!D251)","v":""},null,null,null,null,null,null,null,null,null,null,0,{"$f":"IF(ISERROR(O251*'Product info'!E251/'Product info'!AF251),0,O251*'Product info'!E251/'Product info'!AF251)","v":0}]
[null,250,{"$f":"IF(ISBLANK('Product info'!C252),\"\",'Product info'!C252)","v":""},{"$f":"IF(ISBLANK('Product info'!D252),\"\",'Product info'!D252)","v":""},null,null,null,null,null,null,null,null,null,null,0,{"$f":"IF(ISERROR(O252*'Product info'!E252/'Product info'!AF252),0,O252*'Product info'!E252/'Product info'!AF252)","v":0}]
[null,251,{"$f":"IF(ISBLANK('Product info'!C253),\"\",'Product info'!C253)","v":""},{"$f":"IF(ISBLANK('Product info'!D253),\"\",'Product info'!D253)","v":""},null,null,null,null,null,null,null,null,null,null,0,{"$f":"IF(ISERROR(O253*'Product info'!E253/'Product info'!AF253),0,O253*'Product info'!E253/'Product info'!AF253)","v":0}]
[null,252,{"$f":"IF(ISBLANK('Product info'!C254),\"\",'Product info'!C254)","v":""},{"$f":"IF(ISBLANK('Product info'!D254),\"\",'Product info'!D254)","v":""},null,null,null,null,null,null,null,null,null,null,0,{"$f":"IF(ISERROR(O254*'Product info'!E254/'Product info'!AF254),0,O254*'Product info'!E254/'Product info'!AF254)","v":0}]
[null,253,{"$f":"IF(ISBLANK('Product info'!C255),\"\",'Product info'!C255)","v":""},{"$f":"IF(ISBLANK('Product info'!D255),\"\",'Product info'!D255)","v":""},null,null,null,null,null,null,null,null,null,null,0,{"$f":"IF(ISERROR(O255*'Product info'!E255/'Product info'!AF255),0,O255*'Product info'!E255/'Product info'!AF255)","v":0}]
[null,254,{"$f":"IF(ISBLANK('Product info'!C256),\"\",'Product info'!C256)","v":""},{"$f":"IF(ISBLANK('Product info'!D256),\"\",'Product info'!D256)","v":""},null,null,null,null,null,null,null,null,null,null,0,{"$f":"IF(ISERROR(O256*'Product info'!E256/'Product info'!AF256),0,O256*'Product info'!E256/'Product info'!AF256)","v":0}]
[null,255,{"$f":"IF(ISBLANK('Product info'!C257),\"\",'Product info'!C257)","v":""},{"$f":"IF(ISBLANK('Product info'!D257),\"\",'Product info'!D257)","v":""},null,null,null,null,null,null,null,null,null,null,0,{"$f":"IF(ISERROR(O257*'Product info'!E257/'Product info'!AF257),0,O257*'Product info'!E257/'Product info'!AF257)","v":0}]
[null,256,{"$f":"IF(ISBLANK('Product info'!C258),\"\",'Product info'!C258)","v":""},{"$f":"IF(ISBLANK('Product info'!D258),\"\",'Product info'!D258)","v":""},null,null,null,null,null,null,null,null,null,null,0,{"$f":"IF(ISERROR(O258*'Product info'!E258/'Product info'!AF258),0,O258*'Product info'!E258/'Product info'!AF258)","v":0}]
[null,257,{"$f":"IF(ISBLANK('Product info'!C259),\"\",'Product info'!C259)","v":""},{"$f":"IF(ISBLANK('Product info'!D259),\"\",'Product info'!D259)","v":""},null,null,null,null,null,null,null,null,null,null,0,{"$f":"IF(ISERROR(O259*'Product info'!E259/'Product info'!AF259),0,O259*'Product info'!E259/'Product info'!AF259)","v":0}]
[null,258,{"$f":"IF(ISBLANK('Product info'!C260),\"\",'Product info'!C260)","v":""},{"$f":"IF(ISBLANK('Product info'!D260),\"\",'Product info'!D260)","v":""},null,null,null,null,null,null,null,null,null,null,0,{"$f":"IF(ISERROR(O260*'Product info'!E260/'Product info'!AF260),0,O260*'Product info'!E260/'Product info'!AF260)","v":0}]
[null,259,{"$f":"IF(ISBLANK('Product info'!C261),\"\",'Product info'!C261)","v":""},{"$f":"IF(ISBLANK('Product info'!D261),\"\",'Product info'!D261)","v":""},null,null,null,null,null,null,null,null,null,null,0,{"$f":"IF(ISERROR(O261*'Product info'!E261/'Product info'!AF261),0,O261*'Product info'!E261/'Product info'!AF261)","v":0}]
[null,260,{"$f":"IF(ISBLANK('Product info'!C262),\"\",'Product info'!C262)","v":""},{"$f":"IF(ISBLANK('Product info'!D262),\"\",'Product info'!D262)","v":""},null,null,null,null,null,null,null,null,null,null,0,{"$f":"IF(ISERROR(O262*'Product info'!E262/'Product info'!AF262),0,O262*'Product info'!E262/'Product info'!AF262)","v":0}]
[null,261,{"$f":"IF(ISBLANK('Product info'!C263),\"\",'Product info'!C263)","v":""},{"$f":"IF(ISBLANK('Product info'!D263),\"\",'Product info'!D263)","v":""},null,null,null,null,null,null,null,null,null,null,0,{"$f":"IF(ISERROR(O263*'Product info'!E263/'Product info'!AF263),0,O263*'Product info'!E263/'Product info'!AF263)","v":0}]
[null,262,{"$f":"IF(ISBLANK('Product info'!C264),\"\",'Product info'!C264)","v":""},{"$f":"IF(ISBLANK('Product info'!D264),\"\",'Product info'!D264)","v":""},null,null,null,null,null,null,null,null,null,null,0,{"$f":"IF(ISERROR(O264*'Product info'!E264/'Product info'!AF264),0,O264*'Product info'!E264/'Product info'!AF264)","v":0}]
[null,263,{"$f":"IF(ISBLANK('Product info'!C265),\"\",'Product info'!C265)","v":""},{"$f":"IF(ISBLANK('Product info'!D265),\"\",'Product info'!D265)","v":""},null,null,null,null,null,null,null,null,null,null,0,{"$f":"IF(ISERROR(O265*'Product info'!E265/'Product info'!AF265),0,O265*'Product info'!E265/'Product info'!AF265)","v":0}]
[null,264,{"$f":"IF(ISBLANK('Product info'!C266),\"\",'Product info'!C266)","v":""},{"$f":"IF(ISBLANK('Product info'!D266),\"\",'Product info'!D266)","v":""},null,null,null,null,null,null,null,null,null,null,0,{"$f":"IF(ISERROR(O266*'Product info'!E266/'Product info'!AF266),0,O266*'Product info'!E266/'Product info'!AF266)","v":0}]
[null,265,{"$f":"IF(ISBLANK('Product info'!C267),\"\",'Product info'!C267)","v":""},{"$f":"IF(ISBLANK('Product info'!D267),\"\",'Product info'!D267)","v":""},null,null,null,null,null,null,null,null,null,null,0,{"$f":"IF(ISERROR(O267*'Product info'!E267/'Product info'!AF267),0,O267*'Product info'!E267/'Product info'!AF267)","v":0}]
[null,266,{"$f":"IF(ISBLANK('Product info'!C268),\"\",'Product info'!C268)","v":""},{"$f":"IF(ISBLANK('Product info'!D268),\"\",'Product info'!D268)","v":""},null,null,null,null,null,null,null,null,null,null,0,{"$f":"IF(ISERROR(O268*'Product info'!E268/'Product info'!AF268),0,O268*'Product info'!E268/'Product info'!AF268)","v":0}]
[null,267,{"$f":"IF(ISBLANK('Product info'!C269),\"\",'Product info'!C269)","v":""},{"$f":"IF(ISBLANK('Product info'!D269),\"\",'Product info'!D269)","v":""},null,null,null,null,null,null,null,null,null,null,{"$f":"SUM(E269:N269)","v":0},{"$f":"IF(ISERROR(O269*'Product info'!E269/'Product info'!AF269),0,O269*'Product info'!E269/'Product info'!AF269)","v":0}]
[null,268,{"$f":"IF(ISBLANK('Product info'!C270),\"\",'Product info'!C270)","v":""},{"$f":"IF(ISBLANK('Product info'!D270),\"\",'Product info'!D270)","v":""},null,null,null,null,null,null,null,null,null,null,0,{"$f":"IF(ISERROR(O270*'Product info'!E270/'Product info'!AF270),0,O270*'Product info'!E270/'Product info'!AF270)","v":0}]
[null,269,{"$f":"IF(ISBLANK('Product info'!C271),\"\",'Product info'!C271)","v":""},{"$f":"IF(ISBLANK('Product info'!D271),\"\",'Product info'!D271)","v":""},null,null,null,null,null,null,null,null,null,null,0,{"$f":"IF(ISERROR(O271*'Product info'!E271/'Product info'!AF271),0,O271*'Product info'!E271/'Product info'!AF271)","v":0}]
[null,270,{"$f":"IF(ISBLANK('Product info'!C272),\"\",'Product info'!C272)","v":""},{"$f":"IF(ISBLANK('Product info'!D272),\"\",'Product info'!D272)","v":""},null,null,null,null,null,null,null,null,null,null,0,{"$f":"IF(ISERROR(O272*'Product info'!E272/'Product info'!AF272),0,O272*'Product info'!E272/'Product info'!AF272)","v":0}]
[null,271,{"$f":"IF(ISBLANK('Product info'!C273),\"\",'Product info'!C273)","v":""},{"$f":"IF(ISBLANK('Product info'!D273),\"\",'Product info'!D273)","v":""},null,null,null,null,null,null,null,null,null,null,0,{"$f":"IF(ISERROR(O273*'Product info'!E273/'Product info'!AF273),0,O273*'Product info'!E273/'Product info'!AF273)","v":0}]
[null,272,{"$f":"IF(ISBLANK('Product info'!C274),\"\",'Product info'!C274)","v":""},{"$f":"IF(ISBLANK('Product info'!D274),\"\",'Product info'!D274)","v":""},null,null,null,null,null,null,null,null,null,null,0,{"$f":"IF(ISERROR(O274*'Product info'!E274/'Product info'!AF274),0,O274*'Product info'!E274/'Product info'!AF274)","v":0}]
[null,273,{"$f":"IF(ISBLANK('Product info'!C275),\"\",'Product info'!C275)","v":""},{"$f":"IF(ISBLANK('Product info'!D275),\"\",'Product info'!D275)","v":""},null,null,null,null,null,null,null,null,null,null,0,{"$f":"IF(ISERROR(O275*'Product info'!E275/'Product info'!AF275),0,O275*'Product info'!E275/'Product info'!AF275)","v":0}]
[null,274,{"$f":"IF(ISBLANK('Product info'!C276),\"\",'Product info'!C276)","v":""},{"$f":"IF(ISBLANK('Product info'!D276),\"\",'Product info'!D276)","v":""},null,null,null,null,null,null,null,null,null,null,0,{"$f":"IF(ISERROR(O276*'Product info'!E276/'Product info'!AF276),0,O276*'Product info'!E276/'Product info'!AF276)","v":0}]
[null,275,{"$f":"IF(ISBLANK('Product info'!C277),\"\",'Product info'!C277)","v":""},{"$f":"IF(ISBLANK('Product info'!D277),\"\",'Product info'!D277)","v":""},null,null,null,null,null,null,null,null,null,null,0,{"$f":"IF(ISERROR(O277*'Product info'!E277/'Product info'!AF277),0,O277*'Product info'!E277/'Product info'!AF277)","v":0}]
[null,276,{"$f":"IF(ISBLANK('Product info'!C278),\"\",'Product info'!C278)","v":""},{"$f":"IF(ISBLANK('Product info'!D278),\"\",'Product info'!D278)","v":""},null,null,null,null,null,null,null,null,null,null,0,{"$f":"IF(ISERROR(O278*'Product info'!E278/'Product info'!AF278),0,O278*'Product info'!E278/'Product info'!AF278)","v":0}]
[null,277,{"$f":"IF(ISBLANK('Product info'!C279),\"\",'Product info'!C279)","v":""},{"$f":"IF(ISBLANK('Product info'!D279),\"\",'Product info'!D279)","v":""},null,null,null,null,null,null,null,null,null,null,0,{"$f":"IF(ISERROR(O279*'Product info'!E279/'Product info'!AF279),0,O279*'Product info'!E279/'Product info'!AF279)","v":0}]
[null,278,{"$f":"IF(ISBLANK('Product info'!C280),\"\",'Product info'!C280)","v":""},{"$f":"IF(ISBLANK('Product info'!D280),\"\",'Product info'!D280)","v":""},null,null,null,null,null,null,null,null,null,null,0,{"$f":"IF(ISERROR(O280*'Product info'!E280/'Product info'!AF280),0,O280*'Product info'!E280/'Product info'!AF280)","v":0}]
[null,279,{"$f":"IF(ISBLANK('Product info'!C281),\"\",'Product info'!C281)","v":""},{"$f":"IF(ISBLANK('Product info'!D281),\"\",'Product info'!D281)","v":""},null,null,null,null,null,null,null,null,null,null,0,{"$f":"IF(ISERROR(O281*'Product info'!E281/'Product info'!AF281),0,O281*'Product info'!E281/'Product info'!AF281)","v":0}]
[null,280,{"$f":"IF(ISBLANK('Product info'!C282),\"\",'Product info'!C282)","v":""},{"$f":"IF(ISBLANK('Product info'!D282),\"\",'Product info'!D282)","v":""},null,null,null,null,null,null,null,null,null,null,0,{"$f":"IF(ISERROR(O282*'Product info'!E282/'Product info'!AF282),0,O282*'Product info'!E282/'Product info'!AF282)","v":0}]
[null,281,{"$f":"IF(ISBLANK('Product info'!C283),\"\",'Product info'!C283)","v":""},{"$f":"IF(ISBLANK('Product info'!D283),\"\",'Product info'!D283)","v":""},null,null,null,null,null,null,null,null,null,null,0,{"$f":"IF(ISERROR(O283*'Product info'!E283/'Product info'!AF283),0,O283*'Product info'!E283/'Product info'!AF283)","v":0}]
[null,282,{"$f":"IF(ISBLANK('Product info'!C284),\"\",'Product info'!C284)","v":""},{"$f":"IF(ISBLANK('Product info'!D284),\"\",'Product info'!D284)","v":""},null,null,null,null,null,null,null,null,null,null,0,{"$f":"IF(ISERROR(O284*'Product info'!E284/'Product info'!AF284),0,O284*'Product info'!E284/'Product info'!AF284)","v":0}]
[null,283,{"$f":"IF(ISBLANK('Product info'!C285),\"\",'Product info'!C285)","v":""},{"$f":"IF(ISBLANK('Product info'!D285),\"\",'Product info'!D285)","v":""},null,null,null,null,null,null,null,null,null,null,0,{"$f":"IF(ISERROR(O285*'Product info'!E285/'Product info'!AF285),0,O285*'Product info'!E285/'Product info'!AF285)","v":0}]
[null,284,{"$f":"IF(ISBLANK('Product info'!C286),\"\",'Product info'!C286)","v":""},{"$f":"IF(ISBLANK('Product info'!D286),\"\",'Product info'!D286)","v":""},null,null,null,null,null,null,null,null,null,null,0,{"$f":"IF(ISERROR(O286*'Product info'!E286/'Product info'!AF286),0,O286*'Product info'!E286/'Product info'!AF286)","v":0}]
[null,285,{"$f":"IF(ISBLANK('Product info'!C287),\"\",'Product info'!C287)","v":""},{"$f":"IF(ISBLANK('Product info'!D287),\"\",'Product info'!D287)","v":""},null,null,null,null,null,null,null,null,null,null,0,{"$f":"IF(ISERROR(O287*'Product info'!E287/'Product info'!AF287),0,O287*'Product info'!E287/'Product info'!AF287)","v":0}]
[null,286,{"$f":"IF(ISBLANK('Product info'!C288),\"\",'Product info'!C288)","v":""},{"$f":"IF(ISBLANK('Product info'!D288),\"\",'Product info'!D288)","v":""},null,null,null,null,null,null,null,null,null,null,0,{"$f":"IF(ISERROR(O288*'Product info'!E288/'Product info'!AF288),0,O288*'Product info'!E288/'Product info'!AF288)","v":0}]
[null,287,{"$f":"IF(ISBLANK('Product info'!C289),\"\",'Product info'!C289)","v":""},{"$f":"IF(ISBLANK('Product info'!D289),\"\",'Product info'!D289)","v":""},null,null,null,null,null,null,null,null,null,null,0,{"$f":"IF(ISERROR(O289*'Product info'!E289/'Product info'!AF289),0,O289*'Product info'!E289/'Product info'!AF289)","v":0}]
[null,288,{"$f":"IF(ISBLANK('Product info'!C290),\"\",'Product info'!C290)","v":""},{"$f":"IF(ISBLANK('Product info'!D290),\"\",'Product info'!D290)","v":""},null,null,null,null,null,null,null,null,null,null,0,{"$f":"IF(ISERROR(O290*'Product info'!E290/'Product info'!AF290),0,O290*'Product info'!E290/'Product info'!AF290)","v":0}]
[null,289,{"$f":"IF(ISBLANK('Product info'!C291),\"\",'Product info'!C291)","v":""},{"$f":"IF(ISBLANK('Product info'!D291),\"\",'Product info'!D291)","v":""},null,null,null,null,null,null,null,null,null,null,0,{"$f":"IF(ISERROR(O291*'Product info'!E291/'Product info'!AF291),0,O291*'Product info'!E291/'Product info'!AF291)","v":0}]
[null,290,{"$f":"IF(ISBLANK('Product info'!C292),\"\",'Product info'!C292)","v":""},{"$f":"IF(ISBLANK('Product info'!D292),\"\",'Product info'!D292)","v":""},null,null,null,null,null,null,null,null,null,null,0,{"$f":"IF(ISERROR(O292*'Product info'!E292/'Product info'!AF292),0,O292*'Product info'!E292/'Product info'!AF292)","v":0}]
[null,291,{"$f":"IF(ISBLANK('Product info'!C293),\"\",'Product info'!C293)","v":""},{"$f":"IF(ISBLANK('Product info'!D293),\"\",'Product info'!D293)","v":""},null,null,null,null,null,null,null,null,null,null,0,{"$f":"IF(ISERROR(O293*'Product info'!E293/'Product info'!AF293),0,O293*'Product info'!E293/'Product info'!AF293)","v":0}]
[null,292,{"$f":"IF(ISBLANK('Product info'!C294),\"\",'Product info'!C294)","v":""},{"$f":"IF(ISBLANK('Product info'!D294),\"\",'Product info'!D294)","v":""},null,null,null,null,null,null,null,null,null,null,0,{"$f":"IF(ISERROR(O294*'Product info'!E294/'Product info'!AF294),0,O294*'Product info'!E294/'Product info'!AF294)","v":0}]
[null,293,{"$f":"IF(ISBLANK('Product info'!C295),\"\",'Product info'!C295)","v":""},{"$f":"IF(ISBLANK('Product info'!D295),\"\",'Product info'!D295)","v":""},null,null,null,null,null,null,null,null,null,null,0,{"$f":"IF(ISERROR(O295*'Product info'!E295/'Product info'!AF295),0,O295*'Product info'!E295/'Product info'!AF295)","v":0}]
[null,294,{"$f":"IF(ISBLANK('Product info'!C296),\"\",'Product info'!C296)","v":""},{"$f":"IF(ISBLANK('Product info'!D296),\"\",'Product info'!D296)","v":""},null,null,null,null,null,null,null,null,null,null,0,{"$f":"IF(ISERROR(O296*'Product info'!E296/'Product info'!AF296),0,O296*'Product info'!E296/'Product info'!AF296)","v":0}]
[null,295,{"$f":"IF(ISBLANK('Product info'!C297),\"\",'Product info'!C297)","v":""},{"$f":"IF(ISBLANK('Product info'!D297),\"\",'Product info'!D297)","v":""},null,null,null,null,null,null,null,null,null,null,0,{"$f":"IF(ISERROR(O297*'Product info'!E297/'Product info'!AF297),0,O297*'Product info'!E297/'Product info'!AF297)","v":0}]
[null,296,{"$f":"IF(ISBLANK('Product info'!C298),\"\",'Product info'!C298)","v":""},{"$f":"IF(ISBLANK('Product info'!D298),\"\",'Product info'!D298)","v":""},null,null,null,null,null,null,null,null,null,null,0,{"$f":"IF(ISERROR(O298*'Product info'!E298/'Product info'!AF298),0,O298*'Product info'!E298/'Product info'!AF298)","v":0}]
[null,297,{"$f":"IF(ISBLANK('Product info'!C299),\"\",'Product info'!C299)","v":""},{"$f":"IF(ISBLANK('Product info'!D299),\"\",'Product info'!D299)","v":""},null,null,null,null,null,null,null,null,null,null,0,{"$f":"IF(ISERROR(O299*'Product info'!E299/'Product info'!AF299),0,O299*'Product info'!E299/'Product info'!AF299)","v":0}]
[null,298,{"$f":"IF(ISBLANK('Product info'!C300),\"\",'Product info'!C300)","v":""},{"$f":"IF(ISBLANK('Product info'!D300),\"\",'Product info'!D300)","v":""},null,null,null,null,null,null,null,null,null,null,0,{"$f":"IF(ISERROR(O300*'Product info'!E300/'Product info'!AF300),0,O300*'Product info'!E300/'Product info'!AF300)","v":0}]
[null,299,{"$f":"IF(ISBLANK('Product info'!C301),\"\",'Product info'!C301)","v":""},{"$f":"IF(ISBLANK('Product info'!D301),\"\",'Product info'!D301)","v":""},null,null,null,null,null,null,null,null,null,null,0,{"$f":"IF(ISERROR(O301*'Product info'!E301/'Product info'!AF301),0,O301*'Product info'!E301/'Product info'!AF301)","v":0}]
[null,300,{"$f":"IF(ISBLANK('Product info'!C302),\"\",'Product info'!C302)","v":""},{"$f":"IF(ISBLANK('Product info'!D302),\"\",'Product info'!D302)","v":""},null,null,null,null,null,null,null,null,null,null,0,{"$f":"IF(ISERROR(O302*'Product info'!E302/'Product info'!AF302),0,O302*'Product info'!E302/'Product info'!AF302)","v":0}]
[null,301,{"$f":"IF(ISBLANK('Product info'!C303),\"\",'Product info'!C303)","v":""},{"$f":"IF(ISBLANK('Product info'!D303),\"\",'Product info'!D303)","v":""},null,null,null,null,null,null,null,null,null,null,0,{"$f":"IF(ISERROR(O303*'Product info'!E303/'Product info'!AF303),0,O303*'Product info'!E303/'Product info'!AF303)","v":0}]
[null,302,{"$f":"IF(ISBLANK('Product info'!C304),\"\",'Product info'!C304)","v":""},{"$f":"IF(ISBLANK('Product info'!D304),\"\",'Product info'!D304)","v":""},null,null,null,null,null,null,null,null,null,null,0,{"$f":"IF(ISERROR(O304*'Product info'!E304/'Product info'!AF304),0,O304*'Product info'!E304/'Product info'!AF304)","v":0}]
[null,303,{"$f":"IF(ISBLANK('Product info'!C305),\"\",'Product info'!C305)","v":""},{"$f":"IF(ISBLANK('Product info'!D305),\"\",'Product info'!D305)","v":""},null,null,null,null,null,null,null,null,null,null,0,{"$f":"IF(ISERROR(O305*'Product info'!E305/'Product info'!AF305),0,O305*'Product info'!E305/'Product info'!AF305)","v":0}]
[null,304,{"$f":"IF(ISBLANK('Product info'!C306),\"\",'Product info'!C306)","v":""},{"$f":"IF(ISBLANK('Product info'!D306),\"\",'Product info'!D306)","v":""},null,null,null,null,null,null,null,null,null,null,0,{"$f":"IF(ISERROR(O306*'Product info'!E306/'Product info'!AF306),0,O306*'Product info'!E306/'Product info'!AF306)","v":0}]
[null,305,{"$f":"IF(ISBLANK('Product info'!C307),\"\",'Product info'!C307)","v":""},{"$f":"IF(ISBLANK('Product info'!D307),\"\",'Product info'!D307)","v":""},null,null,null,null,null,null,null,null,null,null,0,{"$f":"IF(ISERROR(O307*'Product info'!E307/'Product info'!AF307),0,O307*'Product info'!E307/'Product info'!AF307)","v":0}]
[null,306,{"$f":"IF(ISBLANK('Product info'!C308),\"\",'Product info'!C308)","v":""},{"$f":"IF(ISBLANK('Product info'!D308),\"\",'Product info'!D308)","v":""},null,null,null,null,null,null,null,null,null,null,0,{"$f":"IF(ISERROR(O308*'Product info'!E308/'Product info'!AF308),0,O308*'Product info'!E308/'Product info'!AF308)","v":0}]
[null,307,{"$f":"IF(ISBLANK('Product info'!C309),\"\",'Product info'!C309)","v":""},{"$f":"IF(ISBLANK('Product info'!D309),\"\",'Product info'!D309)","v":""},null,null,null,null,null,null,null,null,null,null,0,{"$f":"IF(ISERROR(O309*'Product info'!E309/'Product info'!AF309),0,O309*'Product info'!E309/'Product info'!AF309)","v":0}]
[null,308,{"$f":"IF(ISBLANK('Product info'!C310),\"\",'Product info'!C310)","v":""},{"$f":"IF(ISBLANK('Product info'!D310),\"\",'Product info'!D310)","v":""},null,null,null,null,null,null,null,null,null,null,0,{"$f":"IF(ISERROR(O310*'Product info'!E310/'Product info'!AF310),0,O310*'Product info'!E310/'Product info'!AF310)","v":0}]
[null,309,{"$f":"IF(ISBLANK('Product info'!C311),\"\",'Product info'!C311)","v":""},{"$f":"IF(ISBLANK('Product info'!D311),\"\",'Product info'!D311)","v":""},null,null,null,null,null,null,null,null,null,null,0,{"$f":"IF(ISERROR(O311*'Product info'!E311/'Product info'!AF311),0,O311*'Product info'!E311/'Product info'!AF311)","v":0}]
[null,310,{"$f":"IF(ISBLANK('Product info'!C312),\"\",'Product info'!C312)","v":""},{"$f":"IF(ISBLANK('Product info'!D312),\"\",'Product info'!D312)","v":""},null,null,null,null,null,null,null,null,null,null,0,{"$f":"IF(ISERROR(O312*'Product info'!E312/'Product info'!AF312),0,O312*'Product info'!E312/'Product info'!AF312)","v":0}]
[null,311,{"$f":"IF(ISBLANK('Product info'!C313),\"\",'Product info'!C313)","v":""},{"$f":"IF(ISBLANK('Product info'!D313),\"\",'Product info'!D313)","v":""},null,null,null,null,null,null,null,null,null,null,0,{"$f":"IF(ISERROR(O313*'Product info'!E313/'Product info'!AF313),0,O313*'Product info'!E313/'Product info'!AF313)","v":0}]
[null,312,{"$f":"IF(ISBLANK('Product info'!C314),\"\",'Product info'!C314)","v":""},{"$f":"IF(ISBLANK('Product info'!D314),\"\",'Product info'!D314)","v":""},null,null,null,null,null,null,null,null,null,null,0,{"$f":"IF(ISERROR(O314*'Product info'!E314/'Product info'!AF314),0,O314*'Product info'!E314/'Product info'!AF314)","v":0}]
[null,313,{"$f":"IF(ISBLANK('Product info'!C315),\"\",'Product info'!C315)","v":""},{"$f":"IF(ISBLANK('Product info'!D315),\"\",'Product info'!D315)","v":""},null,null,null,null,null,null,null,null,null,null,0,{"$f":"IF(ISERROR(O315*'Product info'!E315/'Product info'!AF315),0,O315*'Product info'!E315/'Product info'!AF315)","v":0}]
[null,314,{"$f":"IF(ISBLANK('Product info'!C316),\"\",'Product info'!C316)","v":""},{"$f":"IF(ISBLANK('Product info'!D316),\"\",'Product info'!D316)","v":""},null,null,null,null,null,null,null,null,null,null,0,{"$f":"IF(ISERROR(O316*'Product info'!E316/'Product info'!AF316),0,O316*'Product info'!E316/'Product info'!AF316)","v":0}]
[null,315,{"$f":"IF(ISBLANK('Product info'!C317),\"\",'Product info'!C317)","v":""},{"$f":"IF(ISBLANK('Product info'!D317),\"\",'Product info'!D317)","v":""},null,null,null,null,null,null,null,null,null,null,0,{"$f":"IF(ISERROR(O317*'Product info'!E317/'Product info'!AF317),0,O317*'Product info'!E317/'Product info'!AF317)","v":0}]
[null,316,{"$f":"IF(ISBLANK('Product info'!C318),\"\",'Product info'!C318)","v":""},{"$f":"IF(ISBLANK('Product info'!D318),\"\",'Product info'!D318)","v":""},null,null,null,null,null,null,null,null,null,null,0,{"$f":"IF(ISERROR(O318*'Product info'!E318/'Product info'!AF318),0,O318*'Product info'!E318/'Product info'!AF318)","v":0}]
[null,317,{"$f":"IF(ISBLANK('Product info'!C319),\"\",'Product info'!C319)","v":""},{"$f":"IF(ISBLANK('Product info'!D319),\"\",'Product info'!D319)","v":""},null,null,null,null,null,null,null,null,null,null,0,{"$f":"IF(ISERROR(O319*'Product info'!E319/'Product info'!AF319),0,O319*'Product info'!E319/'Product info'!AF319)","v":0}]
[null,318,{"$f":"IF(ISBLANK('Product info'!C320),\"\",'Product info'!C320)","v":""},{"$f":"IF(ISBLANK('Product info'!D320),\"\",'Product info'!D320)","v":""},null,null,null,null,null,null,null,null,null,null,0,{"$f":"IF(ISERROR(O320*'Product info'!E320/'Product info'!AF320),0,O320*'Product info'!E320/'Product info'!AF320)","v":0}]
[null,319,{"$f":"IF(ISBLANK('Product info'!C321),\"\",'Product info'!C321)","v":""},{"$f":"IF(ISBLANK('Product info'!D321),\"\",'Product info'!D321)","v":""},null,null,null,null,null,null,null,null,null,null,0,{"$f":"IF(ISERROR(O321*'Product info'!E321/'Product info'!AF321),0,O321*'Product info'!E321/'Product info'!AF321)","v":0}]
[null,320,{"$f":"IF(ISBLANK('Product info'!C322),\"\",'Product info'!C322)","v":""},{"$f":"IF(ISBLANK('Product info'!D322),\"\",'Product info'!D322)","v":""},null,null,null,null,null,null,null,null,null,null,0,{"$f":"IF(ISERROR(O322*'Product info'!E322/'Product info'!AF322),0,O322*'Product info'!E322/'Product info'!AF322)","v":0}]
[null,321,{"$f":"IF(ISBLANK('Product info'!C323),\"\",'Product info'!C323)","v":""},{"$f":"IF(ISBLANK('Product info'!D323),\"\",'Product info'!D323)","v":""},null,null,null,null,null,null,null,null,null,null,0,{"$f":"IF(ISERROR(O323*'Product info'!E323/'Product info'!AF323),0,O323*'Product info'!E323/'Product info'!AF323)","v":0}]
[null,322,{"$f":"IF(ISBLANK('Product info'!C324),\"\",'Product info'!C324)","v":""},{"$f":"IF(ISBLANK('Product info'!D324),\"\",'Product info'!D324)","v":""},null,null,null,null,null,null,null,null,null,null,0,{"$f":"IF(ISERROR(O324*'Product info'!E324/'Product info'!AF324),0,O324*'Product info'!E324/'Product info'!AF324)","v":0}]
[null,323,{"$f":"IF(ISBLANK('Product info'!C325),\"\",'Product info'!C325)","v":""},{"$f":"IF(ISBLANK('Product info'!D325),\"\",'Product info'!D325)","v":""},null,null,null,null,null,null,null,null,null,null,0,{"$f":"IF(ISERROR(O325*'Product info'!E325/'Product info'!AF325),0,O325*'Product info'!E325/'Product info'!AF325)","v":0}]
[null,324,{"$f":"IF(ISBLANK('Product info'!C326),\"\",'Product info'!C326)","v":""},{"$f":"IF(ISBLANK('Product info'!D326),\"\",'Product info'!D326)","v":""},null,null,null,null,null,null,null,null,null,null,0,{"$f":"IF(ISERROR(O326*'Product info'!E326/'Product info'!AF326),0,O326*'Product info'!E326/'Product info'!AF326)","v":0}]
[null,325,{"$f":"IF(ISBLANK('Product info'!C327),\"\",'Product info'!C327)","v":""},{"$f":"IF(ISBLANK('Product info'!D327),\"\",'Product info'!D327)","v":""},null,null,null,null,null,null,null,null,null,null,0,{"$f":"IF(ISERROR(O327*'Product info'!E327/'Product info'!AF327),0,O327*'Product info'!E327/'Product info'!AF327)","v":0}]
[null,326,{"$f":"IF(ISBLANK('Product info'!C328),\"\",'Product info'!C328)","v":""},{"$f":"IF(ISBLANK('Product info'!D328),\"\",'Product info'!D328)","v":""},null,null,null,null,null,null,null,null,null,null,0,{"$f":"IF(ISERROR(O328*'Product info'!E328/'Product info'!AF328),0,O328*'Product info'!E328/'Product info'!AF328)","v":0}]
[null,327,{"$f":"IF(ISBLANK('Product info'!C329),\"\",'Product info'!C329)","v":""},{"$f":"IF(ISBLANK('Product info'!D329),\"\",'Product info'!D329)","v":""},null,null,null,null,null,null,null,null,null,null,0,{"$f":"IF(ISERROR(O329*'Product info'!E329/'Product info'!AF329),0,O329*'Product info'!E329/'Product info'!AF329)","v":0}]
[null,328,{"$f":"IF(ISBLANK('Product info'!C330),\"\",'Product info'!C330)","v":""},{"$f":"IF(ISBLANK('Product info'!D330),\"\",'Product info'!D330)","v":""},null,null,null,null,null,null,null,null,null,null,0,{"$f":"IF(ISERROR(O330*'Product info'!E330/'Product info'!AF330),0,O330*'Product info'!E330/'Product info'!AF330)","v":0}]
[null,329,{"$f":"IF(ISBLANK('Product info'!C331),\"\",'Product info'!C331)","v":""},{"$f":"IF(ISBLANK('Product info'!D331),\"\",'Product info'!D331)","v":""},null,null,null,null,null,null,null,null,null,null,0,{"$f":"IF(ISERROR(O331*'Product info'!E331/'Product info'!AF331),0,O331*'Product info'!E331/'Product info'!AF331)","v":0}]
[null,330,{"$f":"IF(ISBLANK('Product info'!C332),\"\",'Product info'!C332)","v":""},{"$f":"IF(ISBLANK('Product info'!D332),\"\",'Product info'!D332)","v":""},null,null,null,null,null,null,null,null,null,null,0,{"$f":"IF(ISERROR(O332*'Product info'!E332/'Product info'!AF332),0,O332*'Product info'!E332/'Product info'!AF332)","v":0}]
[null,331,{"$f":"IF(ISBLANK('Product info'!C333),\"\",'Product info'!C333)","v":""},{"$f":"IF(ISBLANK('Product info'!D333),\"\",'Product info'!D333)","v":""},null,null,null,null,null,null,null,null,null,null,{"$f":"SUM(E333:N333)","v":0},{"$f":"IF(ISERROR(O333*'Product info'!E333/'Product info'!AF333),0,O333*'Product info'!E333/'Product info'!AF333)","v":0}]
[null,332,{"$f":"IF(ISBLANK('Product info'!C334),\"\",'Product info'!C334)","v":""},{"$f":"IF(ISBLANK('Product info'!D334),\"\",'Product info'!D334)","v":""},null,null,null,null,null,null,null,null,null,null,0,{"$f":"IF(ISERROR(O334*'Product info'!E334/'Product info'!AF334),0,O334*'Product info'!E334/'Product info'!AF334)","v":0}]
[null,333,{"$f":"IF(ISBLANK('Product info'!C335),\"\",'Product info'!C335)","v":""},{"$f":"IF(ISBLANK('Product info'!D335),\"\",'Product info'!D335)","v":""},null,null,null,null,null,null,null,null,null,null,0,{"$f":"IF(ISERROR(O335*'Product info'!E335/'Product info'!AF335),0,O335*'Product info'!E335/'Product info'!AF335)","v":0}]
[null,334,{"$f":"IF(ISBLANK('Product info'!C336),\"\",'Product info'!C336)","v":""},{"$f":"IF(ISBLANK('Product info'!D336),\"\",'Product info'!D336)","v":""},null,null,null,null,null,null,null,null,null,null,0,{"$f":"IF(ISERROR(O336*'Product info'!E336/'Product info'!AF336),0,O336*'Product info'!E336/'Product info'!AF336)","v":0}]
[null,335,{"$f":"IF(ISBLANK('Product info'!C337),\"\",'Product info'!C337)","v":""},{"$f":"IF(ISBLANK('Product info'!D337),\"\",'Product info'!D337)","v":""},null,null,null,null,null,null,null,null,null,null,0,{"$f":"IF(ISERROR(O337*'Product info'!E337/'Product info'!AF337),0,O337*'Product info'!E337/'Product info'!AF337)","v":0}]
[null,336,{"$f":"IF(ISBLANK('Product info'!C338),\"\",'Product info'!C338)","v":""},{"$f":"IF(ISBLANK('Product info'!D338),\"\",'Product info'!D338)","v":""},null,null,null,null,null,null,null,null,null,null,0,{"$f":"IF(ISERROR(O338*'Product info'!E338/'Product info'!AF338),0,O338*'Product info'!E338/'Product info'!AF338)","v":0}]
[null,337,{"$f":"IF(ISBLANK('Product info'!C339),\"\",'Product info'!C339)","v":""},{"$f":"IF(ISBLANK('Product info'!D339),\"\",'Product info'!D339)","v":""},null,null,null,null,null,null,null,null,null,null,0,{"$f":"IF(ISERROR(O339*'Product info'!E339/'Product info'!AF339),0,O339*'Product info'!E339/'Product info'!AF339)","v":0}]
[null,338,{"$f":"IF(ISBLANK('Product info'!C340),\"\",'Product info'!C340)","v":""},{"$f":"IF(ISBLANK('Product info'!D340),\"\",'Product info'!D340)","v":""},null,null,null,null,null,null,null,null,null,null,0,{"$f":"IF(ISERROR(O340*'Product info'!E340/'Product info'!AF340),0,O340*'Product info'!E340/'Product info'!AF340)","v":0}]
[null,339,{"$f":"IF(ISBLANK('Product info'!C341),\"\",'Product info'!C341)","v":""},{"$f":"IF(ISBLANK('Product info'!D341),\"\",'Product info'!D341)","v":""},null,null,null,null,null,null,null,null,null,null,0,{"$f":"IF(ISERROR(O341*'Product info'!E341/'Product info'!AF341),0,O341*'Product info'!E341/'Product info'!AF341)","v":0}]
[null,340,{"$f":"IF(ISBLANK('Product info'!C342),\"\",'Product info'!C342)","v":""},{"$f":"IF(ISBLANK('Product info'!D342),\"\",'Product info'!D342)","v":""},null,null,null,null,null,null,null,null,null,null,0,{"$f":"IF(ISERROR(O342*'Product info'!E342/'Product info'!AF342),0,O342*'Product info'!E342/'Product info'!AF342)","v":0}]
[null,341,{"$f":"IF(ISBLANK('Product info'!C343),\"\",'Product info'!C343)","v":""},{"$f":"IF(ISBLANK('Product info'!D343),\"\",'Product info'!D343)","v":""},null,null,null,null,null,null,null,null,null,null,0,{"$f":"IF(ISERROR(O343*'Product info'!E343/'Product info'!AF343),0,O343*'Product info'!E343/'Product info'!AF343)","v":0}]
[null,342,{"$f":"IF(ISBLANK('Product info'!C344),\"\",'Product info'!C344)","v":""},{"$f":"IF(ISBLANK('Product info'!D344),\"\",'Product info'!D344)","v":""},null,null,null,null,null,null,null,null,null,null,0,{"$f":"IF(ISERROR(O344*'Product info'!E344/'Product info'!AF344),0,O344*'Product info'!E344/'Product info'!AF344)","v":0}]
[null,343,{"$f":"IF(ISBLANK('Product info'!C345),\"\",'Product info'!C345)","v":""},{"$f":"IF(ISBLANK('Product info'!D345),\"\",'Product info'!D345)","v":""},null,null,null,null,null,null,null,null,null,null,0,{"$f":"IF(ISERROR(O345*'Product info'!E345/'Product info'!AF345),0,O345*'Product info'!E345/'Product info'!AF345)","v":0}]
[null,344,{"$f":"IF(ISBLANK('Product info'!C346),\"\",'Product info'!C346)","v":""},{"$f":"IF(ISBLANK('Product info'!D346),\"\",'Product info'!D346)","v":""},null,null,null,null,null,null,null,null,null,null,0,{"$f":"IF(ISERROR(O346*'Product info'!E346/'Product info'!AF346),0,O346*'Product info'!E346/'Product info'!AF346)","v":0}]
[null,345,{"$f":"IF(ISBLANK('Product info'!C347),\"\",'Product info'!C347)","v":""},{"$f":"IF(ISBLANK('Product info'!D347),\"\",'Product info'!D347)","v":""},null,null,null,null,null,null,null,null,null,null,0,{"$f":"IF(ISERROR(O347*'Product info'!E347/'Product info'!AF347),0,O347*'Product info'!E347/'Product info'!AF347)","v":0}]
[null,346,{"$f":"IF(ISBLANK('Product info'!C348),\"\",'Product info'!C348)","v":""},{"$f":"IF(ISBLANK('Product info'!D348),\"\",'Product info'!D348)","v":""},null,null,null,null,null,null,null,null,null,null,0,{"$f":"IF(ISERROR(O348*'Product info'!E348/'Product info'!AF348),0,O348*'Product info'!E348/'Product info'!AF348)","v":0}]
[null,347,{"$f":"IF(ISBLANK('Product info'!C349),\"\",'Product info'!C349)","v":""},{"$f":"IF(ISBLANK('Product info'!D349),\"\",'Product info'!D349)","v":""},null,null,null,null,null,null,null,null,null,null,0,{"$f":"IF(ISERROR(O349*'Product info'!E349/'Product info'!AF349),0,O349*'Product info'!E349/'Product info'!AF349)","v":0}]
[null,348,{"$f":"IF(ISBLANK('Product info'!C350),\"\",'Product info'!C350)","v":""},{"$f":"IF(ISBLANK('Product info'!D350),\"\",'Product info'!D350)","v":""},null,null,null,null,null,null,null,null,null,null,0,{"$f":"IF(ISERROR(O350*'Product info'!E350/'Product info'!AF350),0,O350*'Product info'!E350/'Product info'!AF350)","v":0}]
[null,349,{"$f":"IF(ISBLANK('Product info'!C351),\"\",'Product info'!C351)","v":""},{"$f":"IF(ISBLANK('Product info'!D351),\"\",'Product info'!D351)","v":""},null,null,null,null,null,null,null,null,null,null,0,{"$f":"IF(ISERROR(O351*'Product info'!E351/'Product info'!AF351),0,O351*'Product info'!E351/'Product info'!AF351)","v":0}]
[null,350,{"$f":"IF(ISBLANK('Product info'!C352),\"\",'Product info'!C352)","v":""},{"$f":"IF(ISBLANK('Product info'!D352),\"\",'Product info'!D352)","v":""},null,null,null,null,null,null,null,null,null,null,0,{"$f":"IF(ISERROR(O352*'Product info'!E352/'Product info'!AF352),0,O352*'Product info'!E352/'Product info'!AF352)","v":0}]
[null,351,{"$f":"IF(ISBLANK('Product info'!C353),\"\",'Product info'!C353)","v":""},{"$f":"IF(ISBLANK('Product info'!D353),\"\",'Product info'!D353)","v":""},null,null,null,null,null,null,null,null,null,null,0,{"$f":"IF(ISERROR(O353*'Product info'!E353/'Product info'!AF353),0,O353*'Product info'!E353/'Product info'!AF353)","v":0}]
[null,352,{"$f":"IF(ISBLANK('Product info'!C354),\"\",'Product info'!C354)","v":""},{"$f":"IF(ISBLANK('Product info'!D354),\"\",'Product info'!D354)","v":""},null,null,null,null,null,null,null,null,null,null,0,{"$f":"IF(ISERROR(O354*'Product info'!E354/'Product info'!AF354),0,O354*'Product info'!E354/'Product info'!AF354)","v":0}]
[null,353,{"$f":"IF(ISBLANK('Product info'!C355),\"\",'Product info'!C355)","v":""},{"$f":"IF(ISBLANK('Product info'!D355),\"\",'Product info'!D355)","v":""},null,null,null,null,null,null,null,null,null,null,0,{"$f":"IF(ISERROR(O355*'Product info'!E355/'Product info'!AF355),0,O355*'Product info'!E355/'Product info'!AF355)","v":0}]
[null,354,{"$f":"IF(ISBLANK('Product info'!C356),\"\",'Product info'!C356)","v":""},{"$f":"IF(ISBLANK('Product info'!D356),\"\",'Product info'!D356)","v":""},null,null,null,null,null,null,null,null,null,null,0,{"$f":"IF(ISERROR(O356*'Product info'!E356/'Product info'!AF356),0,O356*'Product info'!E356/'Product info'!AF356)","v":0}]
[null,355,{"$f":"IF(ISBLANK('Product info'!C357),\"\",'Product info'!C357)","v":""},{"$f":"IF(ISBLANK('Product info'!D357),\"\",'Product info'!D357)","v":""},null,null,null,null,null,null,null,null,null,null,0,{"$f":"IF(ISERROR(O357*'Product info'!E357/'Product info'!AF357),0,O357*'Product info'!E357/'Product info'!AF357)","v":0}]
[null,356,{"$f":"IF(ISBLANK('Product info'!C358),\"\",'Product info'!C358)","v":""},{"$f":"IF(ISBLANK('Product info'!D358),\"\",'Product info'!D358)","v":""},null,null,null,null,null,null,null,null,null,null,0,{"$f":"IF(ISERROR(O358*'Product info'!E358/'Product info'!AF358),0,O358*'Product info'!E358/'Product info'!AF358)","v":0}]
[null,357,{"$f":"IF(ISBLANK('Product info'!C359),\"\",'Product info'!C359)","v":""},{"$f":"IF(ISBLANK('Product info'!D359),\"\",'Product info'!D359)","v":""},null,null,null,null,null,null,null,null,null,null,0,{"$f":"IF(ISERROR(O359*'Product info'!E359/'Product info'!AF359),0,O359*'Product info'!E359/'Product info'!AF359)","v":0}]
[null,358,{"$f":"IF(ISBLANK('Product info'!C360),\"\",'Product info'!C360)","v":""},{"$f":"IF(ISBLANK('Product info'!D360),\"\",'Product info'!D360)","v":""},null,null,null,null,null,null,null,null,null,null,0,{"$f":"IF(ISERROR(O360*'Product info'!E360/'Product info'!AF360),0,O360*'Product info'!E360/'Product info'!AF360)","v":0}]
[null,359,{"$f":"IF(ISBLANK('Product info'!C361),\"\",'Product info'!C361)","v":""},{"$f":"IF(ISBLANK('Product info'!D361),\"\",'Product info'!D361)","v":""},null,null,null,null,null,null,null,null,null,null,0,{"$f":"IF(ISERROR(O361*'Product info'!E361/'Product info'!AF361),0,O361*'Product info'!E361/'Product info'!AF361)","v":0}]
[null,360,{"$f":"IF(ISBLANK('Product info'!C362),\"\",'Product info'!C362)","v":""},{"$f":"IF(ISBLANK('Product info'!D362),\"\",'Product info'!D362)","v":""},null,null,null,null,null,null,null,null,null,null,0,{"$f":"IF(ISERROR(O362*'Product info'!E362/'Product info'!AF362),0,O362*'Product info'!E362/'Product info'!AF362)","v":0}]
[null,361,{"$f":"IF(ISBLANK('Product info'!C363),\"\",'Product info'!C363)","v":""},{"$f":"IF(ISBLANK('Product info'!D363),\"\",'Product info'!D363)","v":""},null,null,null,null,null,null,null,null,null,null,0,{"$f":"IF(ISERROR(O363*'Product info'!E363/'Product info'!AF363),0,O363*'Product info'!E363/'Product info'!AF363)","v":0}]
[null,362,{"$f":"IF(ISBLANK('Product info'!C364),\"\",'Product info'!C364)","v":""},{"$f":"IF(ISBLANK('Product info'!D364),\"\",'Product info'!D364)","v":""},null,null,null,null,null,null,null,null,null,null,0,{"$f":"IF(ISERROR(O364*'Product info'!E364/'Product info'!AF364),0,O364*'Product info'!E364/'Product info'!AF364)","v":0}]
[null,363,{"$f":"IF(ISBLANK('Product info'!C365),\"\",'Product info'!C365)","v":""},{"$f":"IF(ISBLANK('Product info'!D365),\"\",'Product info'!D365)","v":""},null,null,null,null,null,null,null,null,null,null,0,{"$f":"IF(ISERROR(O365*'Product info'!E365/'Product info'!AF365),0,O365*'Product info'!E365/'Product info'!AF365)","v":0}]
[null,364,{"$f":"IF(ISBLANK('Product info'!C366),\"\",'Product info'!C366)","v":""},{"$f":"IF(ISBLANK('Product info'!D366),\"\",'Product info'!D366)","v":""},null,null,null,null,null,null,null,null,null,null,0,{"$f":"IF(ISERROR(O366*'Product info'!E366/'Product info'!AF366),0,O366*'Product info'!E366/'Product info'!AF366)","v":0}]
[null,365,{"$f":"IF(ISBLANK('Product info'!C367),\"\",'Product info'!C367)","v":""},{"$f":"IF(ISBLANK('Product info'!D367),\"\",'Product info'!D367)","v":""},null,null,null,null,null,null,null,null,null,null,0,{"$f":"IF(ISERROR(O367*'Product info'!E367/'Product info'!AF367),0,O367*'Product info'!E367/'Product info'!AF367)","v":0}]
[null,366,{"$f":"IF(ISBLANK('Product info'!C368),\"\",'Product info'!C368)","v":""},{"$f":"IF(ISBLANK('Product info'!D368),\"\",'Product info'!D368)","v":""},null,null,null,null,null,null,null,null,null,null,0,{"$f":"IF(ISERROR(O368*'Product info'!E368/'Product info'!AF368),0,O368*'Product info'!E368/'Product info'!AF368)","v":0}]
[null,367,{"$f":"IF(ISBLANK('Product info'!C369),\"\",'Product info'!C369)","v":""},{"$f":"IF(ISBLANK('Product info'!D369),\"\",'Product info'!D369)","v":""},null,null,null,null,null,null,null,null,null,null,0,{"$f":"IF(ISERROR(O369*'Product info'!E369/'Product info'!AF369),0,O369*'Product info'!E369/'Product info'!AF369)","v":0}]
[null,368,{"$f":"IF(ISBLANK('Product info'!C370),\"\",'Product info'!C370)","v":""},{"$f":"IF(ISBLANK('Product info'!D370),\"\",'Product info'!D370)","v":""},null,null,null,null,null,null,null,null,null,null,0,{"$f":"IF(ISERROR(O370*'Product info'!E370/'Product info'!AF370),0,O370*'Product info'!E370/'Product info'!AF370)","v":0}]
[null,369,{"$f":"IF(ISBLANK('Product info'!C371),\"\",'Product info'!C371)","v":""},{"$f":"IF(ISBLANK('Product info'!D371),\"\",'Product info'!D371)","v":""},null,null,null,null,null,null,null,null,null,null,0,{"$f":"IF(ISERROR(O371*'Product info'!E371/'Product info'!AF371),0,O371*'Product info'!E371/'Product info'!AF371)","v":0}]
[null,370,{"$f":"IF(ISBLANK('Product info'!C372),\"\",'Product info'!C372)","v":""},{"$f":"IF(ISBLANK('Product info'!D372),\"\",'Product info'!D372)","v":""},null,null,null,null,null,null,null,null,null,null,0,{"$f":"IF(ISERROR(O372*'Product info'!E372/'Product info'!AF372),0,O372*'Product info'!E372/'Product info'!AF372)","v":0}]
[null,371,{"$f":"IF(ISBLANK('Product info'!C373),\"\",'Product info'!C373)","v":""},{"$f":"IF(ISBLANK('Product info'!D373),\"\",'Product info'!D373)","v":""},null,null,null,null,null,null,null,null,null,null,0,{"$f":"IF(ISERROR(O373*'Product info'!E373/'Product info'!AF373),0,O373*'Product info'!E373/'Product info'!AF373)","v":0}]
[null,372,{"$f":"IF(ISBLANK('Product info'!C374),\"\",'Product info'!C374)","v":""},{"$f":"IF(ISBLANK('Product info'!D374),\"\",'Product info'!D374)","v":""},null,null,null,null,null,null,null,null,null,null,0,{"$f":"IF(ISERROR(O374*'Product info'!E374/'Product info'!AF374),0,O374*'Product info'!E374/'Product info'!AF374)","v":0}]
[null,373,{"$f":"IF(ISBLANK('Product info'!C375),\"\",'Product info'!C375)","v":""},{"$f":"IF(ISBLANK('Product info'!D375),\"\",'Product info'!D375)","v":""},null,null,null,null,null,null,null,null,null,null,0,{"$f":"IF(ISERROR(O375*'Product info'!E375/'Product info'!AF375),0,O375*'Product info'!E375/'Product info'!AF375)","v":0}]
[null,374,{"$f":"IF(ISBLANK('Product info'!C376),\"\",'Product info'!C376)","v":""},{"$f":"IF(ISBLANK('Product info'!D376),\"\",'Product info'!D376)","v":""},null,null,null,null,null,null,null,null,null,null,0,{"$f":"IF(ISERROR(O376*'Product info'!E376/'Product info'!AF376),0,O376*'Product info'!E376/'Product info'!AF376)","v":0}]
[null,375,{"$f":"IF(ISBLANK('Product info'!C377),\"\",'Product info'!C377)","v":""},{"$f":"IF(ISBLANK('Product info'!D377),\"\",'Product info'!D377)","v":""},null,null,null,null,null,null,null,null,null,null,0,{"$f":"IF(ISERROR(O377*'Product info'!E377/'Product info'!AF377),0,O377*'Product info'!E377/'Product info'!AF377)","v":0}]
[null,376,{"$f":"IF(ISBLANK('Product info'!C378),\"\",'Product info'!C378)","v":""},{"$f":"IF(ISBLANK('Product info'!D378),\"\",'Product info'!D378)","v":""},null,null,null,null,null,null,null,null,null,null,0,{"$f":"IF(ISERROR(O378*'Product info'!E378/'Product info'!AF378),0,O378*'Product info'!E378/'Product info'!AF378)","v":0}]
[null,377,{"$f":"IF(ISBLANK('Product info'!C379),\"\",'Product info'!C379)","v":""},{"$f":"IF(ISBLANK('Product info'!D379),\"\",'Product info'!D379)","v":""},null,null,null,null,null,null,null,null,null,null,0,{"$f":"IF(ISERROR(O379*'Product info'!E379/'Product info'!AF379),0,O379*'Product info'!E379/'Product info'!AF379)","v":0}]
[null,378,{"$f":"IF(ISBLANK('Product info'!C380),\"\",'Product info'!C380)","v":""},{"$f":"IF(ISBLANK('Product info'!D380),\"\",'Product info'!D380)","v":""},null,null,null,null,null,null,null,null,null,null,0,{"$f":"IF(ISERROR(O380*'Product info'!E380/'Product info'!AF380),0,O380*'Product info'!E380/'Product info'!AF380)","v":0}]
[null,379,{"$f":"IF(ISBLANK('Product info'!C381),\"\",'Product info'!C381)","v":""},{"$f":"IF(ISBLANK('Product info'!D381),\"\",'Product info'!D381)","v":""},null,null,null,null,null,null,null,null,null,null,0,{"$f":"IF(ISERROR(O381*'Product info'!E381/'Product info'!AF381),0,O381*'Product info'!E381/'Product info'!AF381)","v":0}]
[null,380,{"$f":"IF(ISBLANK('Product info'!C382),\"\",'Product info'!C382)","v":""},{"$f":"IF(ISBLANK('Product info'!D382),\"\",'Product info'!D382)","v":""},null,null,null,null,null,null,null,null,null,null,0,{"$f":"IF(ISERROR(O382*'Product info'!E382/'Product info'!AF382),0,O382*'Product info'!E382/'Product info'!AF382)","v":0}]
[null,381,{"$f":"IF(ISBLANK('Product info'!C383),\"\",'Product info'!C383)","v":""},{"$f":"IF(ISBLANK('Product info'!D383),\"\",'Product info'!D383)","v":""},null,null,null,null,null,null,null,null,null,null,0,{"$f":"IF(ISERROR(O383*'Product info'!E383/'Product info'!AF383),0,O383*'Product info'!E383/'Product info'!AF383)","v":0}]
[null,382,{"$f":"IF(ISBLANK('Product info'!C384),\"\",'Product info'!C384)","v":""},{"$f":"IF(ISBLANK('Product info'!D384),\"\",'Product info'!D384)","v":""},null,null,null,null,null,null,null,null,null,null,0,{"$f":"IF(ISERROR(O384*'Product info'!E384/'Product info'!AF384),0,O384*'Product info'!E384/'Product info'!AF384)","v":0}]
[null,383,{"$f":"IF(ISBLANK('Product info'!C385),\"\",'Product info'!C385)","v":""},{"$f":"IF(ISBLANK('Product info'!D385),\"\",'Product info'!D385)","v":""},null,null,null,null,null,null,null,null,null,null,0,{"$f":"IF(ISERROR(O385*'Product info'!E385/'Product info'!AF385),0,O385*'Product info'!E385/'Product info'!AF385)","v":0}]
[null,384,{"$f":"IF(ISBLANK('Product info'!C386),\"\",'Product info'!C386)","v":""},{"$f":"IF(ISBLANK('Product info'!D386),\"\",'Product info'!D386)","v":""},null,null,null,null,null,null,null,null,null,null,0,{"$f":"IF(ISERROR(O386*'Product info'!E386/'Product info'!AF386),0,O386*'Product info'!E386/'Product info'!AF386)","v":0}]
[null,385,{"$f":"IF(ISBLANK('Product info'!C387),\"\",'Product info'!C387)","v":""},{"$f":"IF(ISBLANK('Product info'!D387),\"\",'Product info'!D387)","v":""},null,null,null,null,null,null,null,null,null,null,0,{"$f":"IF(ISERROR(O387*'Product info'!E387/'Product info'!AF387),0,O387*'Product info'!E387/'Product info'!AF387)","v":0}]
[null,386,{"$f":"IF(ISBLANK('Product info'!C388),\"\",'Product info'!C388)","v":""},{"$f":"IF(ISBLANK('Product info'!D388),\"\",'Product info'!D388)","v":""},null,null,null,null,null,null,null,null,null,null,0,{"$f":"IF(ISERROR(O388*'Product info'!E388/'Product info'!AF388),0,O388*'Product info'!E388/'Product info'!AF388)","v":0}]
[null,387,{"$f":"IF(ISBLANK('Product info'!C389),\"\",'Product info'!C389)","v":""},{"$f":"IF(ISBLANK('Product info'!D389),\"\",'Product info'!D389)","v":""},null,null,null,null,null,null,null,null,null,null,0,{"$f":"IF(ISERROR(O389*'Product info'!E389/'Product info'!AF389),0,O389*'Product info'!E389/'Product info'!AF389)","v":0}]
[null,388,{"$f":"IF(ISBLANK('Product info'!C390),\"\",'Product info'!C390)","v":""},{"$f":"IF(ISBLANK('Product info'!D390),\"\",'Product info'!D390)","v":""},null,null,null,null,null,null,null,null,null,null,0,{"$f":"IF(ISERROR(O390*'Product info'!E390/'Product info'!AF390),0,O390*'Product info'!E390/'Product info'!AF390)","v":0}]
[null,389,{"$f":"IF(ISBLANK('Product info'!C391),\"\",'Product info'!C391)","v":""},{"$f":"IF(ISBLANK('Product info'!D391),\"\",'Product info'!D391)","v":""},null,null,null,null,null,null,null,null,null,null,0,{"$f":"IF(ISERROR(O391*'Product info'!E391/'Product info'!AF391),0,O391*'Product info'!E391/'Product info'!AF391)","v":0}]
[null,390,{"$f":"IF(ISBLANK('Product info'!C392),\"\",'Product info'!C392)","v":""},{"$f":"IF(ISBLANK('Product info'!D392),\"\",'Product info'!D392)","v":""},null,null,null,null,null,null,null,null,null,null,0,{"$f":"IF(ISERROR(O392*'Product info'!E392/'Product info'!AF392),0,O392*'Product info'!E392/'Product info'!AF392)","v":0}]
[null,391,{"$f":"IF(ISBLANK('Product info'!C393),\"\",'Product info'!C393)","v":""},{"$f":"IF(ISBLANK('Product info'!D393),\"\",'Product info'!D393)","v":""},null,null,null,null,null,null,null,null,null,null,0,{"$f":"IF(ISERROR(O393*'Product info'!E393/'Product info'!AF393),0,O393*'Product info'!E393/'Product info'!AF393)","v":0}]
[null,392,{"$f":"IF(ISBLANK('Product info'!C394),\"\",'Product info'!C394)","v":""},{"$f":"IF(ISBLANK('Product info'!D394),\"\",'Product info'!D394)","v":""},null,null,null,null,null,null,null,null,null,null,0,{"$f":"IF(ISERROR(O394*'Product info'!E394/'Product info'!AF394),0,O394*'Product info'!E394/'Product info'!AF394)","v":0}]
[null,393,{"$f":"IF(ISBLANK('Product info'!C395),\"\",'Product info'!C395)","v":""},{"$f":"IF(ISBLANK('Product info'!D395),\"\",'Product info'!D395)","v":""},null,null,null,null,null,null,null,null,null,null,0,{"$f":"IF(ISERROR(O395*'Product info'!E395/'Product info'!AF395),0,O395*'Product info'!E395/'Product info'!AF395)","v":0}]
[null,394,{"$f":"IF(ISBLANK('Product info'!C396),\"\",'Product info'!C396)","v":""},{"$f":"IF(ISBLANK('Product info'!D396),\"\",'Product info'!D396)","v":""},null,null,null,null,null,null,null,null,null,null,0,{"$f":"IF(ISERROR(O396*'Product info'!E396/'Product info'!AF396),0,O396*'Product info'!E396/'Product info'!AF396)","v":0}]
[null,395,{"$f":"IF(ISBLANK('Product info'!C397),\"\",'Product info'!C397)","v":""},{"$f":"IF(ISBLANK('Product info'!D397),\"\",'Product info'!D397)","v":""},null,null,null,null,null,null,null,null,null,null,{"$f":"SUM(E397:N397)","v":0},{"$f":"IF(ISERROR(O397*'Product info'!E397/'Product info'!AF397),0,O397*'Product info'!E397/'Product info'!AF397)","v":0}]
[null,396,{"$f":"IF(ISBLANK('Product info'!C398),\"\",'Product info'!C398)","v":""},{"$f":"IF(ISBLANK('Product info'!D398),\"\",'Product info'!D398)","v":""},null,null,null,null,null,null,null,null,null,null,0,{"$f":"IF(ISERROR(O398*'Product info'!E398/'Product info'!AF398),0,O398*'Product info'!E398/'Product info'!AF398)","v":0}]
[null,397,{"$f":"IF(ISBLANK('Product info'!C399),\"\",'Product info'!C399)","v":""},{"$f":"IF(ISBLANK('Product info'!D399),\"\",'Product info'!D399)","v":""},null,null,null,null,null,null,null,null,null,null,0,{"$f":"IF(ISERROR(O399*'Product info'!E399/'Product info'!AF399),0,O399*'Product info'!E399/'Product info'!AF399)","v":0}]
[null,398,{"$f":"IF(ISBLANK('Product info'!C400),\"\",'Product info'!C400)","v":""},{"$f":"IF(ISBLANK('Product info'!D400),\"\",'Product info'!D400)","v":""},null,null,null,null,null,null,null,null,null,null,0,{"$f":"IF(ISERROR(O400*'Product info'!E400/'Product info'!AF400),0,O400*'Product info'!E400/'Product info'!AF400)","v":0}]
[null,399,{"$f":"IF(ISBLANK('Product info'!C401),\"\",'Product info'!C401)","v":""},{"$f":"IF(ISBLANK('Product info'!D401),\"\",'Product info'!D401)","v":""},null,null,null,null,null,null,null,null,null,null,0,{"$f":"IF(ISERROR(O401*'Product info'!E401/'Product info'!AF401),0,O401*'Product info'!E401/'Product info'!AF401)","v":0}]
[null,400,{"$f":"IF(ISBLANK('Product info'!C402),\"\",'Product info'!C402)","v":""},{"$f":"IF(ISBLANK('Product info'!D402),\"\",'Product info'!D402)","v":""},null,null,null,null,null,null,null,null,null,null,0,{"$f":"IF(ISERROR(O402*'Product info'!E402/'Product info'!AF402),0,O402*'Product info'!E402/'Product info'!AF402)","v":0}]
[null,401,{"$f":"IF(ISBLANK('Product info'!C403),\"\",'Product info'!C403)","v":""},{"$f":"IF(ISBLANK('Product info'!D403),\"\",'Product info'!D403)","v":""},null,null,null,null,null,null,null,null,null,null,0,{"$f":"IF(ISERROR(O403*'Product info'!E403/'Product info'!AF403),0,O403*'Product info'!E403/'Product info'!AF403)","v":0}]
[null,402,{"$f":"IF(ISBLANK('Product info'!C404),\"\",'Product info'!C404)","v":""},{"$f":"IF(ISBLANK('Product info'!D404),\"\",'Product info'!D404)","v":""},null,null,null,null,null,null,null,null,null,null,0,{"$f":"IF(ISERROR(O404*'Product info'!E404/'Product info'!AF404),0,O404*'Product info'!E404/'Product info'!AF404)","v":0}]
[null,403,{"$f":"IF(ISBLANK('Product info'!C405),\"\",'Product info'!C405)","v":""},{"$f":"IF(ISBLANK('Product info'!D405),\"\",'Product info'!D405)","v":""},null,null,null,null,null,null,null,null,null,null,0,{"$f":"IF(ISERROR(O405*'Product info'!E405/'Product info'!AF405),0,O405*'Product info'!E405/'Product info'!AF405)","v":0}]
[null,404,{"$f":"IF(ISBLANK('Product info'!C406),\"\",'Product info'!C406)","v":""},{"$f":"IF(ISBLANK('Product info'!D406),\"\",'Product info'!D406)","v":""},null,null,null,null,null,null,null,null,null,null,0,{"$f":"IF(ISERROR(O406*'Product info'!E406/'Product info'!AF406),0,O406*'Product info'!E406/'Product info'!AF406)","v":0}]
[null,405,{"$f":"IF(ISBLANK('Product info'!C407),\"\",'Product info'!C407)","v":""},{"$f":"IF(ISBLANK('Product info'!D407),\"\",'Product info'!D407)","v":""},null,null,null,null,null,null,null,null,null,null,0,{"$f":"IF(ISERROR(O407*'Product info'!E407/'Product info'!AF407),0,O407*'Product info'!E407/'Product info'!AF407)","v":0}]
[null,406,{"$f":"IF(ISBLANK('Product info'!C408),\"\",'Product info'!C408)","v":""},{"$f":"IF(ISBLANK('Product info'!D408),\"\",'Product info'!D408)","v":""},null,null,null,null,null,null,null,null,null,null,0,{"$f":"IF(ISERROR(O408*'Product info'!E408/'Product info'!AF408),0,O408*'Product info'!E408/'Product info'!AF408)","v":0}]
[null,407,{"$f":"IF(ISBLANK('Product info'!C409),\"\",'Product info'!C409)","v":""},{"$f":"IF(ISBLANK('Product info'!D409),\"\",'Product info'!D409)","v":""},null,null,null,null,null,null,null,null,null,null,0,{"$f":"IF(ISERROR(O409*'Product info'!E409/'Product info'!AF409),0,O409*'Product info'!E409/'Product info'!AF409)","v":0}]
[null,408,{"$f":"IF(ISBLANK('Product info'!C410),\"\",'Product info'!C410)","v":""},{"$f":"IF(ISBLANK('Product info'!D410),\"\",'Product info'!D410)","v":""},null,null,null,null,null,null,null,null,null,null,0,{"$f":"IF(ISERROR(O410*'Product info'!E410/'Product info'!AF410),0,O410*'Product info'!E410/'Product info'!AF410)","v":0}]
[null,409,{"$f":"IF(ISBLANK('Product info'!C411),\"\",'Product info'!C411)","v":""},{"$f":"IF(ISBLANK('Product info'!D411),\"\",'Product info'!D411)","v":""},null,null,null,null,null,null,null,null,null,null,0,{"$f":"IF(ISERROR(O411*'Product info'!E411/'Product info'!AF411),0,O411*'Product info'!E411/'Product info'!AF411)","v":0}]
[null,410,{"$f":"IF(ISBLANK('Product info'!C412),\"\",'Product info'!C412)","v":""},{"$f":"IF(ISBLANK('Product info'!D412),\"\",'Product info'!D412)","v":""},null,null,null,null,null,null,null,null,null,null,0,{"$f":"IF(ISERROR(O412*'Product info'!E412/'Product info'!AF412),0,O412*'Product info'!E412/'Product info'!AF412)","v":0}]
[null,411,{"$f":"IF(ISBLANK('Product info'!C413),\"\",'Product info'!C413)","v":""},{"$f":"IF(ISBLANK('Product info'!D413),\"\",'Product info'!D413)","v":""},null,null,null,null,null,null,null,null,null,null,0,{"$f":"IF(ISERROR(O413*'Product info'!E413/'Product info'!AF413),0,O413*'Product info'!E413/'Product info'!AF413)","v":0}]
[null,412,{"$f":"IF(ISBLANK('Product info'!C414),\"\",'Product info'!C414)","v":""},{"$f":"IF(ISBLANK('Product info'!D414),\"\",'Product info'!D414)","v":""},null,null,null,null,null,null,null,null,null,null,0,{"$f":"IF(ISERROR(O414*'Product info'!E414/'Product info'!AF414),0,O414*'Product info'!E414/'Product info'!AF414)","v":0}]
[null,413,{"$f":"IF(ISBLANK('Product info'!C415),\"\",'Product info'!C415)","v":""},{"$f":"IF(ISBLANK('Product info'!D415),\"\",'Product info'!D415)","v":""},null,null,null,null,null,null,null,null,null,null,0,{"$f":"IF(ISERROR(O415*'Product info'!E415/'Product info'!AF415),0,O415*'Product info'!E415/'Product info'!AF415)","v":0}]
[null,414,{"$f":"IF(ISBLANK('Product info'!C416),\"\",'Product info'!C416)","v":""},{"$f":"IF(ISBLANK('Product info'!D416),\"\",'Product info'!D416)","v":""},null,null,null,null,null,null,null,null,null,null,0,{"$f":"IF(ISERROR(O416*'Product info'!E416/'Product info'!AF416),0,O416*'Product info'!E416/'Product info'!AF416)","v":0}]
[null,415,{"$f":"IF(ISBLANK('Product info'!C417),\"\",'Product info'!C417)","v":""},{"$f":"IF(ISBLANK('Product info'!D417),\"\",'Product info'!D417)","v":""},null,null,null,null,null,null,null,null,null,null,0,{"$f":"IF(ISERROR(O417*'Product info'!E417/'Product info'!AF417),0,O417*'Product info'!E417/'Product info'!AF417)","v":0}]
[null,416,{"$f":"IF(ISBLANK('Product info'!C418),\"\",'Product info'!C418)","v":""},{"$f":"IF(ISBLANK('Product info'!D418),\"\",'Product info'!D418)","v":""},null,null,null,null,null,null,null,null,null,null,0,{"$f":"IF(ISERROR(O418*'Product info'!E418/'Product info'!AF418),0,O418*'Product info'!E418/'Product info'!AF418)","v":0}]
[null,417,{"$f":"IF(ISBLANK('Product info'!C419),\"\",'Product info'!C419)","v":""},{"$f":"IF(ISBLANK('Product info'!D419),\"\",'Product info'!D419)","v":""},null,null,null,null,null,null,null,null,null,null,0,{"$f":"IF(ISERROR(O419*'Product info'!E419/'Product info'!AF419),0,O419*'Product info'!E419/'Product info'!AF419)","v":0}]
[null,418,{"$f":"IF(ISBLANK('Product info'!C420),\"\",'Product info'!C420)","v":""},{"$f":"IF(ISBLANK('Product info'!D420),\"\",'Product info'!D420)","v":""},null,null,null,null,null,null,null,null,null,null,0,{"$f":"IF(ISERROR(O420*'Product info'!E420/'Product info'!AF420),0,O420*'Product info'!E420/'Product info'!AF420)","v":0}]
[null,419,{"$f":"IF(ISBLANK('Product info'!C421),\"\",'Product info'!C421)","v":""},{"$f":"IF(ISBLANK('Product info'!D421),\"\",'Product info'!D421)","v":""},null,null,null,null,null,null,null,null,null,null,0,{"$f":"IF(ISERROR(O421*'Product info'!E421/'Product info'!AF421),0,O421*'Product info'!E421/'Product info'!AF421)","v":0}]
[null,420,{"$f":"IF(ISBLANK('Product info'!C422),\"\",'Product info'!C422)","v":""},{"$f":"IF(ISBLANK('Product info'!D422),\"\",'Product info'!D422)","v":""},null,null,null,null,null,null,null,null,null,null,0,{"$f":"IF(ISERROR(O422*'Product info'!E422/'Product info'!AF422),0,O422*'Product info'!E422/'Product info'!AF422)","v":0}]
[null,421,{"$f":"IF(ISBLANK('Product info'!C423),\"\",'Product info'!C423)","v":""},{"$f":"IF(ISBLANK('Product info'!D423),\"\",'Product info'!D423)","v":""},null,null,null,null,null,null,null,null,null,null,0,{"$f":"IF(ISERROR(O423*'Product info'!E423/'Product info'!AF423),0,O423*'Product info'!E423/'Product info'!AF423)","v":0}]
[null,422,{"$f":"IF(ISBLANK('Product info'!C424),\"\",'Product info'!C424)","v":""},{"$f":"IF(ISBLANK('Product info'!D424),\"\",'Product info'!D424)","v":""},null,null,null,null,null,null,null,null,null,null,0,{"$f":"IF(ISERROR(O424*'Product info'!E424/'Product info'!AF424),0,O424*'Product info'!E424/'Product info'!AF424)","v":0}]
[null,423,{"$f":"IF(ISBLANK('Product info'!C425),\"\",'Product info'!C425)","v":""},{"$f":"IF(ISBLANK('Product info'!D425),\"\",'Product info'!D425)","v":""},null,null,null,null,null,null,null,null,null,null,0,{"$f":"IF(ISERROR(O425*'Product info'!E425/'Product info'!AF425),0,O425*'Product info'!E425/'Product info'!AF425)","v":0}]
[null,424,{"$f":"IF(ISBLANK('Product info'!C426),\"\",'Product info'!C426)","v":""},{"$f":"IF(ISBLANK('Product info'!D426),\"\",'Product info'!D426)","v":""},null,null,null,null,null,null,null,null,null,null,0,{"$f":"IF(ISERROR(O426*'Product info'!E426/'Product info'!AF426),0,O426*'Product info'!E426/'Product info'!AF426)","v":0}]
[null,425,{"$f":"IF(ISBLANK('Product info'!C427),\"\",'Product info'!C427)","v":""},{"$f":"IF(ISBLANK('Product info'!D427),\"\",'Product info'!D427)","v":""},null,null,null,null,null,null,null,null,null,null,0,{"$f":"IF(ISERROR(O427*'Product info'!E427/'Product info'!AF427),0,O427*'Product info'!E427/'Product info'!AF427)","v":0}]
[null,426,{"$f":"IF(ISBLANK('Product info'!C428),\"\",'Product info'!C428)","v":""},{"$f":"IF(ISBLANK('Product info'!D428),\"\",'Product info'!D428)","v":""},null,null,null,null,null,null,null,null,null,null,0,{"$f":"IF(ISERROR(O428*'Product info'!E428/'Product info'!AF428),0,O428*'Product info'!E428/'Product info'!AF428)","v":0}]
[null,427,{"$f":"IF(ISBLANK('Product info'!C429),\"\",'Product info'!C429)","v":""},{"$f":"IF(ISBLANK('Product info'!D429),\"\",'Product info'!D429)","v":""},null,null,null,null,null,null,null,null,null,null,0,{"$f":"IF(ISERROR(O429*'Product info'!E429/'Product info'!AF429),0,O429*'Product info'!E429/'Product info'!AF429)","v":0}]
[null,428,{"$f":"IF(ISBLANK('Product info'!C430),\"\",'Product info'!C430)","v":""},{"$f":"IF(ISBLANK('Product info'!D430),\"\",'Product info'!D430)","v":""},null,null,null,null,null,null,null,null,null,null,0,{"$f":"IF(ISERROR(O430*'Product info'!E430/'Product info'!AF430),0,O430*'Product info'!E430/'Product info'!AF430)","v":0}]
[null,429,{"$f":"IF(ISBLANK('Product info'!C431),\"\",'Product info'!C431)","v":""},{"$f":"IF(ISBLANK('Product info'!D431),\"\",'Product info'!D431)","v":""},null,null,null,null,null,null,null,null,null,null,0,{"$f":"IF(ISERROR(O431*'Product info'!E431/'Product info'!AF431),0,O431*'Product info'!E431/'Product info'!AF431)","v":0}]
[null,430,{"$f":"IF(ISBLANK('Product info'!C432),\"\",'Product info'!C432)","v":""},{"$f":"IF(ISBLANK('Product info'!D432),\"\",'Product info'!D432)","v":""},null,null,null,null,null,null,null,null,null,null,0,{"$f":"IF(ISERROR(O432*'Product info'!E432/'Product info'!AF432),0,O432*'Product info'!E432/'Product info'!AF432)","v":0}]
[null,431,{"$f":"IF(ISBLANK('Product info'!C433),\"\",'Product info'!C433)","v":""},{"$f":"IF(ISBLANK('Product info'!D433),\"\",'Product info'!D433)","v":""},null,null,null,null,null,null,null,null,null,null,0,{"$f":"IF(ISERROR(O433*'Product info'!E433/'Product info'!AF433),0,O433*'Product info'!E433/'Product info'!AF433)","v":0}]
[null,432,{"$f":"IF(ISBLANK('Product info'!C434),\"\",'Product info'!C434)","v":""},{"$f":"IF(ISBLANK('Product info'!D434),\"\",'Product info'!D434)","v":""},null,null,null,null,null,null,null,null,null,null,0,{"$f":"IF(ISERROR(O434*'Product info'!E434/'Product info'!AF434),0,O434*'Product info'!E434/'Product info'!AF434)","v":0}]
[null,433,{"$f":"IF(ISBLANK('Product info'!C435),\"\",'Product info'!C435)","v":""},{"$f":"IF(ISBLANK('Product info'!D435),\"\",'Product info'!D435)","v":""},null,null,null,null,null,null,null,null,null,null,0,{"$f":"IF(ISERROR(O435*'Product info'!E435/'Product info'!AF435),0,O435*'Product info'!E435/'Product info'!AF435)","v":0}]
[null,434,{"$f":"IF(ISBLANK('Product info'!C436),\"\",'Product info'!C436)","v":""},{"$f":"IF(ISBLANK('Product info'!D436),\"\",'Product info'!D436)","v":""},null,null,null,null,null,null,null,null,null,null,0,{"$f":"IF(ISERROR(O436*'Product info'!E436/'Product info'!AF436),0,O436*'Product info'!E436/'Product info'!AF436)","v":0}]
[null,435,{"$f":"IF(ISBLANK('Product info'!C437),\"\",'Product info'!C437)","v":""},{"$f":"IF(ISBLANK('Product info'!D437),\"\",'Product info'!D437)","v":""},null,null,null,null,null,null,null,null,null,null,0,{"$f":"IF(ISERROR(O437*'Product info'!E437/'Product info'!AF437),0,O437*'Product info'!E437/'Product info'!AF437)","v":0}]
[null,436,{"$f":"IF(ISBLANK('Product info'!C438),\"\",'Product info'!C438)","v":""},{"$f":"IF(ISBLANK('Product info'!D438),\"\",'Product info'!D438)","v":""},null,null,null,null,null,null,null,null,null,null,0,{"$f":"IF(ISERROR(O438*'Product info'!E438/'Product info'!AF438),0,O438*'Product info'!E438/'Product info'!AF438)","v":0}]
[null,437,{"$f":"IF(ISBLANK('Product info'!C439),\"\",'Product info'!C439)","v":""},{"$f":"IF(ISBLANK('Product info'!D439),\"\",'Product info'!D439)","v":""},null,null,null,null,null,null,null,null,null,null,0,{"$f":"IF(ISERROR(O439*'Product info'!E439/'Product info'!AF439),0,O439*'Product info'!E439/'Product info'!AF439)","v":0}]
[null,438,{"$f":"IF(ISBLANK('Product info'!C440),\"\",'Product info'!C440)","v":""},{"$f":"IF(ISBLANK('Product info'!D440),\"\",'Product info'!D440)","v":""},null,null,null,null,null,null,null,null,null,null,0,{"$f":"IF(ISERROR(O440*'Product info'!E440/'Product info'!AF440),0,O440*'Product info'!E440/'Product info'!AF440)","v":0}]
[null,439,{"$f":"IF(ISBLANK('Product info'!C441),\"\",'Product info'!C441)","v":""},{"$f":"IF(ISBLANK('Product info'!D441),\"\",'Product info'!D441)","v":""},null,null,null,null,null,null,null,null,null,null,0,{"$f":"IF(ISERROR(O441*'Product info'!E441/'Product info'!AF441),0,O441*'Product info'!E441/'Product info'!AF441)","v":0}]
[null,440,{"$f":"IF(ISBLANK('Product info'!C442),\"\",'Product info'!C442)","v":""},{"$f":"IF(ISBLANK('Product info'!D442),\"\",'Product info'!D442)","v":""},null,null,null,null,null,null,null,null,null,null,0,{"$f":"IF(ISERROR(O442*'Product info'!E442/'Product info'!AF442),0,O442*'Product info'!E442/'Product info'!AF442)","v":0}]
[null,441,{"$f":"IF(ISBLANK('Product info'!C443),\"\",'Product info'!C443)","v":""},{"$f":"IF(ISBLANK('Product info'!D443),\"\",'Product info'!D443)","v":""},null,null,null,null,null,null,null,null,null,null,0,{"$f":"IF(ISERROR(O443*'Product info'!E443/'Product info'!AF443),0,O443*'Product info'!E443/'Product info'!AF443)","v":0}]
[null,442,{"$f":"IF(ISBLANK('Product info'!C444),\"\",'Product info'!C444)","v":""},{"$f":"IF(ISBLANK('Product info'!D444),\"\",'Product info'!D444)","v":""},null,null,null,null,null,null,null,null,null,null,0,{"$f":"IF(ISERROR(O444*'Product info'!E444/'Product info'!AF444),0,O444*'Product info'!E444/'Product info'!AF444)","v":0}]
[null,443,{"$f":"IF(ISBLANK('Product info'!C445),\"\",'Product info'!C445)","v":""},{"$f":"IF(ISBLANK('Product info'!D445),\"\",'Product info'!D445)","v":""},null,null,null,null,null,null,null,null,null,null,0,{"$f":"IF(ISERROR(O445*'Product info'!E445/'Product info'!AF445),0,O445*'Product info'!E445/'Product info'!AF445)","v":0}]
[null,444,{"$f":"IF(ISBLANK('Product info'!C446),\"\",'Product info'!C446)","v":""},{"$f":"IF(ISBLANK('Product info'!D446),\"\",'Product info'!D446)","v":""},null,null,null,null,null,null,null,null,null,null,0,{"$f":"IF(ISERROR(O446*'Product info'!E446/'Product info'!AF446),0,O446*'Product info'!E446/'Product info'!AF446)","v":0}]
[null,445,{"$f":"IF(ISBLANK('Product info'!C447),\"\",'Product info'!C447)","v":""},{"$f":"IF(ISBLANK('Product info'!D447),\"\",'Product info'!D447)","v":""},null,null,null,null,null,null,null,null,null,null,0,{"$f":"IF(ISERROR(O447*'Product info'!E447/'Product info'!AF447),0,O447*'Product info'!E447/'Product info'!AF447)","v":0}]
[null,446,{"$f":"IF(ISBLANK('Product info'!C448),\"\",'Product info'!C448)","v":""},{"$f":"IF(ISBLANK('Product info'!D448),\"\",'Product info'!D448)","v":""},null,null,null,null,null,null,null,null,null,null,0,{"$f":"IF(ISERROR(O448*'Product info'!E448/'Product info'!AF448),0,O448*'Product info'!E448/'Product info'!AF448)","v":0}]
[null,447,{"$f":"IF(ISBLANK('Product info'!C449),\"\",'Product info'!C449)","v":""},{"$f":"IF(ISBLANK('Product info'!D449),\"\",'Product info'!D449)","v":""},null,null,null,null,null,null,null,null,null,null,0,{"$f":"IF(ISERROR(O449*'Product info'!E449/'Product info'!AF449),0,O449*'Product info'!E449/'Product info'!AF449)","v":0}]
[null,448,{"$f":"IF(ISBLANK('Product info'!C450),\"\",'Product info'!C450)","v":""},{"$f":"IF(ISBLANK('Product info'!D450),\"\",'Product info'!D450)","v":""},null,null,null,null,null,null,null,null,null,null,0,{"$f":"IF(ISERROR(O450*'Product info'!E450/'Product info'!AF450),0,O450*'Product info'!E450/'Product info'!AF450)","v":0}]
[null,449,{"$f":"IF(ISBLANK('Product info'!C451),\"\",'Product info'!C451)","v":""},{"$f":"IF(ISBLANK('Product info'!D451),\"\",'Product info'!D451)","v":""},null,null,null,null,null,null,null,null,null,null,0,{"$f":"IF(ISERROR(O451*'Product info'!E451/'Product info'!AF451),0,O451*'Product info'!E451/'Product info'!AF451)","v":0}]
[null,450,{"$f":"IF(ISBLANK('Product info'!C452),\"\",'Product info'!C452)","v":""},{"$f":"IF(ISBLANK('Product info'!D452),\"\",'Product info'!D452)","v":""},null,null,null,null,null,null,null,null,null,null,0,{"$f":"IF(ISERROR(O452*'Product info'!E452/'Product info'!AF452),0,O452*'Product info'!E452/'Product info'!AF452)","v":0}]
[null,451,{"$f":"IF(ISBLANK('Product info'!C453),\"\",'Product info'!C453)","v":""},{"$f":"IF(ISBLANK('Product info'!D453),\"\",'Product info'!D453)","v":""},null,null,null,null,null,null,null,null,null,null,0,{"$f":"IF(ISERROR(O453*'Product info'!E453/'Product info'!AF453),0,O453*'Product info'!E453/'Product info'!AF453)","v":0}]
[null,452,{"$f":"IF(ISBLANK('Product info'!C454),\"\",'Product info'!C454)","v":""},{"$f":"IF(ISBLANK('Product info'!D454),\"\",'Product info'!D454)","v":""},null,null,null,null,null,null,null,null,null,null,0,{"$f":"IF(ISERROR(O454*'Product info'!E454/'Product info'!AF454),0,O454*'Product info'!E454/'Product info'!AF454)","v":0}]
[null,453,{"$f":"IF(ISBLANK('Product info'!C455),\"\",'Product info'!C455)","v":""},{"$f":"IF(ISBLANK('Product info'!D455),\"\",'Product info'!D455)","v":""},null,null,null,null,null,null,null,null,null,null,0,{"$f":"IF(ISERROR(O455*'Product info'!E455/'Product info'!AF455),0,O455*'Product info'!E455/'Product info'!AF455)","v":0}]
[null,454,{"$f":"IF(ISBLANK('Product info'!C456),\"\",'Product info'!C456)","v":""},{"$f":"IF(ISBLANK('Product info'!D456),\"\",'Product info'!D456)","v":""},null,null,null,null,null,null,null,null,null,null,0,{"$f":"IF(ISERROR(O456*'Product info'!E456/'Product info'!AF456),0,O456*'Product info'!E456/'Product info'!AF456)","v":0}]
[null,455,{"$f":"IF(ISBLANK('Product info'!C457),\"\",'Product info'!C457)","v":""},{"$f":"IF(ISBLANK('Product info'!D457),\"\",'Product info'!D457)","v":""},null,null,null,null,null,null,null,null,null,null,0,{"$f":"IF(ISERROR(O457*'Product info'!E457/'Product info'!AF457),0,O457*'Product info'!E457/'Product info'!AF457)","v":0}]
[null,456,{"$f":"IF(ISBLANK('Product info'!C458),\"\",'Product info'!C458)","v":""},{"$f":"IF(ISBLANK('Product info'!D458),\"\",'Product info'!D458)","v":""},null,null,null,null,null,null,null,null,null,null,0,{"$f":"IF(ISERROR(O458*'Product info'!E458/'Product info'!AF458),0,O458*'Product info'!E458/'Product info'!AF458)","v":0}]
[null,457,{"$f":"IF(ISBLANK('Product info'!C459),\"\",'Product info'!C459)","v":""},{"$f":"IF(ISBLANK('Product info'!D459),\"\",'Product info'!D459)","v":""},null,null,null,null,null,null,null,null,null,null,0,{"$f":"IF(ISERROR(O459*'Product info'!E459/'Product info'!AF459),0,O459*'Product info'!E459/'Product info'!AF459)","v":0}]
[null,458,{"$f":"IF(ISBLANK('Product info'!C460),\"\",'Product info'!C460)","v":""},{"$f":"IF(ISBLANK('Product info'!D460),\"\",'Product info'!D460)","v":""},null,null,null,null,null,null,null,null,null,null,0,{"$f":"IF(ISERROR(O460*'Product info'!E460/'Product info'!AF460),0,O460*'Product info'!E460/'Product info'!AF460)","v":0}]
[null,459,{"$f":"IF(ISBLANK('Product info'!C461),\"\",'Product info'!C461)","v":""},{"$f":"IF(ISBLANK('Product info'!D461),\"\",'Product info'!D461)","v":""},null,null,null,null,null,null,null,null,null,null,{"$f":"SUM(E461:N461)","v":0},{"$f":"IF(ISERROR(O461*'Product info'!E461/'Product info'!AF461),0,O461*'Product info'!E461/'Product info'!AF461)","v":0}]
[null,460,{"$f":"IF(ISBLANK('Product info'!C462),\"\",'Product info'!C462)","v":""},{"$f":"IF(ISBLANK('Product info'!D462),\"\",'Product info'!D462)","v":""},null,null,null,null,null,null,null,null,null,null,0,{"$f":"IF(ISERROR(O462*'Product info'!E462/'Product info'!AF462),0,O462*'Product info'!E462/'Product info'!AF462)","v":0}]
[null,461,{"$f":"IF(ISBLANK('Product info'!C463),\"\",'Product info'!C463)","v":""},{"$f":"IF(ISBLANK('Product info'!D463),\"\",'Product info'!D463)","v":""},null,null,null,null,null,null,null,null,null,null,0,{"$f":"IF(ISERROR(O463*'Product info'!E463/'Product info'!AF463),0,O463*'Product info'!E463/'Product info'!AF463)","v":0}]
[null,462,{"$f":"IF(ISBLANK('Product info'!C464),\"\",'Product info'!C464)","v":""},{"$f":"IF(ISBLANK('Product info'!D464),\"\",'Product info'!D464)","v":""},null,null,null,null,null,null,null,null,null,null,0,{"$f":"IF(ISERROR(O464*'Product info'!E464/'Product info'!AF464),0,O464*'Product info'!E464/'Product info'!AF464)","v":0}]
[null,463,{"$f":"IF(ISBLANK('Product info'!C465),\"\",'Product info'!C465)","v":""},{"$f":"IF(ISBLANK('Product info'!D465),\"\",'Product info'!D465)","v":""},null,null,null,null,null,null,null,null,null,null,0,{"$f":"IF(ISERROR(O465*'Product info'!E465/'Product info'!AF465),0,O465*'Product info'!E465/'Product info'!AF465)","v":0}]
[null,464,{"$f":"IF(ISBLANK('Product info'!C466),\"\",'Product info'!C466)","v":""},{"$f":"IF(ISBLANK('Product info'!D466),\"\",'Product info'!D466)","v":""},null,null,null,null,null,null,null,null,null,null,0,{"$f":"IF(ISERROR(O466*'Product info'!E466/'Product info'!AF466),0,O466*'Product info'!E466/'Product info'!AF466)","v":0}]
[null,465,{"$f":"IF(ISBLANK('Product info'!C467),\"\",'Product info'!C467)","v":""},{"$f":"IF(ISBLANK('Product info'!D467),\"\",'Product info'!D467)","v":""},null,null,null,null,null,null,null,null,null,null,0,{"$f":"IF(ISERROR(O467*'Product info'!E467/'Product info'!AF467),0,O467*'Product info'!E467/'Product info'!AF467)","v":0}]
[null,466,{"$f":"IF(ISBLANK('Product info'!C468),\"\",'Product info'!C468)","v":""},{"$f":"IF(ISBLANK('Product info'!D468),\"\",'Product info'!D468)","v":""},null,null,null,null,null,null,null,null,null,null,0,{"$f":"IF(ISERROR(O468*'Product info'!E468/'Product info'!AF468),0,O468*'Product info'!E468/'Product info'!AF468)","v":0}]
[null,467,{"$f":"IF(ISBLANK('Product info'!C469),\"\",'Product info'!C469)","v":""},{"$f":"IF(ISBLANK('Product info'!D469),\"\",'Product info'!D469)","v":""},null,null,null,null,null,null,null,null,null,null,0,{"$f":"IF(ISERROR(O469*'Product info'!E469/'Product info'!AF469),0,O469*'Product info'!E469/'Product info'!AF469)","v":0}]
[null,468,{"$f":"IF(ISBLANK('Product info'!C470),\"\",'Product info'!C470)","v":""},{"$f":"IF(ISBLANK('Product info'!D470),\"\",'Product info'!D470)","v":""},null,null,null,null,null,null,null,null,null,null,0,{"$f":"IF(ISERROR(O470*'Product info'!E470/'Product info'!AF470),0,O470*'Product info'!E470/'Product info'!AF470)","v":0}]
[null,469,{"$f":"IF(ISBLANK('Product info'!C471),\"\",'Product info'!C471)","v":""},{"$f":"IF(ISBLANK('Product info'!D471),\"\",'Product info'!D471)","v":""},null,null,null,null,null,null,null,null,null,null,0,{"$f":"IF(ISERROR(O471*'Product info'!E471/'Product info'!AF471),0,O471*'Product info'!E471/'Product info'!AF471)","v":0}]
[null,470,{"$f":"IF(ISBLANK('Product info'!C472),\"\",'Product info'!C472)","v":""},{"$f":"IF(ISBLANK('Product info'!D472),\"\",'Product info'!D472)","v":""},null,null,null,null,null,null,null,null,null,null,0,{"$f":"IF(ISERROR(O472*'Product info'!E472/'Product info'!AF472),0,O472*'Product info'!E472/'Product info'!AF472)","v":0}]
[null,471,{"$f":"IF(ISBLANK('Product info'!C473),\"\",'Product info'!C473)","v":""},{"$f":"IF(ISBLANK('Product info'!D473),\"\",'Product info'!D473)","v":""},null,null,null,null,null,null,null,null,null,null,0,{"$f":"IF(ISERROR(O473*'Product info'!E473/'Product info'!AF473),0,O473*'Product info'!E473/'Product info'!AF473)","v":0}]
[null,472,{"$f":"IF(ISBLANK('Product info'!C474),\"\",'Product info'!C474)","v":""},{"$f":"IF(ISBLANK('Product info'!D474),\"\",'Product info'!D474)","v":""},null,null,null,null,null,null,null,null,null,null,0,{"$f":"IF(ISERROR(O474*'Product info'!E474/'Product info'!AF474),0,O474*'Product info'!E474/'Product info'!AF474)","v":0}]
[null,473,{"$f":"IF(ISBLANK('Product info'!C475),\"\",'Product info'!C475)","v":""},{"$f":"IF(ISBLANK('Product info'!D475),\"\",'Product info'!D475)","v":""},null,null,null,null,null,null,null,null,null,null,0,{"$f":"IF(ISERROR(O475*'Product info'!E475/'Product info'!AF475),0,O475*'Product info'!E475/'Product info'!AF475)","v":0}]
[null,474,{"$f":"IF(ISBLANK('Product info'!C476),\"\",'Product info'!C476)","v":""},{"$f":"IF(ISBLANK('Product info'!D476),\"\",'Product info'!D476)","v":""},null,null,null,null,null,null,null,null,null,null,0,{"$f":"IF(ISERROR(O476*'Product info'!E476/'Product info'!AF476),0,O476*'Product info'!E476/'Product info'!AF476)","v":0}]
[null,475,{"$f":"IF(ISBLANK('Product info'!C477),\"\",'Product info'!C477)","v":""},{"$f":"IF(ISBLANK('Product info'!D477),\"\",'Product info'!D477)","v":""},null,null,null,null,null,null,null,null,null,null,0,{"$f":"IF(ISERROR(O477*'Product info'!E477/'Product info'!AF477),0,O477*'Product info'!E477/'Product info'!AF477)","v":0}]
[null,476,{"$f":"IF(ISBLANK('Product info'!C478),\"\",'Product info'!C478)","v":""},{"$f":"IF(ISBLANK('Product info'!D478),\"\",'Product info'!D478)","v":""},null,null,null,null,null,null,null,null,null,null,0,{"$f":"IF(ISERROR(O478*'Product info'!E478/'Product info'!AF478),0,O478*'Product info'!E478/'Product info'!AF478)","v":0}]
[null,477,{"$f":"IF(ISBLANK('Product info'!C479),\"\",'Product info'!C479)","v":""},{"$f":"IF(ISBLANK('Product info'!D479),\"\",'Product info'!D479)","v":""},null,null,null,null,null,null,null,null,null,null,0,{"$f":"IF(ISERROR(O479*'Product info'!E479/'Product info'!AF479),0,O479*'Product info'!E479/'Product info'!AF479)","v":0}]
[null,478,{"$f":"IF(ISBLANK('Product info'!C480),\"\",'Product info'!C480)","v":""},{"$f":"IF(ISBLANK('Product info'!D480),\"\",'Product info'!D480)","v":""},null,null,null,null,null,null,null,null,null,null,0,{"$f":"IF(ISERROR(O480*'Product info'!E480/'Product info'!AF480),0,O480*'Product info'!E480/'Product info'!AF480)","v":0}]
[null,479,{"$f":"IF(ISBLANK('Product info'!C481),\"\",'Product info'!C481)","v":""},{"$f":"IF(ISBLANK('Product info'!D481),\"\",'Product info'!D481)","v":""},null,null,null,null,null,null,null,null,null,null,0,{"$f":"IF(ISERROR(O481*'Product info'!E481/'Product info'!AF481),0,O481*'Product info'!E481/'Product info'!AF481)","v":0}]
[null,480,{"$f":"IF(ISBLANK('Product info'!C482),\"\",'Product info'!C482)","v":""},{"$f":"IF(ISBLANK('Product info'!D482),\"\",'Product info'!D482)","v":""},null,null,null,null,null,null,null,null,null,null,0,{"$f":"IF(ISERROR(O482*'Product info'!E482/'Product info'!AF482),0,O482*'Product info'!E482/'Product info'!AF482)","v":0}]
[null,481,{"$f":"IF(ISBLANK('Product info'!C483),\"\",'Product info'!C483)","v":""},{"$f":"IF(ISBLANK('Product info'!D483),\"\",'Product info'!D483)","v":""},null,null,null,null,null,null,null,null,null,null,0,{"$f":"IF(ISERROR(O483*'Product info'!E483/'Product info'!AF483),0,O483*'Product info'!E483/'Product info'!AF483)","v":0}]
[null,482,{"$f":"IF(ISBLANK('Product info'!C484),\"\",'Product info'!C484)","v":""},{"$f":"IF(ISBLANK('Product info'!D484),\"\",'Product info'!D484)","v":""},null,null,null,null,null,null,null,null,null,null,0,{"$f":"IF(ISERROR(O484*'Product info'!E484/'Product info'!AF484),0,O484*'Product info'!E484/'Product info'!AF484)","v":0}]
[null,483,{"$f":"IF(ISBLANK('Product info'!C485),\"\",'Product info'!C485)","v":""},{"$f":"IF(ISBLANK('Product info'!D485),\"\",'Product info'!D485)","v":""},null,null,null,null,null,null,null,null,null,null,0,{"$f":"IF(ISERROR(O485*'Product info'!E485/'Product info'!AF485),0,O485*'Product info'!E485/'Product info'!AF485)","v":0}]
[null,484,{"$f":"IF(ISBLANK('Product info'!C486),\"\",'Product info'!C486)","v":""},{"$f":"IF(ISBLANK('Product info'!D486),\"\",'Product info'!D486)","v":""},null,null,null,null,null,null,null,null,null,null,0,{"$f":"IF(ISERROR(O486*'Product info'!E486/'Product info'!AF486),0,O486*'Product info'!E486/'Product info'!AF486)","v":0}]
[null,485,{"$f":"IF(ISBLANK('Product info'!C487),\"\",'Product info'!C487)","v":""},{"$f":"IF(ISBLANK('Product info'!D487),\"\",'Product info'!D487)","v":""},null,null,null,null,null,null,null,null,null,null,0,{"$f":"IF(ISERROR(O487*'Product info'!E487/'Product info'!AF487),0,O487*'Product info'!E487/'Product info'!AF487)","v":0}]
[null,486,{"$f":"IF(ISBLANK('Product info'!C488),\"\",'Product info'!C488)","v":""},{"$f":"IF(ISBLANK('Product info'!D488),\"\",'Product info'!D488)","v":""},null,null,null,null,null,null,null,null,null,null,0,{"$f":"IF(ISERROR(O488*'Product info'!E488/'Product info'!AF488),0,O488*'Product info'!E488/'Product info'!AF488)","v":0}]
[null,487,{"$f":"IF(ISBLANK('Product info'!C489),\"\",'Product info'!C489)","v":""},{"$f":"IF(ISBLANK('Product info'!D489),\"\",'Product info'!D489)","v":""},null,null,null,null,null,null,null,null,null,null,0,{"$f":"IF(ISERROR(O489*'Product info'!E489/'Product info'!AF489),0,O489*'Product info'!E489/'Product info'!AF489)","v":0}]
[null,488,{"$f":"IF(ISBLANK('Product info'!C490),\"\",'Product info'!C490)","v":""},{"$f":"IF(ISBLANK('Product info'!D490),\"\",'Product info'!D490)","v":""},null,null,null,null,null,null,null,null,null,null,0,{"$f":"IF(ISERROR(O490*'Product info'!E490/'Product info'!AF490),0,O490*'Product info'!E490/'Product info'!AF490)","v":0}]
[null,489,{"$f":"IF(ISBLANK('Product info'!C491),\"\",'Product info'!C491)","v":""},{"$f":"IF(ISBLANK('Product info'!D491),\"\",'Product info'!D491)","v":""},null,null,null,null,null,null,null,null,null,null,0,{"$f":"IF(ISERROR(O491*'Product info'!E491/'Product info'!AF491),0,O491*'Product info'!E491/'Product info'!AF491)","v":0}]
[null,490,{"$f":"IF(ISBLANK('Product info'!C492),\"\",'Product info'!C492)","v":""},{"$f":"IF(ISBLANK('Product info'!D492),\"\",'Product info'!D492)","v":""},null,null,null,null,null,null,null,null,null,null,0,{"$f":"IF(ISERROR(O492*'Product info'!E492/'Product info'!AF492),0,O492*'Product info'!E492/'Product info'!AF492)","v":0}]
[null,491,{"$f":"IF(ISBLANK('Product info'!C493),\"\",'Product info'!C493)","v":""},{"$f":"IF(ISBLANK('Product info'!D493),\"\",'Product info'!D493)","v":""},null,null,null,null,null,null,null,null,null,null,0,{"$f":"IF(ISERROR(O493*'Product info'!E493/'Product info'!AF493),0,O493*'Product info'!E493/'Product info'!AF493)","v":0}]
[null,492,{"$f":"IF(ISBLANK('Product info'!C494),\"\",'Product info'!C494)","v":""},{"$f":"IF(ISBLANK('Product info'!D494),\"\",'Product info'!D494)","v":""},null,null,null,null,null,null,null,null,null,null,0,{"$f":"IF(ISERROR(O494*'Product info'!E494/'Product info'!AF494),0,O494*'Product info'!E494/'Product info'!AF494)","v":0}]
[null,493,{"$f":"IF(ISBLANK('Product info'!C495),\"\",'Product info'!C495)","v":""},{"$f":"IF(ISBLANK('Product info'!D495),\"\",'Product info'!D495)","v":""},null,null,null,null,null,null,null,null,null,null,0,{"$f":"IF(ISERROR(O495*'Product info'!E495/'Product info'!AF495),0,O495*'Product info'!E495/'Product info'!AF495)","v":0}]
[null,494,{"$f":"IF(ISBLANK('Product info'!C496),\"\",'Product info'!C496)","v":""},{"$f":"IF(ISBLANK('Product info'!D496),\"\",'Product info'!D496)","v":""},null,null,null,null,null,null,null,null,null,null,0,{"$f":"IF(ISERROR(O496*'Product info'!E496/'Product info'!AF496),0,O496*'Product info'!E496/'Product info'!AF496)","v":0}]
[null,495,{"$f":"IF(ISBLANK('Product info'!C497),\"\",'Product info'!C497)","v":""},{"$f":"IF(ISBLANK('Product info'!D497),\"\",'Product info'!D497)","v":""},null,null,null,null,null,null,null,null,null,null,0,{"$f":"IF(ISERROR(O497*'Product info'!E497/'Product info'!AF497),0,O497*'Product info'!E497/'Product info'!AF497)","v":0}]
[null,496,{"$f":"IF(ISBLANK('Product info'!C498),\"\",'Product info'!C498)","v":""},{"$f":"IF(ISBLANK('Product info'!D498),\"\",'Product info'!D498)","v":""},null,null,null,null,null,null,null,null,null,null,0,{"$f":"IF(ISERROR(O498*'Product info'!E498/'Product info'!AF498),0,O498*'Product info'!E498/'Product info'!AF498)","v":0}]
[null,497,{"$f":"IF(ISBLANK('Product info'!C499),\"\",'Product info'!C499)","v":""},{"$f":"IF(ISBLANK('Product info'!D499),\"\",'Product info'!D499)","v":""},null,null,null,null,null,null,null,null,null,null,0,{"$f":"IF(ISERROR(O499*'Product info'!E499/'Product info'!AF499),0,O499*'Product info'!E499/'Product info'!AF499)","v":0}]
[null,498,{"$f":"IF(ISBLANK('Product info'!C500),\"\",'Product info'!C500)","v":""},{"$f":"IF(ISBLANK('Product info'!D500),\"\",'Product info'!D500)","v":""},null,null,null,null,null,null,null,null,null,null,0,{"$f":"IF(ISERROR(O500*'Product info'!E500/'Product info'!AF500),0,O500*'Product info'!E500/'Product info'!AF500)","v":0}]
[null,499,{"$f":"IF(ISBLANK('Product info'!C501),\"\",'Product info'!C501)","v":""},{"$f":"IF(ISBLANK('Product info'!D501),\"\",'Product info'!D501)","v":""},null,null,null,null,null,null,null,null,null,null,0,{"$f":"IF(ISERROR(O501*'Product info'!E501/'Product info'!AF501),0,O501*'Product info'!E501/'Product info'!AF501)","v":0}]
[null,500,{"$f":"IF(ISBLANK('Product info'!C502),\"\",'Product info'!C502)","v":""},{"$f":"IF(ISBLANK('Product info'!D502),\"\",'Product info'!D502)","v":""},null,null,null,null,null,null,null,null,null,null,0,{"$f":"IF(ISERROR(O502*'Product info'!E502/'Product info'!AF502),0,O502*'Product info'!E502/'Product info'!AF502)","v":0}]

{"sheet":"Deliveries and sales","index":4,"n_rows":8,"n_cols":4,"rows_kept":8,"cut":false,"hidden":false,"merged":[]}
[null,null,null,"www.bar-i.com"]
[null,"Category","Deliveries for period ($)","Sales for period ($)"]
[null,"Draft beer"]
[null,"Bottle/ can beer"]
[null,"Liquor"]
[null,"Wine"]
[null,"Misc"]
[null,"Total",{"$f":"SUM(C3:C7)","v":0},{"$f":"SUM(D3:D7)","v":0}]

{"sheet":"Liquor Cost","index":5,"n_rows":8,"n_cols":8,"rows_kept":8,"cut":false,"hidden":false,"merged":[]}
[null,null,null,null,null,null,null,"www.bar-i.com"]
[null,"Category","Starting value ($)","Ending value ($)","Delivered ($)","Usage ($)","Sales ($)","2013-10-01"]
[null,"Draft beer",{"$f":"SUMPRODUCT(('Previous Count'!$D$3:$D$502='Liquor Cost'!B3)*'Previous Count'!$P$3:$P$502)","v":0},{"$f":"SUMPRODUCT((Count!$D$3:$D$502='Liquor Cost'!B3)*Count!$P$3:$P$502)","v":0},{"$f":"'Deliveries and sales'!C3","v":0},{"$f":"C3-D3+E3","v":0},{"$f":"'Deliveries and sales'!D3","v":0},{"$f":"IF(ISERROR(F3/G3),0,F3/G3)","v":0}]
[null,"Bottle/ can beer",{"$f":"SUMPRODUCT(('Previous Count'!$D$3:$D$502='Liquor Cost'!B4)*'Previous Count'!$P$3:$P$502)","v":0},{"$f":"SUMPRODUCT((Count!$D$3:$D$502='Liquor Cost'!B4)*Count!$P$3:$P$502)","v":0},{"$f":"'Deliveries and sales'!C4","v":0},{"$f":"C4-D4+E4","v":0},{"$f":"'Deliveries and sales'!D4","v":0},{"$f":"IF(ISERROR(F4/G4),0,F4/G4)","v":0}]
[null,"Liquor",{"$f":"SUMPRODUCT(('Previous Count'!$D$3:$D$502='Liquor Cost'!B5)*'Previous Count'!$P$3:$P$502)","v":0},{"$f":"SUMPRODUCT((Count!$D$3:$D$502='Liquor Cost'!B5)*Count!$P$3:$P$502)","v":0},{"$f":"'Deliveries and sales'!C5","v":0},0,{"$f":"'Deliveries and sales'!D5","v":0},0]
[null,"Wine",{"$f":"SUMPRODUCT(('Previous Count'!$D$3:$D$502='Liquor Cost'!B6)*'Previous Count'!$P$3:$P$502)","v":0},{"$f":"SUMPRODUCT((Count!$D$3:$D$502='Liquor Cost'!B6)*Count!$P$3:$P$502)","v":0},{"$f":"'Deliveries and sales'!C6","v":0},0,{"$f":"'Deliveries and sales'!D6","v":0},0]
[null,"Misc",{"$f":"SUMPRODUCT(('Previous Count'!$D$3:$D$502='Liquor Cost'!B7)*'Previous Count'!$P$3:$P$502)","v":0},{"$f":"SUMPRODUCT((Count!$D$3:$D$502='Liquor Cost'!B7)*Count!$P$3:$P$502)","v":0},{"$f":"'Deliveries and sales'!C7","v":0},0,{"$f":"'Deliveries and sales'!D7","v":0},0]
[null,"Total",{"$f":"SUM(C3:C7)","v":0},{"$f":"SUM(D3:D7)","v":0},0,0,0,0]

{"sheet":"Liquor cost trend","index":6,"n_rows":19,"n_cols":55,"rows_kept":19,"cut":false,"hidden":false,"merged":[]}
[]
[]
[]
[]
[]
[]
[]
[]
[]
[]
[]
[]
[null,"Category","2013-09-01",null,null,null,null,null,null,null,null,null,null,null,null,null,null,null,null,null,null,null,null,null,null,null,null,null,null,null,null,null,null,null,null,null,null,null,null,null,null,null,null,null,null,null,null,null,null,null,null,null,null,null,"YTD average"]
[null,"Draft beer",0,null,null,null,null,null,null,null,null,null,null,null,null,null,null,null,null,null,null,null,null,null,null,null,null,null,null,null,null,null,null,null,null,null,null,null,null,null,null,null,null,null,null,null,null,null,null,null,null,null,null,null,{"$f":"AVERAGE(C14:BB14)","v":0}]
[null,"Bottle/ can beer",0,null,null,null,null,null,null,null,null,null,null,null,null,null,null,null,null,null,null,null,null,null,null,null,null,null,null,null,null,null,null,null,null,null,null,null,null,null,null,null,null,null,null,null,null,null,null,null,null,null,null,null,{"$f":"AVERAGE(C15:BB15)","v":0}]
[null,"Liquor",0,null,null,null,null,null,null,null,null,null,null,null,null,null,null,null,null,null,null,null,null,null,null,null,null,null,null,null,null,null,null,null,null,null,null,null,null,null,null,null,null,null,null,null,null,null,null,null,null,null,null,null,0]
[null,"Wine",0,null,null,null,null,null,null,null,null,null,null,null,null,null,null,null,null,null,null,null,null,null,null,null,null,null,null,null,null,null,null,null,null,null,null,null,null,null,null,null,null,null,null,null,null,null,null,null,null,null,null,null,0]
[null,"Misc",0,null,null,null,null,null,null,null,null,null,null,null,null,null,null,null,null,null,null,null,null,null,null,null,null,null,null,null,null,null,null,null,null,null,null,null,null,null,null,null,null,null,null,null,null,null,null,null,null,null,null,null,0]
[null,"Total",0,null,null,null,null,null,null,null,null,null,null,null,null,null,null,null,null,null,null,null,null,null,null,null,null,null,null,null,null,null,null,null,null,null,null,null,null,null,null,null,null,null,null,null,null,null,null,null,null,null,null,null,0]